Workbook

Sheet Содержание
B1: 205.14.00.02 | D1: ЗАВОД «ОПК» Тел.: +7 (495) 987-4388 e-mail: info@cryspi.ru сайт: cryspi.ru
B2: Ваша скидка | C2: - | D2: 0
B3: НДС | C3: -
B4: Холодильное оборудование (встроенное холодоснабжение)
B5: Холодильные витрины Cryspi | D5: Низкотемпературные шкафы Cryspi
B6: Витрины со статической системой охлаждения | D6: VERONA
B7: Витрины OCTAVA | D7: MILAN S
B8: Витрины OCTAVA Quadro | D8: Лари Italfrost
B9: Витрины OCTAVA XL | D9: Морозильные лари с гнутыми раздвижными стеклами
B10: Витрины GAMMA-2 | D10: Морозильные лари с прямыми раздвижными стеклами
B11: Витрины GAMMA Quadro | D11: Морозильные лари с глухой крышкой
B12: Витрины GAMMA Quadro Fish | D12: Морозильные лари с глухой крышкой (крышка из нерж. стали)
B13: Витрины GAMMA Quadro SELF | D13: Морозильные лари с гнутыми раздвижными стеклами (4+)
B14: Витрины Sonata Quadro | D14: Морозильные лари с прямыми раздвижными стеклами (4+)
B15: Витрины настольные Vivo 1000 | D15: Морозильные лари для мягкого мороженого
B16: Витрины с динамической системой охлаждения
B17: Витрины Magnum
B18: Витрины Magnum ECO | D18: Ларь-бонеты ITALFROST
B19: Витрины Magnum Quadro | D19: Лари-бонеты ITALFROST
D20: Лари-бонеты ITALFROST Push
B21: Витрины Cryspi без агрегата (под выносное хладоснабжение) | D21: Лари-бонеты RONDO с термостатом
B22: Витрины GAMMA-2 БА | D22: Лари-бонеты RONDO с контроллером
B23: Витрины GAMMA QUADRO БА | D23: Комплектующие для ларей-бонет
B24: Витрины MAGNUM ECO БА
B25: Витрины MAGNUM БА | D25: Ледогенераторы
B26: Витрины MAGNUM QUADRO БА | D26: Льдогенератор кубикового льда
B27: Кондитерские витрины
B28: Витрины Adagio
B29: Витрины Elegia
B33: Витрины Italfrigo без агрегата
B34: Витрины TOSCANA Q
B35: Витрины серии Veneto Quadro
B38: Горки Cryspi
B39: Solo L7/L9 | D39: Cтандартные цвета
B40: Solo SML | D40: Таблица расчета нестандартных RAL
D41: БРЕНДИРОВАНИЕ ЛАРЕЙ ITALFROST
B43: Стеллажи Italfrigo под выносное холодообеспечение
B44: Охлаждаемые стеллажи RIMINI
B45: Охлаждаемые стеллажи LAZIO

Sheet Витрины Cryspi
I1: ЗАВОД «ОПК» Тел.: +7 (495) 987-4388 e-mail: info@cryspi.ru сайт: cryspi.ru
C3: Ваша скидка: | F3: =Содержание!D2 -> 0
C4: НДС: | F4: =IF(Лист2!A1=TRUE,"С НДС","БЕЗ НДС") -> С НДС
A7: Витрины Cryspi со встроенным агрегатом. Статическая система охлаждения
A9: Базовая комплектация: - Статическая система охлаждения, компрессор R-290; - Электронный контроллер для управления работой витрины; - Оттайка для версий ВПС - естественная (без ТЭНа), для версий ВПСН и ВПН - ТЭН (по умолчанию); - Общее светодиодное освещение для версий с высоким стеклом - стандартный - 4000К, опционально - 3000К, 6500К; - Товарный накопитель для линейных модулей (запасник с дверкой) (кроме НТ); - Упаковка в деревянную обрешетку; | G9: - Внутренний объем для витрин ВПС и ВПСН - оцинкованный металл, внутренний объем в зоне выкладки - нерж.сталь; - Внутренний объем для витрин ВПН - оцинкованный металл с полимерным покрытием - Ночные шторки для витрин с высоким стеклом; - Фронтальное стекло закаленное, не открывается; - Емкость для сбора талой воды, опционально возможно применение выпаривателя;
A10: № | B10: Комплектация | C10: Изображение | D10: Артикул | E10: Наименование | G10: Температурный режим,°C | H10: Площадь экспозиции, кв.м. | I10: Габариты, (LxWxH) мм | J10: Габариты в упаковке, (LxWxH) мм | K10: Базовая цена, руб. (с НДС) | L10: =[5]Лист2!$A$5 -> Ваша цена, руб.
A12: 1 | B12: Витрины серии OCTAVA, глубина выкладки 660 мм, стандартный Ral 3002. | K12: Опции Octava | M12: EL.2.G3002гл.В7021гл.V0.PS
D13: =D40 -> Среднетемпературные, ВПС | M13: нажмите чтобы перейти в список опций
D14: О ВПС1 120ГR290 | E14: Octava 1200 | G14: 0…+7 | H14: 0.72 | I14: 1180х955х1265 | J14: 1400х1200х1110 | K14: 79959 | L14: =ROUND(K14*(1-$F$3)/Лист2!$A$6,0) -> 79959 | O14: =K14-N14 -> 79959
D15: О ВПС1 150ГR290 | E15: Octava 1500 | G15: 0…+7 | H15: 0.92 | I15: 1480х955х1265 | J15: 1700х1200х1110 | K15: 86737 | L15: =ROUND(K15*(1-$F$3)/Лист2!$A$6,0) -> 86737 | O15: =K15-N15 -> 86737
D16: О ВПС1 180ГR290 | E16: Octava 1800 | G16: 0…+7 | H16: 1.12 | I16: 1780х955х1265 | J16: 2000х1200х1110 | K16: 96391 | L16: =ROUND(K16*(1-$F$3)/Лист2!$A$6,0) -> 96391 | O16: 96391
D17: =D44 -> Средне-низкотемпературные, ВПСН | O17: 0
D18: О ВПСН1 120ГR290 | E18: Octava SN 1200 | G18: -6…+6 | H18: 0.72 | I18: 1180х955х1265 | J18: 1400х1200х1110 | K18: 88895 | L18: =ROUND(K18*(1-$F$3)/Лист2!$A$6,0) -> 88895 | O18: 88895
D19: О ВПСН1 150ГR290 | E19: Octava SN 1500 | G19: -6…+6 | H19: 0.92 | I19: 1480х955х1265 | J19: 1700х1200х1110 | K19: 100234 | L19: =ROUND(K19*(1-$F$3)/Лист2!$A$6,0) -> 100234 | O19: 100234
D20: О ВПСН1 180ГR290 | E20: Octava SN 1800 | G20: -6…+6 | H20: 1.12 | I20: 1780х955х1265 | J20: 2000х1200х1110 | K20: 111322 | L20: =ROUND(K20*(1-$F$3)/Лист2!$A$6,0) -> 111322 | O20: 111322
D21: =D48 -> Низкотемпературные, ВПН | O21: 0
D22: О ВПН1 120ГR290 | E22: Octava M 1200 | G22: -13…-15 | H22: 0.69 | I22: 1180х955х1265 | J22: 1400х1200х1110 | K22: 94927 | L22: =ROUND(K22*(1-$F$3)/Лист2!$A$6,0) -> 94927 | O22: 94927
D23: О ВПН1 150ГR290 | E23: Octava M 1500 | G23: -13…-15 | H23: 0.89 | I23: 1480х955х1265 | J23: 1700х1200х1110 | K23: 108581 | L23: =ROUND(K23*(1-$F$3)/Лист2!$A$6,0) -> 108581 | O23: 108581
D24: О ВПН1 180ГR290 | E24: Octava M 1800 | G24: -13…-15 | H24: 1.08 | I24: 1780х955х1265 | J24: 2000х1200х1110 | K24: 119972 | L24: =ROUND(K24*(1-$F$3)/Лист2!$A$6,0) -> 119972 | O24: 119972
D25: Угловые витрины | O25: 0
D26: O ВПС1 OC90Д R290 | E26: Octava OC (угол внеш.) | G26: 0…+7 | H26: 0.79 | I26: 1180х1180х1265 | J26: 1750х1250х1110 | K26: 135720 | L26: =ROUND(K26*(1-$F$3)/Лист2!$A$6,0) -> 135720 | O26: 135720
D27: O ВПС1 IC90Д R290 | E27: Octava IC (угол внутр.) | G27: 0…+7 | H27: 0.61 | I27: 1354х1354х1265 | J27: 2050х1150х1110 | K27: 123607 | L27: =ROUND(K27*(1-$F$3)/Лист2!$A$6,0) -> 123607 | O27: 123607
D28: Кассовые прилавки | O28: 0
D29: O КНП 62 ББ | E29: Octava КНП 620 без боковин | G29: - | H29: - | I29: 620х917х900 | J29: 850х1100х1075 | K29: 23583 | L29: =ROUND(K29*(1-$F$3)/Лист2!$A$6,0) -> 23583 | O29: 23583
D30: O КНП 70 | E30: Octava КНП 700 с боковинами | G30: - | H30: - | I30: 700х924х900 | J30: 850х1100х1075 | K30: 33155 | L30: =ROUND(K30*(1-$F$3)/Лист2!$A$6,0) -> 33155 | O30: 33155
D31: O КНП 112 ББ | E31: Octava КНП 1120 без боковин | G31: - | H31: - | I31: 1120х924х900 | J31: 1350х1075х1075 | K31: 36978 | L31: =ROUND(K31*(1-$F$3)/Лист2!$A$6,0) -> 36978 | O31: 36978
D32: O КНП 120 | E32: Octava КНП 1200 с боковинами | G32: - | H32: - | I32: 1200х924х900 | J32: 1350х1075х1075 | K32: 47949 | L32: =ROUND(K32*(1-$F$3)/Лист2!$A$6,0) -> 47949 | O32: 47949
D33: O КНП 900 ББ | E33: Octava КНП 900 без боковин | G33: - | H33: - | I33: 900х924х900 | J33: 1130х1075х1075 | K33: 29434 | L33: =ROUND(K33*(1-$F$3)/Лист2!$A$6,0) -> 29434 | O33: 29434
D34: O КНП 980 | E34: Octava КНП 980 с боковинами | G34: - | H34: - | I34: 980х924х900 | J34: 1130х1075х1075 | K34: 42297 | L34: =ROUND(K34*(1-$F$3)/Лист2!$A$6,0) -> 42297 | O34: 42297
D35: O КНП OC90 ББ | E35: Octava КНП OC 90 без боковин | G35: - | H35: - | I35: 1592х850х900 | J35: 1600х1210х1075 | K35: 31876 | L35: =ROUND(K35*(1-$F$3)/Лист2!$A$6,0) -> 31876 | O35: 31876
D36: O КНП OC90 | E36: Octava КНП OC 90 с боковинами | G36: - | H36: - | I36: 1632х871х900 | J36: 1600х1210х1075 | K36: 41454 | L36: =ROUND(K36*(1-$F$3)/Лист2!$A$6,0) -> 41454 | O36: 41454
D37: O КНП IC90 ББ | E37: Octava КНП IC 90 без боковин | G37: - | H37: - | I37: 1592х850х900 | J37: 1780х1030х1075 | K37: 31247 | L37: =ROUND(K37*(1-$F$3)/Лист2!$A$6,0) -> 31247 | O37: 31247
D38: O КНП IC90 | E38: Octava КНП IC 90 с боковинами | G38: - | H38: - | I38: 1632х871х900 | J38: 1780х1030х1075 | K38: 40825 | L38: =ROUND(K38*(1-$F$3)/Лист2!$A$6,0) -> 40825 | O38: 40825
A39: 2 | B39: Витрины серии OCTAVA Q, глубина выкладки 660 мм, стандартный RAL 7016 | M39: EL.2.G7016гл.В7016гл.V0.PS | O39: 0
D40: Среднетемпературные, ВПС | O40: 0
D41: OKQВПС 120 R290 | E41: Octava Q 1200 | G41: 0…+7 | H41: 0.72 | I41: 1180х925х1200 | J41: 1400х1200х1110 | K41: 84476 | L41: =ROUND(K41*(1-$F$3)/Лист2!$A$6,0) -> 84476 | O41: 84476
D42: OKQВПС 150 R290 | E42: Octava Q 1500 | G42: 0…+7 | H42: 0.92 | I42: 1480х925х1200 | J42: 1700х1200х1110 | K42: 95183 | L42: =ROUND(K42*(1-$F$3)/Лист2!$A$6,0) -> 95183 | O42: 95183
D43: OKQВПС 180 R290 | E43: Octava Q 1800 | G43: 0…+7 | H43: 1.12 | I43: 1780х925х1200 | J43: 2000х1200х1110 | K43: 108849 | L43: =ROUND(K43*(1-$F$3)/Лист2!$A$6,0) -> 108849 | O43: 108849
D44: Средне-низкотемпературные, ВПСН | O44: 0
D45: OKQВПСН 120 R290 | E45: Octava Q SN 1200 | G45: -6…+6 | H45: 0.72 | I45: 1180х925х1200 | J45: 1400х1200х1110 | K45: 92843 | L45: =ROUND(K45*(1-$F$3)/Лист2!$A$6,0) -> 92843 | O45: 92843
D46: OKQВПСН 150 R290 | E46: Octava Q SN 1500 | G46: -6…+6 | H46: 0.92 | I46: 1480х925х1200 | J46: 1700х1200х1110 | K46: 106338 | L46: =ROUND(K46*(1-$F$3)/Лист2!$A$6,0) -> 106338 | O46: 106338
D47: OKQВПСН 180 R290 | E47: Octava Q SN 1800 | G47: -6…+6 | H47: 1.12 | I47: 1780х925х1200 | J47: 2000х1200х1110 | K47: 119726 | L47: =ROUND(K47*(1-$F$3)/Лист2!$A$6,0) -> 119726 | O47: 119726
D48: Низкотемпературные, ВПН | O48: 0
D49: OKQВПН 120 R290 | E49: Octava Q M 1200 | G49: -15…-18 | H49: 0.69 | I49: 1180х925х1200 | J49: 1400х1200х1110 | K49: 104259 | L49: =ROUND(K49*(1-$F$3)/Лист2!$A$6,0) -> 104259 | O49: 104259
D50: OKQВПН 150 R290 | E50: Octava Q M 1500 | G50: -15…-18 | H50: 0.89 | I50: 1480х925х1200 | J50: 1700х1200х1110 | K50: 114957 | L50: =ROUND(K50*(1-$F$3)/Лист2!$A$6,0) -> 114957 | O50: 114957
D51: OKQВПН 180 R290 | E51: Octava Q M 1800 | G51: -15…-18 | H51: 1.08 | I51: 1780х925х1200 | J51: 2000х1200х1110 | K51: 130086 | L51: =ROUND(K51*(1-$F$3)/Лист2!$A$6,0) -> 130086 | O51: 130086
A52: 3 | B52: Витрины серии OCTAVA XL, глубина выкладки 780 мм, стандартный Ral 7016. | M52: EL.2.В7016гл.V0.PS | O52: 0
A53: Стандартная комплектация: | D53: Среднетемпературные, ВПС | O53: 0
D54: OХL ВПС1 120 R290 | E54: Octava XL 1200 | G54: 0…+7 | H54: 0.93 | I54: 1218х1069х1214 | J54: 1400х1200х1110 | K54: 84717 | L54: =ROUND(K54*(1-$F$3)/Лист2!$A$6,0) -> 84717 | O54: 84717
D55: OХL ВПС1 150 R290 | E55: Octava XL 1500 | G55: 0…+7 | H55: 1.15 | I55: 1518х1069х1214 | J55: 1700х1200х1110 | K55: 93771 | L55: =ROUND(K55*(1-$F$3)/Лист2!$A$6,0) -> 93771 | O55: 93771
D56: OХL ВПС1 180 R290 | E56: Octava XL 1800 | G56: 0…+7 | H56: 1.4 | I56: 1818х1069х1214 | J56: 2000х1200х1110 | K56: 106326 | L56: =ROUND(K56*(1-$F$3)/Лист2!$A$6,0) -> 106326 | O56: 106326
D57: Средне-низкотемпературные, ВПСН | O57: 0
D58: OXL ВПСН1 120 R290 | E58: Octava XL SN 1200 | G58: -6…+6 | H58: 0.93 | I58: 1218х1069х1214 | J58: 1400х1200х1110 | K58: 99783 | L58: =ROUND(K58*(1-$F$3)/Лист2!$A$6,0) -> 99783 | O58: 99783
D59: OXL ВПСН1 150 R290 | E59: Octava XL SN 1500 | G59: -6…+6 | H59: 1.15 | I59: 1518х1069х1214 | J59: 1700х1200х1110 | K59: 105492 | L59: =ROUND(K59*(1-$F$3)/Лист2!$A$6,0) -> 105492 | O59: 105492
D60: OXL ВПСН1 180 R290 | E60: Octava XL SN 1800 | G60: -6…+6 | H60: 1.4 | I60: 1818х1069х1214 | J60: 2000х1200х1110 | K60: 122943 | L60: =ROUND(K60*(1-$F$3)/Лист2!$A$6,0) -> 122943 | O60: 122943
D61: Низкотемпературные, ВПН | O61: 0
D62: OХL ВПН1 120 R290 | E62: Octava XL М 1200 | G62: -15…-18 | H62: 0.85 | I62: 1218х1093х1300 | J62: 1400х1200х1110 | K62: 122951 | L62: =ROUND(K62*(1-$F$3)/Лист2!$A$6,0) -> 122951 | O62: 122951
D63: OХL ВПН1 150 R290 | E63: Octava XL М 1500 | G63: -15…-18 | H63: 1.1 | I63: 1518х1093х1300 | J63: 1700х1200х1110 | K63: 142247 | L63: =ROUND(K63*(1-$F$3)/Лист2!$A$6,0) -> 142247 | O63: 142247
D64: OХL ВПН1 180 R290 | E64: Octava XL М 1800 | G64: -15…-18 | H64: 1.3 | I64: 1818х1093х1300 | J64: 2000х1200х1110 | K64: 156114 | L64: =ROUND(K64*(1-$F$3)/Лист2!$A$6,0) -> 156114 | O64: 156114
D65: Кассовые прилавки | O65: 0
D66: OХЛ КНП 500 ББ | E66: Octava XL КНП 500 ББ | G66: - | H66: - | K66: 24328 | L66: =ROUND(K66*(1-$F$3)/Лист2!$A$6,0) -> 24328 | O66: 24328
D67: OХЛ КНП 620 ББ | E67: Octava XL КНП 620 ББ | G67: - | H67: - | I67: 600х1069х940 | J67: 750х1250х1095 | K67: 26517 | L67: =ROUND(K67*(1-$F$3)/Лист2!$A$6,0) -> 26517 | O67: 26517
A68: 4 | B68: Витрины серии GAMMA-2, глубина выкладки 760 мм, стандартный Ral 3004. | K68: Опции Gamma-2 | M68: EL.2.G3004гл.В3004гл.V0.PS
D69: Среднетемпературные, ВПС | M69: *нажмите чтобы перейти в список опций | O69: 0
D70: G2 ВПС1 120 R290 | E70: Gamma-2 1200 | F70: с боковинами | G70: 0…+7 | H70: 0.85 | I70: 1218х1093х1300 | J70: 1400х1200х1110 | K70: 91227 | L70: =ROUND(K70*(1-$F$3)/Лист2!$A$6,0) -> 91227 | O70: 91227
D71: G2 ВПС1 120 R290ББ | F71: без боковин | I71: 1118х1093х1300 | J71: 1400х1200х1110 | K71: 78236 | L71: =ROUND(K71*(1-$F$3)/Лист2!$A$6,0) -> 78236 | O71: 78236
D72: G2 ВПС1 150 R290 | E72: Gamma-2 1500 | F72: с боковинами | G72: 0…+7 | H72: 1.1 | I72: 1518х1093х1300 | J72: 1700х1200х1110 | K72: 97195 | L72: =ROUND(K72*(1-$F$3)/Лист2!$A$6,0) -> 97195 | O72: 97195
D73: G2 ВПС1 150 R290ББ | F73: без боковин | I73: 1418х1093х1300 | J73: 1700х1200х1110 | K73: 84204 | L73: =ROUND(K73*(1-$F$3)/Лист2!$A$6,0) -> 84204 | O73: 84204
D74: G2 ВПС1 180 R290 | E74: Gamma-2 1800 | F74: с боковинами | G74: 0…+7 | H74: 1.3 | I74: 1818х1093х1300 | J74: 2000х1200х1110 | K74: 113700 | L74: =ROUND(K74*(1-$F$3)/Лист2!$A$6,0) -> 113700 | O74: 113700
D75: G2 ВПС1 180 R290ББ | F75: без боковин | I75: 1718х1093х1300 | J75: 2000х1200х1110 | K75: 100709 | L75: =ROUND(K75*(1-$F$3)/Лист2!$A$6,0) -> 100709 | O75: 100709
D76: Средне-низкотемпературные, ВПСН | O76: 0
D77: G2 ВПСН1 120 R290 | E77: Gamma-2 SN 1200 | F77: с боковинами | G77: -6…+6 | H77: 0.85 | I77: 1218х1093х1300 | J77: 1400х1200х1110 | K77: 102346 | L77: =ROUND(K77*(1-$F$3)/Лист2!$A$6,0) -> 102346 | O77: 102346
D78: G2 ВПСН1 120 R290ББ | F78: без боковин | I78: 1118х1093х1300 | J78: 1400х1200х1110 | K78: 89355 | L78: =ROUND(K78*(1-$F$3)/Лист2!$A$6,0) -> 89355 | O78: 89355
D79: G2 ВПСН1 150 R290 | E79: Gamma-2 SN 1500 | F79: с боковинами | G79: -6…+6 | H79: 1.1 | I79: 1518х1093х1300 | J79: 1700х1200х1110 | K79: 114598 | L79: =ROUND(K79*(1-$F$3)/Лист2!$A$6,0) -> 114598 | O79: =K79-N79 -> 114598
D80: G2 ВПСН1 150 ББ R290 | F80: без боковин | I80: 1418х1093х1300 | J80: 1700х1200х1110 | K80: 101607 | L80: =ROUND(K80*(1-$F$3)/Лист2!$A$6,0) -> 101607 | O80: 101607
D81: G2 ВПСН1 180 R290 | E81: Gamma-2 SN 1800 | F81: с боковинами | G81: -6…+6 | H81: 1.3 | I81: 1818х1093х1300 | J81: 2000х1200х1110 | K81: 130560 | L81: =ROUND(K81*(1-$F$3)/Лист2!$A$6,0) -> 130560 | O81: 130560
D82: G2 ВПСН1 180 ББ R290 | F82: без боковин | I82: 1718х1093х1300 | J82: 2000х1200х1110 | K82: 117569 | L82: =ROUND(K82*(1-$F$3)/Лист2!$A$6,0) -> 117569 | O82: 117569
D83: Средне-низкотемпературные для рыбы, ВПСН | O83: 0
D84: G2ВПСН1 120F R290 | E84: Gamma-2 Fish 1200 | F84: с боковинами | G84: -6…+6 | H84: 0.85 | I84: 1218х1093х1300 | J84: 1400х1200х1110 | K84: 113559 | L84: =ROUND(K84*(1-$F$3)/Лист2!$A$6,0) -> 113559 | O84: 113559
F85: без боковин | I85: 1118х1093х1300 | J85: 1400х1200х1110 | K85: 100568 | L85: =ROUND(K85*(1-$F$3)/Лист2!$A$6,0) -> 100568 | O85: 100568
D86: G2ВПСН1 150F R290 | E86: Gamma-2 Fish 1500 | F86: с боковинами | G86: -6…+6 | H86: 1.1 | I86: 1518х1093х1300 | J86: 1700х1200х1110 | K86: 131437 | L86: =ROUND(K86*(1-$F$3)/Лист2!$A$6,0) -> 131437 | O86: 131437
F87: без боковин | I87: 1418х1093х1300 | J87: 1700х1200х1110 | K87: 118446 | L87: =ROUND(K87*(1-$F$3)/Лист2!$A$6,0) -> 118446 | O87: 118446
D88: G2ВПСН1 180F R290 | E88: Gamma-2 Fish 1800 | F88: с боковинами | G88: -6…+6 | H88: 1.3 | I88: 1818х1093х1300 | J88: 2000х1200х1110 | K88: 169982 | L88: =ROUND(K88*(1-$F$3)/Лист2!$A$6,0) -> 169982 | O88: 169982
F89: без боковин | I89: 1718х1093х1300 | J89: 2000х1200х1110 | K89: 156991 | L89: =ROUND(K89*(1-$F$3)/Лист2!$A$6,0) -> 156991 | O89: 156991
D90: Низкотемпературные, ВПН | O90: 0
D91: G2 ВПН1 120 R290 | E91: Gamma-2 М 1200 | F91: с боковинами | G91: от -18 | H91: 0.85 | I91: 1218х1093х1300 | J91: 1400х1200х1110 | K91: 126339 | L91: =ROUND(K91*(1-$F$3)/Лист2!$A$6,0) -> 126339 | O91: 126339
D92: G2 ВПН1 120 ББ R290 | F92: без боковин | I92: 1118х1093х1300 | J92: 1400х1200х1110 | K92: 113148 | L92: =ROUND(K92*(1-$F$3)/Лист2!$A$6,0) -> 113148 | O92: 113148
D93: G2 ВПН1 150 R290 | E93: Gamma-2 М 1500 | F93: с боковинами | G93: от -18 | H93: 1.1 | I93: 1518х1093х1300 | J93: 1700х1200х1110 | K93: 144449 | L93: =ROUND(K93*(1-$F$3)/Лист2!$A$6,0) -> 144449 | O93: 144449
D94: G2 ВПН1 150 ББ R290 | F94: без боковин | I94: 1418х1093х1300 | J94: 1700х1200х1110 | K94: 131258 | L94: =ROUND(K94*(1-$F$3)/Лист2!$A$6,0) -> 131258 | O94: 131258
D95: G2 ВПН1 180 R290 | E95: Gamma-2 М 1800 | F95: с боковинами | G95: от -18 | H95: 1.3 | I95: 1818х1093х1300 | J95: 2000х1200х1110 | K95: 159049 | L95: =ROUND(K95*(1-$F$3)/Лист2!$A$6,0) -> 159049 | O95: 159049
D96: G2 ВПН1 180 ББ R290 | F96: без боковин | I96: 1718х1093х1300 | J96: 2000х1200х1110 | K96: 145858 | L96: =ROUND(K96*(1-$F$3)/Лист2!$A$6,0) -> 145858 | O96: 145858
D97: Угловые витрины (ВПС) | O97: 0
D98: G2ВПС1 ОС90Д R290 | E98: Gamma-2 OC 90 (угол внеш.) | F98: с боковинами | G98: 0…+7 | H98: 0.92 | I98: 1180х1180х1300 | J98: 1750х1400х1110 | K98: 132734 | L98: =ROUND(K98*(1-$F$3)/Лист2!$A$6,0) -> 132734 | O98: 132734
D99: G2ВПС1 ОС90Д R290ББ | F99: без боковин | I99: 1130х1130х1300 | J99: 1750х1400х1110 | K99: 119743 | L99: =ROUND(K99*(1-$F$3)/Лист2!$A$6,0) -> 119743 | O99: 119743
D100: G2ВПС1 IС90 R290 | E100: Gamma-2 IC 90 (угол внутр.) | F100: с боковинами | G100: 0…+7 | H100: 0.74 | I100: 1355х1355х1300 | J100: 2050х1200х1110 | K100: 146842 | L100: =ROUND(K100*(1-$F$3)/Лист2!$A$6,0) -> 146842 | O100: 146842
D101: G2ВПС1 IС90 R290 ББ | F101: без боковин | I101: 1305х1305х1300 | J101: 2050х1200х1110 | K101: 133851 | L101: =ROUND(K101*(1-$F$3)/Лист2!$A$6,0) -> 133851 | O101: 133851
D102: Кассовые прилавки | O102: 0
D103: G КНП 50ББ | E103: Прилавок Gamma КНП 500 ББ (без боковин) | F103: без боковин | G103: - | H103: - | I103: 500 х 1090 х 940 | J103: 800х1200х1110 | K103: 20977 | L103: =ROUND(K103*(1-$F$3)/Лист2!$A$6,0) -> 20977 | O103: 20977
D104: G КНП 60 | E104: Прилавок Gamma КНП 600 (с боковинами) | F104: с боковинами | G104: - | H104: - | I104: 600 х 1090 х 940 | J104: 800х1200х1110 | K104: 32047 | L104: =ROUND(K104*(1-$F$3)/Лист2!$A$6,0) -> 32047 | O104: 32047
D105: G КНП 60ББ | E105: Прилавок Gamma КНП 600 ББ (без боковин) | F105: без боковин | G105: - | H105: - | I105: 600 х 1090 х 940 | J105: 900х1200х1110 | K105: 24094 | L105: =ROUND(K105*(1-$F$3)/Лист2!$A$6,0) -> 24094 | O105: 24094
D106: G КНП 70 | E106: Прилавок Gamma КНП 700 (с боковинами) | F106: с боковинами | G106: - | H106: - | I106: 700 х 1090 х 940 | J106: 900х1200х1110 | K106: 33518 | L106: =ROUND(K106*(1-$F$3)/Лист2!$A$6,0) -> 33518 | O106: 33518
D107: G КНП 70ББ | E107: Прилавок Gamma КНП 700 ББ (без боковин) | F107: без боковин | G107: - | H107: - | I107: 700 х 1090 х 940 | J107: 1000х1200х1110 | K107: 25565 | L107: =ROUND(K107*(1-$F$3)/Лист2!$A$6,0) -> 25565 | O107: 25565
D108: G КНП 80 | E108: Прилавок Gamma КНП 800 (с боковинами) | F108: с боковинами | G108: - | H108: - | I108: 800 х 1090 х 940 | J108: 1000х1200х1110 | K108: 34260 | L108: =ROUND(K108*(1-$F$3)/Лист2!$A$6,0) -> 34260 | O108: 34260
D109: G КНП 80 ББ | E109: Прилавок Gamma КНП 800 ББ (без боковин) | F109: без боковин | G109: - | H109: - | I109: 800 х 1090 х 940 | J109: 1100х1200х1110 | K109: 28491 | L109: =ROUND(K109*(1-$F$3)/Лист2!$A$6,0) -> 28491 | O109: 28491
D110: G КНП 90 | E110: Прилавок Gamma КНП 900 (с боковинами) | F110: с боковинами | G110: - | H110: - | I110: 900 х 1090 х 940 | J110: 1100х1200х1110 | K110: 35853.104 | L110: =ROUND(K110*(1-$F$3)/Лист2!$A$6,0) -> 35853 | O110: 35853.104
D111: G КНП 90 ББ | E111: Прилавок Gamma КНП 900 ББ (без боковин) | F111: без боковин | G111: - | H111: - | I111: 900 х 1090 х 940 | J111: 1200х1200х1110 | K111: 29493 | L111: =ROUND(K111*(1-$F$3)/Лист2!$A$6,0) -> 29493
D112: G КНП 100 | E112: Прилавок Gamma КНП 1000 (с боковинами) | F112: с боковинами | G112: - | H112: - | I112: 1000 х 1090 х 940 | J112: 1200х1200х1110 | K112: 36229 | L112: =ROUND(K112*(1-$F$3)/Лист2!$A$6,0) -> 36229
D113: G КНП 100 ББ | E113: Прилавок Gamma КНП 1000 ББ (без боковин) | F113: без боковин | G113: - | H113: - | I113: 1000 х 1090 х 940 | J113: 1300х1200х1110 | K113: 32531.535 | L113: =ROUND(K113*(1-$F$3)/Лист2!$A$6,0) -> 32532
D114: G КНП 1100 | E114: Прилавок Gamma КНП 1100 (с боковинами) | F114: с боковинами | G114: - | H114: - | I114: 1100 х 1090 х 940 | J114: 1300х1200х1110 | K114: 38330.685 | L114: =ROUND(K114*(1-$F$3)/Лист2!$A$6,0) -> 38331 | O114: 38330.685
D115: G КНП OC90 | E115: Gamma-2 ОС КНП (угол внеш.) | F115: с боковинами | G115: - | H115: - | I115: 1665 х 1220 х 940 | J115: 1850х1390х1095 | K115: 48136 | L115: =ROUND(K115*(1-$F$3)/Лист2!$A$6,0) -> 48136 | O115: 48136
D116: G КНП OC90 ББ | F116: без боковин | I116: 1620 х 1195 х 940 | J116: 1850х1390х1095 | K116: 37068 | L116: =ROUND(K116*(1-$F$3)/Лист2!$A$6,0) -> 37068 | O116: 37068
D117: G КНП IC90 | E117: Gamma-2 IC КНП (угол внутр.) | F117: с боковинами | G117: - | H117: - | I117: 1885 х 1120 х 940 | J117: 2050х1300х1095 | K117: 47295 | L117: =ROUND(K117*(1-$F$3)/Лист2!$A$6,0) -> 47295 | O117: 47295
D118: G КНП IC90 ББ | F118: без боковин | I118: 1835 х 1105 х 940 | J118: 2050х1300х1095 | K118: 36227 | L118: =ROUND(K118*(1-$F$3)/Лист2!$A$6,0) -> 36227 | O118: 36227
A119: 5 | B119: Витрины серии GAMMA-2 LED, глубина выкладки 760 мм, стандартный Ral 3004. | O119: 0
B120: Стандартная комплектация: | E120: Среднетемпературные | O120: 0
B121: - агрегат | E121: Gamma-2 1200 LED | F121: с боковинами | G121: 0…+7 | H121: 0.85 | I121: 1218х1093х1300 | K121: 79279 | L121: =ROUND(K121*(1-$F$3)/Лист2!$A$6,0) -> 79279 | O121: 79279
B122: - испаритель | F122: без боковин | I122: 1118х1093х1300 | K122: 68488 | L122: =ROUND(K122*(1-$F$3)/Лист2!$A$6,0) -> 68488 | O122: 68488
B123: - шторки из оргстекла | E123: Gamma-2 1500 LED | F123: с боковинами | G123: 0…+7 | H123: 1.1 | I123: 1518х1093х1300 | K123: 84487 | L123: =ROUND(K123*(1-$F$3)/Лист2!$A$6,0) -> 84487 | O123: 84487
B124: - комплект боковин и боковых стекол | F124: без боковин | I124: 1418х1093х1300 | K124: 73696 | L124: =ROUND(K124*(1-$F$3)/Лист2!$A$6,0) -> 73696 | O124: 73696
B125: - комплект фронтальных стекол | E125: Gamma-2 1800 LED | F125: с боковинами | G125: 0…+7 | H125: 1.3 | I125: 1818х1093х1300 | K125: 99221 | L125: =ROUND(K125*(1-$F$3)/Лист2!$A$6,0) -> 99221 | O125: 99221
B126: - экспозиционные полки из шлифованной стали | F126: без боковин | I126: 1718х1093х1300 | K126: 88105 | L126: =ROUND(K126*(1-$F$3)/Лист2!$A$6,0) -> 88105 | O126: 88105
B127: - ёмкость для сбора талой воды | E127: Средне-низкотемпературные | O127: 0
B128: - светодиодная подсветка | E128: Gamma-2 SN 1200 LED | F128: с боковинами | G128: -6…+6 | H128: 0.85 | I128: 1218х1093х1300 | K128: 89313 | L128: =ROUND(K128*(1-$F$3)/Лист2!$A$6,0) -> 89313 | O128: 89313
B129: - электронный пульт управления | F129: без боковин | I129: 1118х1093х1300 | K129: 78198 | L129: =ROUND(K129*(1-$F$3)/Лист2!$A$6,0) -> 78198 | O129: 78198
B130: - деревянная тара | E130: Gamma-2 SN 1500 LED | F130: с боковинами | G130: -6…+6 | H130: 1.1 | I130: 1518х1093х1300 | K130: 100002 | L130: =ROUND(K130*(1-$F$3)/Лист2!$A$6,0) -> 100002 | O130: 100002
F131: без боковин | I131: 1418х1093х1300 | K131: 88888 | L131: =ROUND(K131*(1-$F$3)/Лист2!$A$6,0) -> 88888 | O131: 88888
E132: Gamma-2 SN 1800 LED | F132: с боковинами | G132: -6…+6 | H132: 1.3 | I132: 1818х1093х1300 | K132: 113934 | L132: =ROUND(K132*(1-$F$3)/Лист2!$A$6,0) -> 113934 | O132: 113934
F133: без боковин | I133: 1718х1093х1300 | K133: 102818 | L133: =ROUND(K133*(1-$F$3)/Лист2!$A$6,0) -> 102818 | O133: 102818
E134: Низкотемпературные | O134: 0
E135: Gamma-2 М 1200 LED | F135: с боковинами | G135: от -18 | H135: 0.85 | I135: 1218х1093х1300 | K135: 110250 | L135: =ROUND(K135*(1-$F$3)/Лист2!$A$6,0) -> 110250 | O135: 110250
F136: без боковин | I136: 1118х1093х1300 | K136: 98964 | L136: =ROUND(K136*(1-$F$3)/Лист2!$A$6,0) -> 98964 | O136: 98964
E137: Gamma-2 М 1500 LED | F137: с боковинами | G137: от -18 | H137: 1.1 | I137: 1518х1093х1300 | K137: 126052 | L137: =ROUND(K137*(1-$F$3)/Лист2!$A$6,0) -> 126052 | O137: 126052
F138: без боковин | I138: 1418х1093х1300 | K138: 114766 | L138: =ROUND(K138*(1-$F$3)/Лист2!$A$6,0) -> 114766 | O138: 114766
E139: Gamma-2 М 1800 LED | F139: с боковинами | G139: от -18 | H139: 1.3 | I139: 1818х1093х1300 | K139: 138793 | L139: =ROUND(K139*(1-$F$3)/Лист2!$A$6,0) -> 138793 | O139: 138793
F140: без боковин | I140: 1718х1093х1300 | K140: 127507 | L140: =ROUND(K140*(1-$F$3)/Лист2!$A$6,0) -> 127507 | O140: 127507
A141: 6 | B141: Витрины серии GAMMA-2 FISH, глубина выкладки 760 мм, стандартный Ral 3004. | O141: 0
E142: Средне-низкотемпературные | O142: 0
B143: - усиленный поддон для льда и рыбы | E143: Gamma-2 SN FISH 1200 | F143: с боковинами | G143: -6…+6 | H143: 0.85 | I143: 1218х1093х1300 | K143: 97693 | L143: =ROUND(K143*(1-$F$3)/Лист2!$A$6,0) -> 97693 | O143: 97693
B144: - коррозионностойкая решётка защиты испарителя | F144: без боковин | I144: 1118х1093х1300 | K144: 86578 | L144: =ROUND(K144*(1-$F$3)/Лист2!$A$6,0) -> 86578 | O144: 86578
B145: - увеличенный слив (Д 40 мм) | E145: Gamma-2 SN FISH 1500 | F145: с боковинами | G145: -6…+6 | H145: 1.1 | I145: 1518х1093х1300 | K145: 112989 | L145: =ROUND(K145*(1-$F$3)/Лист2!$A$6,0) -> 112989 | O145: 112989
F146: без боковин | I146: 1418х1093х1300 | K146: 101874 | L146: =ROUND(K146*(1-$F$3)/Лист2!$A$6,0) -> 101874 | O146: =K146-N146 -> 101874
E147: Gamma-2 SN FISH 1800 | F147: с боковинами | G147: -6…+6 | H147: 1.3 | I147: 1818х1093х1300 | K147: 126856 | L147: =ROUND(K147*(1-$F$3)/Лист2!$A$6,0) -> 126856 | O147: 126856
F148: без боковин | I148: 1718х1093х1300 | K148: 115742 | L148: =ROUND(K148*(1-$F$3)/Лист2!$A$6,0) -> 115742 | O148: 115742
A149: 5 | B149: Витрины серии GAMMA QUADRO, глубина выкладки 760 мм, стандартный Ral 9016/7016. | K149: Опции Gamma Quadro | M149: EL.2.G9016гл.В7016гл.V0.PS
A150: Стандартная комплектация: | D150: Среднетемпературные, ВПС | M150: *нажмите чтобы перейти в список опций | O150: 0
D151: G2QUADLXВПС1 120R290 | E151: Gamma Quadro 1200 | F151: с боковинами | G151: 0…+7 | H151: 0.85 | I151: 1218х1087х1209 | J151: 1400х1200х1110 | K151: 110381 | L151: =ROUND(K151*(1-$F$3)/Лист2!$A$6,0) -> 110381 | O151: 110381
D152: G2QUADLXВПС1 120R290ББ | F152: без боковин | I152: 1118х1087х1209 | J152: 1400х1200х1110 | K152: 96756 | L152: =ROUND(K152*(1-$F$3)/Лист2!$A$6,0) -> 96756 | O152: 96756
D153: G2QUADLXВПС1 150R290 | E153: Gamma Quadro 1500 | F153: с боковинами | G153: 0…+7 | H153: 1.1 | I153: 1518х1087х1209 | J153: 1700х1200х1110 | K153: 117944 | L153: =ROUND(K153*(1-$F$3)/Лист2!$A$6,0) -> 117944 | O153: 117944
D154: G2QUADLXВПС1 150R290ББ | F154: без боковин | I154: 1418х1087х1209 | J154: 1700х1200х1110 | K154: 104320 | L154: =ROUND(K154*(1-$F$3)/Лист2!$A$6,0) -> 104320 | O154: 104320
D155: G2QUADLXВПС1 180R290 | E155: Gamma Quadro 1800 | F155: с боковинами | G155: 0…+7 | H155: 1.3 | I155: 1818х1087х1209 | J155: 2000х1200х1110 | K155: 141427 | L155: =ROUND(K155*(1-$F$3)/Лист2!$A$6,0) -> 141427 | O155: 141427
D156: G2QUADLXВПС1 180R290ББ | F156: без боковин | I156: 1718х1087х1209 | J156: 2000х1200х1110 | K156: 127802 | L156: =ROUND(K156*(1-$F$3)/Лист2!$A$6,0) -> 127802 | O156: 127802
D157: Средне-низкотемпературные, ВПСН | O157: 0
D158: G2QUADLXВПСН1 120R290 | E158: Gamma Quadro SN 1200 | F158: с боковинами | G158: -6…+6 | H158: 0.85 | I158: 1218х1087х1209 | J158: 1400х1200х1110 | K158: 119381 | L158: =ROUND(K158*(1-$F$3)/Лист2!$A$6,0) -> 119381 | O158: 119381
D159: G2QLXВПСН1 120VR290 | F159: без боковин | I159: 1118х1087х1209 | J159: 1400х1200х1110 | K159: 105756 | L159: =ROUND(K159*(1-$F$3)/Лист2!$A$6,0) -> 105756 | O159: 105756
D160: G2QUADLXВПСН1 150R290 | E160: Gamma Quadro SN 1500 | F160: с боковинами | G160: -6…+6 | H160: 1.1 | I160: 1518х1087х1209 | J160: 1700х1200х1110 | K160: 137539 | L160: =ROUND(K160*(1-$F$3)/Лист2!$A$6,0) -> 137539 | O160: 137539
D161: G2QUADLXВПСН1 150R290ББ | F161: без боковин | I161: 1418х1087х1209 | J161: 1700х1200х1110 | K161: 123914 | L161: =ROUND(K161*(1-$F$3)/Лист2!$A$6,0) -> 123914 | O161: 123914
D162: G2QUADLXВПСН1 180R290 | E162: Gamma Quadro SN 1800 | F162: с боковинами | G162: -6…+6 | H162: 1.3 | I162: 1818х1087х1209 | J162: 2000х1200х1110 | K162: 156163 | L162: =ROUND(K162*(1-$F$3)/Лист2!$A$6,0) -> 156163 | O162: 156163
D163: G2QUADLXВПСН1 180R290ББ | F163: без боковин | I163: 1718х1087х1209 | J163: 2000х1200х1110 | K163: 142538 | L163: =ROUND(K163*(1-$F$3)/Лист2!$A$6,0) -> 142538 | O163: 142538
D164: Низкотемпературные, ВПН | O164: 0
D165: G2QUADLXВПН1 120R290 | E165: Gamma Quadro М 1200 | F165: с боковинами | G165: от -18 | H165: 0.85 | I165: 1218х1087х1209 | J165: 1400х1200х1110 | K165: 139566 | L165: =ROUND(K165*(1-$F$3)/Лист2!$A$6,0) -> 139566 | O165: 139566
D166: G2QUADLXВПН1 120R290 ББ | F166: без боковин | I166: 1118х1087х1209 | J166: 1400х1200х1110 | K166: 122610 | L166: =ROUND(K166*(1-$F$3)/Лист2!$A$6,0) -> 122610 | O166: 122610
D167: G2QUADLXВПН1 150R290 | E167: Gamma Quadro М 1500 | F167: с боковинами | G167: от -18 | H167: 1.1 | I167: 1518х1087х1209 | J167: 1700х1200х1110 | K167: 158835 | L167: =ROUND(K167*(1-$F$3)/Лист2!$A$6,0) -> 158835 | O167: 158835
F168: без боковин | I168: 1418х1087х1209 | J168: 1700х1200х1110 | K168: 141879 | L168: =ROUND(K168*(1-$F$3)/Лист2!$A$6,0) -> 141879 | O168: 141879
D169: G2QUADLXВПН1 180R290 | E169: Gamma Quadro М 1800 | F169: с боковинами | G169: от -18 | H169: 1.3 | I169: 1818х1087х1209 | J169: 2000х1200х1110 | K169: 184645 | L169: =ROUND(K169*(1-$F$3)/Лист2!$A$6,0) -> 184645 | O169: 184645
D170: G2QUADLXВПН1 180R290ББ | F170: без боковин | I170: 1718х1087х1209 | J170: 2000х1200х1110 | K170: 167690 | L170: =ROUND(K170*(1-$F$3)/Лист2!$A$6,0) -> 167690 | O170: 167690
D171: Угловые витрины (ВПС) | O171: 0
D172: G2QUADLXВПС1 OC90Д R290 | E172: Gamma Quadro OC 90 (угол внеш.) | F172: с боковинами | G172: 0…+7 | H172: 0.92 | I172: 1180х1180х1209 | J172: 1750х1400х1110 | K172: 165101 | L172: =ROUND(K172*(1-$F$3)/Лист2!$A$6,0) -> 165101 | O172: 165101
D173: G2QUADLXВПС1 OC90Д ББR290 | F173: без боковин | I173: 1130х1130х1209 | J173: 1750х1400х1110 | K173: 151479 | L173: =ROUND(K173*(1-$F$3)/Лист2!$A$6,0) -> 151479 | O173: 151479
D174: G2QUADLXВПС1 IC90R290 | E174: Gamma Quadro IC 90 (угол внутр.) | F174: с боковинами | G174: 0…+7 | H174: 0.74 | I174: 1355х1355х1209 | J174: 2050х1200х1110 | K174: 165101 | L174: =ROUND(K174*(1-$F$3)/Лист2!$A$6,0) -> 165101 | O174: 165101
D175: G2QUADLXВПС1 IC90ББR290 | F175: без боковин | I175: 1305х1305х1209 | J175: 2050х1200х1110 | K175: 151479 | L175: =ROUND(K175*(1-$F$3)/Лист2!$A$6,0) -> 151479 | O175: 151479
D176: Кассовые прилавки | O176: 0
D177: G2Q КНП LX 500RББ | E177: Gamma Quadro КНП 500 ББ | F177: без боковин | G177: - | H177: - | I177: 500х1087х940 | J177: 750х1250х1085 | K177: 24090 | L177: =ROUND(K177*(1-$F$3)/Лист2!$A$6,0) -> 24090 | O177: 24090
D178: G2Q КНП LX 800RББ | E178: Gamma Quadro КНП 800 ББ | F178: без боковин | I178: 800х1087х940 | J178: 1050х1250х1085 | K178: 39706 | L178: =ROUND(K178*(1-$F$3)/Лист2!$A$6,0) -> 39706 | O178: 39706
D179: G2Q КНП LX 1000RББ | E179: Gamma Quadro КНП 1000 ББ | F179: без боковин | I179: 1000х1087х940 | J179: 1250х1250х1085 | K179: 46470 | L179: =ROUND(K179*(1-$F$3)/Лист2!$A$6,0) -> 46470 | O179: 46470
D180: G2QLX КНП ОC90R ББ | E180: Gamma Quadro ОС КНП (угол внеш.) | F180: без боковин | G180: - | H180: - | I180: 1611х1192х940 | J180: 1850х1390х1095 | K180: 43672 | L180: =ROUND(K180*(1-$F$3)/Лист2!$A$6,0) -> 43672 | O180: 43672
D181: G2QLX КНП IC90R ББ | E181: Gamma Quadro IС КНП (угол внутр.) | F181: без боковин | I181: 1834х1096х940 | J181: 2050х1300х1085 | K181: 37313 | L181: =ROUND(K181*(1-$F$3)/Лист2!$A$6,0) -> 37313 | O181: 37313
A182: 6 | B182: Витрины серии GAMMA Quadro FISH, глубина выкладки 760 мм, стандартный Ral 3004. | M182: EL.2.G3004гл.В7016гл.V0.PS | O182: 0
D183: Средне-низкотемпературные, ВПСН | O183: 0
D184: G2QULXВПСН1 120F R290 | E184: Gamma Quadro SN FISH 1200 LED | F184: с боковинами | G184: -6…+6 | H184: 0.85 | I184: 1218х1093х1300 | J184: 1400х1200х1110 | K184: 130321 | L184: =ROUND(K184*(1-$F$3)/Лист2!$A$6,0) -> 130321 | O184: 130321
D185: G2QULXВПСН1 120F R290 ББ | F185: без боковин | I185: 1118х1093х1300 | J185: 1400х1200х1110 | K185: 116697 | L185: =ROUND(K185*(1-$F$3)/Лист2!$A$6,0) -> 116697 | O185: 116697
D186: G2QULXВПСН1 150F R290 | E186: Gamma Quadro SN FISH 1500 LED | F186: с боковинами | G186: -6…+6 | H186: 1.1 | I186: 1518х1093х1300 | J186: 1700х1200х1110 | K186: 151423 | L186: =ROUND(K186*(1-$F$3)/Лист2!$A$6,0) -> 151423 | O186: 151423
D187: G2QULXВПСН1 150F R290 ББ | F187: без боковин | I187: 1418х1093х1300 | J187: 1700х1200х1110 | K187: 137798 | L187: =ROUND(K187*(1-$F$3)/Лист2!$A$6,0) -> 137798 | O187: 137798
D188: G2QULXВПСН1 180F R290 | E188: Gamma Quadro SN FISH 1800 LED | F188: с боковинами | G188: -6…+6 | H188: 1.3 | I188: 1818х1093х1300 | J188: 2000х1200х1110 | K188: 170616 | L188: =ROUND(K188*(1-$F$3)/Лист2!$A$6,0) -> 170616 | O188: 170616
D189: G2QULXВПСН1 180F R290 ББ | F189: без боковин | I189: 1718х1093х1300 | J189: 2000х1200х1110 | K189: 156991 | L189: =ROUND(K189*(1-$F$3)/Лист2!$A$6,0) -> 156991 | O189: 156991
A190: 7 | B190: Витрины серии GAMMA Quadro SELF (низкое стекло), динамический холод, без запасника, глубина выкладки 760 мм, стандартный Ral 3004. | M190: EL.0.G3004гл.В7016гл.V0.PS | O190: 0
D191: G2QLXВПС1 SG120 R290 | E191: Gamma Quadro Self 1200 (динамический холод) | F191: с боковинами | G191: 0…+7 | H191: 0.85 | I191: 1204х1096х934 | J191: 1400х1200х1110 | K191: 120605 | L191: =ROUND(K191*(1-$F$3)/Лист2!$A$6,0) -> 120605 | O191: 120605
F192: без боковин | J192: 1400х1200х1110 | K192: 112344 | L192: =ROUND(K192*(1-$F$3)/Лист2!$A$6,0) -> 112344 | O192: 112344
D193: G2QLXВПС1 SGF120 R290 | E193: Gamma Quadro Self Fish 1200 (динамический холод) | F193: с боковинами | G193: 0…+7 | H193: 0.85 | I193: 1204х1096х934 | J193: 1400х1200х1110 | K193: 132667 | L193: =ROUND(K193*(1-$F$3)/Лист2!$A$6,0) -> 132667 | O193: 132667
F194: без боковин | J194: 1400х1200х1110 | K194: 124406 | L194: =ROUND(K194*(1-$F$3)/Лист2!$A$6,0) -> 124406 | O194: 124406
O195: 0
O196: 0
A197: 8 | B197: Витрины серии Sonata Quadro, глубина выкладки 760 мм, стандартный Ral 7016 | M197: EL.2.G7016гл.В7016гл.V0.PS | O197: 0
D198: Среднетемпературные, ВПС | O198: 0
D199: SONQВПС120R290 | E199: Sonata Quadro 1200 LED | F199: с боковинами | G199: 0…+7 | H199: 0.85 | I199: 1218х1087х1209 | J199: 1400х1200х1110 | K199: 98667 | L199: =ROUND(K199*(1-$F$3)/Лист2!$A$6,0) -> 98667 | O199: 98667
D200: SONQВПС150R290 | E200: Sonata Quadro 1500 LED | F200: с боковинами | G200: 0…+7 | H200: 1.1 | I200: 1518х1087х1209 | J200: 1700х1200х1110 | K200: 113918 | L200: =ROUND(K200*(1-$F$3)/Лист2!$A$6,0) -> 113918 | O200: 113918
D201: SONQВПС180R290 | E201: Sonata Quadro 1800 LED | F201: с боковинами | G201: 0…+7 | H201: 1.3 | I201: 1818х1087х1209 | J201: 2000х1200х1110 | K201: 127636 | L201: =ROUND(K201*(1-$F$3)/Лист2!$A$6,0) -> 127636 | O201: 127636
D202: Средне-низкотемпературные, ВПСН | O202: 0
D203: SONQВПСН120R290 | E203: Sonata Quadro SN 1200 LED | F203: с боковинами | G203: -6…+6 | H203: 0.85 | I203: 1218х1087х1209 | J203: 1400х1200х1110 | K203: 100805 | L203: =ROUND(K203*(1-$F$3)/Лист2!$A$6,0) -> 100805 | O203: 100805
D204: SONQВПСН150R290 | E204: Sonata Quadro SN 1500 LED | F204: с боковинами | G204: -6…+6 | H204: 1.1 | I204: 1518х1087х1209 | J204: 1700х1200х1110 | K204: 120025 | L204: =ROUND(K204*(1-$F$3)/Лист2!$A$6,0) -> 120025 | O204: 120025
D205: SONQВПСН180R290 | E205: Sonata Quadro SN 1800 LED | F205: с боковинами | G205: -6…+6 | H205: 1.3 | I205: 1818х1087х1209 | J205: 2000х1200х1110 | K205: 133870 | L205: =ROUND(K205*(1-$F$3)/Лист2!$A$6,0) -> 133870 | O205: 133870
... 136 more rows

Sheet Витрины Cryspi (выносное ХО)
B3: Ваша скидка: | E3: =Содержание!D2 -> 0
B4: НДС: | E4: =IF(Лист2!A1=TRUE,"С НДС","БЕЗ НДС") -> С НДС
B7: Витрины Cryspi без агрегата
A8: № | B8: Изображение | C8: Артикул | D8: Наименование | E8: Температурный режим, C° | F8: Площадь экспозиции, кв.м. | G8: Габариты без боковин, мм (L/W/H) | H8: Габариты в упаковке, мм (L/W/H) | I8: Базовая цена, руб. (с НДС) | J8: =[6]Лист2!$A$5 -> Ваша цена, руб.
A10: Базовая комплектация: - Статическая система охлаждения, компрессор R-290; - Электронный контроллер для управления работой витрины; - Оттайка для версий ВПС - естественная (без ТЭНа), для версий ВПСН и ВПН - ТЭН (по умолчанию); - Общее светодиодное освещение для версий с высоким стеклом - стандартный - 4000К, опционально - 3000К, 6500К, мясной; - Товарный накопитель для линейных модулей (запасник с дверкой) (кроме НТ); - без боковин; - Упаковка в деревянную обрешетку | E10: - Внутренний объем для витрин ВПС и ВПСН - оцинкованный металл, внутренний объем в зоне выкладки - нерж.сталь; - Внутренний объем для витрин ВПН - оцинкованный металл с полимерным покрытием - Ночные шторки для витрин с высоким стеклом; - Фронтальное стекло закаленное, не открывается; - Емкость для сбора талой воды, опционально возможно применение выпаривателя;
A11: 1 | B11: Витрины серии GAMMA-2, глубина выкладки 760 мм | I11: Опции Gamma-2
C12: Среднетемпературные витрины (без боковых панелей и боковых стекол) | K12: EL.2.G3004гл.В3004гл.V0.PS
C13: G2 ВПС2 120 R290ББ | D13: Gamma-2 1200 БА ББ | E13: 0…+7 | F13: 0.85 | G13: 1118х1093х1300 | H13: 1400х1200х1110 | I13: 71847 | J13: =ROUND(I13*(1-$E$3)/Лист2!$A$6,0) -> 71847
C14: G2 ВПС2 150 R290ББ | D14: Gamma-2 1500 БА ББ | E14: 0…+7 | F14: 1.1 | G14: 1418х1093х1300 | H14: 1700х1200х1110 | I14: 80662 | J14: =ROUND(I14*(1-$E$3)/Лист2!$A$6,0) -> 80662
C15: G2 ВПС2 180 R290ББ | D15: Gamma-2 1800 БА ББ | E15: 0…+7 | F15: 1.3 | G15: 1718х1093х1300 | H15: 2000х1200х1110 | I15: 94211 | J15: =ROUND(I15*(1-$E$3)/Лист2!$A$6,0) -> 94211
C16: Средне-низкотемпературные витрины (без боковых панелей и боковых стекол)
C17: G2 ВПСН2 120 R290ББ | D17: Gamma-2 SN 1200 БА ББ | E17: -6…+6 | F17: 0.85 | G17: 1118х1093х1300 | H17: 1400х1200х1110 | I17: 82886 | J17: =ROUND(I17*(1-$E$3)/Лист2!$A$6,0) -> 82886
C18: G2 ВПСН2 150 R290ББ | D18: Gamma-2 SN 1500 БА ББ | E18: -6…+6 | F18: 1.1 | G18: 1418х1093х1300 | H18: 1700х1200х1110 | I18: 91189 | J18: =ROUND(I18*(1-$E$3)/Лист2!$A$6,0) -> 91189
C19: G2 ВПСН2 180 R290ББ | D19: Gamma-2 SN 1800 БА ББ | E19: -6…+6 | F19: 1.3 | G19: 1718х1093х1300 | H19: 2000х1200х1110 | I19: 111541 | J19: =ROUND(I19*(1-$E$3)/Лист2!$A$6,0) -> 111541
C20: Низкотемпературные витрины (без боковых панелей и боковых стекол)
D21: Gamma-2 М 1200 БА ББ | E21: от -18 | F21: 0.85 | G21: 1118х1093х1300 | H21: 1400х1200х1110 | I21: 91411 | J21: =ROUND(I21*(1-$E$3)/Лист2!$A$6,0) -> 91411
D22: Gamma-2 М 1500 БА ББ | E22: от -18 | F22: 1.1 | G22: 1418х1093х1300 | H22: 1700х1200х1110 | I22: 104665 | J22: =ROUND(I22*(1-$E$3)/Лист2!$A$6,0) -> 104665
D23: Gamma-2 М 1800 БА ББ | E23: от -18 | F23: 1.3 | G23: 1718х1093х1300 | H23: 2000х1200х1110 | I23: 117756 | J23: =ROUND(I23*(1-$E$3)/Лист2!$A$6,0) -> 117756
C24: Угловые среднетемпературные и нейтральные витрины, кассовые прилавки
C25: G2ВПС2 ОС90Д ББ | D25: Gamma-2 OC 90 (угол внеш.) БА ББ | E25: 0…+7 | F25: 0.92 | G25: 1130х1130х1300 | H25: 1180х1180х1300 | I25: 115569 | J25: =ROUND(I25*(1-$E$3)/Лист2!$A$6,0) -> 115569
C26: G2ВПС2 IС90Д ББ | D26: Gamma-2 IC (угол внутр.) БА ББ | E26: 0…+7 | F26: 0.74 | G26: 1295х1295х1300 | H26: 1305х1305х1300 | I26: 124478 | J26: =ROUND(I26*(1-$E$3)/Лист2!$A$6,0) -> 124478
A27: 2 | B27: Витрины серии GAMMA Quadro LED, глубина выкладки 760 мм | I27: Опции Gamma Quadro | K27: EL.2.G9016гл.В7016гл.V0.PS
C28: Среднетемпературные витрины (без боковых панелей и боковых стекол)
C29: G2QUADLXВПС1 120БА ББ | D29: Gamma Quadro 1200 LED БА ББ | E29: 0…+7 | F29: 0.85 | G29: 1118х1093х1300 | H29: 1400х1200х1110 | I29: 91434 | J29: =ROUND(I29*(1-$E$3)/Лист2!$A$6,0) -> 91434
C30: G2QUADLXВПС1 150БА ББ | D30: Gamma Quadro 1500 LED БА ББ | E30: 0…+7 | F30: 1.1 | G30: 1418х1093х1300 | H30: 1700х1200х1110 | I30: 98581 | J30: =ROUND(I30*(1-$E$3)/Лист2!$A$6,0) -> 98581
C31: G2QUADLXВПС1 180БА ББ | D31: Gamma Quadro 1800 LED БА ББ | E31: 0…+7 | F31: 1.3 | G31: 1718х1093х1300 | H31: 2000х1200х1110 | I31: 115022 | J31: =ROUND(I31*(1-$E$3)/Лист2!$A$6,0) -> 115022
C32: Средне-низкотемпературные витрины (без боковых панелей и боковых стекол)
C33: G2QUADLXВПСН1 120БА ББ | D33: Gamma Quadro SN 1200 LED БА ББ | E33: -6…+6 | F33: 0.85 | G33: 1118х1093х1300 | H33: 1400х1200х1110 | I33: 95180 | J33: =ROUND(I33*(1-$E$3)/Лист2!$A$6,0) -> 95180
C34: G2QUADLXВПСН1 150БА ББ | D34: Gamma Quadro SN 1500 LED БА ББ | E34: -6…+6 | F34: 1.1 | G34: 1418х1093х1300 | H34: 1700х1200х1110 | I34: 111524 | J34: =ROUND(I34*(1-$E$3)/Лист2!$A$6,0) -> 111524
C35: G2QUADLXВПСН1 180БА ББ | D35: Gamma Quadro SN 1800 LED БА ББ | E35: -6…+6 | F35: 1.3 | G35: 1718х1093х1300 | H35: 2000х1200х1110 | I35: 128283 | J35: =ROUND(I35*(1-$E$3)/Лист2!$A$6,0) -> 128283
C36: Низкотемпературные витрины (без боковых панелей и боковых стекол)
D37: Gamma Quadro M 1200 LED БА ББ | E37: от -18 | F37: 0.85 | G37: 1118х1093х1300 | H37: 1400х1200х1110 | I37: 110350 | J37: =ROUND(I37*(1-$E$3)/Лист2!$A$6,0) -> 110350
D38: Gamma Quadro M 1500 LED БА ББ | E38: от -18 | F38: 1.1 | G38: 1418х1093х1300 | H38: 1700х1200х1110 | I38: 127690 | J38: =ROUND(I38*(1-$E$3)/Лист2!$A$6,0) -> 127690
C39: G2QUADLXВПН1 180БА ББ | D39: Gamma Quadro M 1800 LED БА ББ | E39: от -18 | F39: 1.3 | G39: 1718х1093х1300 | H39: 2000х1200х1110 | I39: 150920 | J39: =ROUND(I39*(1-$E$3)/Лист2!$A$6,0) -> 150920
C40: Угловые витрины
C41: G2QUADLXВПС1 ОС90 БА ББ | D41: Витрина холодильная ВПС Gamma-2 QuadroLX ОС90 БА ББ | E41: 0…+7 | F41: 0.92 | G41: 1180х1180х1209 | H41: 1180х1180х1300 | I41: 128756 | J41: =ROUND(I41*(1-$E$3)/Лист2!$A$6,0) -> 128756 | K41: установка за февраль
C42: G2QUADLXВПС1 IС90 БА ББ | D42: Витрина холодильная ВПС Gamma-2 QuadroLX IС90 БА ББ | E42: 0…+7 | F42: 0.74 | G42: 1355х1355х1209 | H42: 1305х1305х1300 | I42: 121183 | J42: =ROUND(I42*(1-$E$3)/Лист2!$A$6,0) -> 121183
A44: Базовая комплектация: Динамическая система охлаждения, - Электронный контроллер; - Оттайка для версий ВПС - естественная, для версий ВПСН и ВПН - ТЭН (по умолчанию); - Общее освещение для версий с высоким стеклом - нейтральное (4000К), витрины с низким стеклом без освещения; - Товарный накопитель для линейных модулей (запасник с дверкой) (кроме НТ); - Без боковин; - Упаковка в деревянной обрешетке; | E44: - Внутренний объем - оцинкованный металл, внутренний объем в зоне выкладки - нерж.сталь; - Ночные шторки для витрин с высоким стеклом; - Фронтальное стекло закаленное (Magnum Eco – стекло открывается сверху-вниз, Magnum Quadro – стекло открывается сверху-вниз без гидролифта; Magnum – стекло открывается снизу-вверх, опционально возможно применение гидролифта;) - Емкость для сбора талой воды, опционально возможно применение выпаривателя;
A45: 3 | B45: Витрины серии MAGNUM Eco, глубина выкладки 860 мм
C46: Среднетемпературные | I46: Опции Magnum ECO | K46: EL.PS.2.V0.T.Y7016.P7016 для витрин с боковинами добавить комплекты боковин: 676.50.01.00; 676.50.02.00
C47: 1138.00.00.00 | D47: Magnum Eco 1250 БА ББ | E47: 0…+7 | F47: 1.075 | G47: 1250х1130х1235 | H47: 1510х1190х1150 | I47: 94689 | J47: =ROUND(I47*(1-$E$3)/Лист2!$A$6,0) -> 94689
C48: 1138.00.00.00-01 | D48: Magnum Eco 1880 БА ББ | F48: 1.61 | G48: 1875х1130х1235 | H48: 2140х1190х1150 | I48: 123708 | J48: =ROUND(I48*(1-$E$3)/Лист2!$A$6,0) -> 123708
C49: 1138.00.00.00-02 | D49: Magnum Eco 2500 БА ББ | F49: 2.15 | G49: 2500х1130х1235 | H49: 2760х1190х1150 | I49: 157174 | J49: =ROUND(I49*(1-$E$3)/Лист2!$A$6,0) -> 157174
C50: 1138.00.00.00-03 | D50: Magnum Eco 3750 БА ББ | F50: 3.22 | G50: 3750х1130х1235 | H50: 4010х1190х1150 | I50: 199907 | J50: =ROUND(I50*(1-$E$3)/Лист2!$A$6,0) -> 199907
C51: Средне-низкотемпературные
C52: 1139.00.00.00 | D52: Magnum Eco SN 1250 БА ББ | E52: ­5…+7 | F52: 1.075 | G52: 1250х1130х1235 | H52: 1510х1190х1150 | I52: 102816 | J52: =ROUND(I52*(1-$E$3)/Лист2!$A$6,0) -> 102816
C53: 1139.00.00.00-01 | D53: Magnum Eco SN 1880 БА ББ | F53: 1.61 | G53: 1875х1130х1235 | H53: 2140х1190х1150 | I53: 131395 | J53: =ROUND(I53*(1-$E$3)/Лист2!$A$6,0) -> 131395
C54: 1139.00.00.00-02 | D54: Magnum Eco SN 2500 БА ББ | F54: 2.15 | G54: 2500х1130х1235 | H54: 2760х1190х1150 | I54: 161951 | J54: =ROUND(I54*(1-$E$3)/Лист2!$A$6,0) -> 161951
C55: 1139.00.00.00-03 | D55: Magnum Eco SN 3750 БА ББ | F55: 3.22 | G55: 3750х1130х1235 | H55: 4010х1190х1150 | I55: 220614 | J55: =ROUND(I55*(1-$E$3)/Лист2!$A$6,0) -> 220614
A56: 4 | B56: Витрины серии MAGNUM, глубина выкладки 860 мм | I56: Опции Magnum
C57: Среднетемпературные | K57: EL.PS.2.V0.T.Y7016.P7016 для витрин с боковинами добавить комплекты боковин: 433.50.1000.00; 433.50.2000.00
C58: MAG ВПС2 125 БА ББ | D58: Magnum 1250 БА ББ | E58: 0…+7 | F58: 1.075 | G58: 1250х1095х1235 | H58: 1510х1190х1150 | I58: 115613 | J58: =ROUND(I58*(1-$E$3)/Лист2!$A$6,0) -> 115613
C59: MAG ВПС2 188 БА ББ | D59: Magnum 1880 БА ББ | F59: 1.61 | G59: 1875х1095х1235 | H59: 2140х1190х1150 | I59: 159995 | J59: =ROUND(I59*(1-$E$3)/Лист2!$A$6,0) -> 159995
C60: MAG ВПС2 250 БА ББ | D60: Magnum 2500 БА ББ | F60: 2.15 | G60: 2500х1095х1235 | H60: 2760х1190х1150 | I60: 188313 | J60: =ROUND(I60*(1-$E$3)/Лист2!$A$6,0) -> 188313
C61: MAG ВПС2 375 БА ББ | D61: Magnum 3750 БА ББ | F61: 3.22 | G61: 3750х1095х1235 | H61: 4010х1190х1150 | I61: 241371 | J61: =ROUND(I61*(1-$E$3)/Лист2!$A$6,0) -> 241371
C62: Средне-низкотемпературные
C63: MAG ВПСН2 125 БА ББ | D63: Magnum SN 1250 БА ББ | E63: ­5…+7 | F63: 1.075 | G63: 1250х1095х1235 | H63: 1510х1190х1150 | I63: 125978 | J63: =ROUND(I63*(1-$E$3)/Лист2!$A$6,0) -> 125978
C64: MAG ВПСН2 188 БА ББ | D64: Magnum SN 1880 БА ББ | F64: 1.61 | G64: 1875х1095х1235 | H64: 2140х1190х1150 | I64: 169803 | J64: =ROUND(I64*(1-$E$3)/Лист2!$A$6,0) -> 169803
C65: MAG ВПСН2 250 БА ББ | D65: Magnum SN 2500 БА ББ | F65: 2.15 | G65: 2500х1095х1235 | H65: 2760х1190х1150 | I65: 208482 | J65: =ROUND(I65*(1-$E$3)/Лист2!$A$6,0) -> 208482
C66: MAG ВПСН2 375 БА ББ | D66: Magnum SN 3750 БА ББ | F66: 3.22 | G66: 3750х1095х1235 | H66: 4010х1190х1150 | I66: 274440 | J66: =ROUND(I66*(1-$E$3)/Лист2!$A$6,0) -> 274440
C67: Низкотемпературные | K67: EL.PS.2.V0.T.Y7016.P7016 для витрин с боковинами добавить комплекты боковин: 476.50.1000.00; 476.50.2000.00
C68: 1208.00.00.00 | D68: Magnum F 1250 БА ББ | E68: не выше -15 | F68: 1.075 | G68: 1250х1095х1235 | H68: 1510х1190х1150 | I68: 140261 | J68: =ROUND(I68*(1-$E$3)/Лист2!$A$6,0) -> 140261
C69: 1208.00.00.00-01 | D69: Magnum F 1880 БА ББ | F69: 1.61 | G69: 1875х1095х1235 | H69: 2140х1190х1150 | I69: 198246 | J69: =ROUND(I69*(1-$E$3)/Лист2!$A$6,0) -> 198246
C70: 1208.00.00.00-02 | D70: Magnum F 2500 БА ББ | F70: 2.15 | G70: 2500х1095х1235 | H70: 2760х1190х1150 | I70: 228485 | J70: =ROUND(I70*(1-$E$3)/Лист2!$A$6,0) -> 228485
C71: 1208.00.00.00-03 | D71: Magnum F 3750 БА ББ | F71: 3.22 | G71: 3750х1095х1235 | H71: 4010х1190х1150 | I71: 360780 | J71: =ROUND(I71*(1-$E$3)/Лист2!$A$6,0) -> 360780
C72: Среднетемпературные с низким стеклом | K72: EL.PS.0.V0.T.Y7016.P7016 для витрин с боковинами добавить комплекты боковин: 276.50.01.000; 276.50.02.00
C73: MAG ВПС2 SG125 БА ББ | D73: Magnum SG 1250 БА ББ | E73: 0…+7 | F73: 1.075 | G73: 1250х1095х895 | H73: 1510х1190х1150 | I73: 99123 | J73: =ROUND(I73*(1-$E$3)/Лист2!$A$6,0) -> 99123
C74: MAG ВПС2 SG188 БА ББ | D74: Magnum SG 1880 БА ББ | F74: 1.61 | G74: 1880х1095х895 | H74: 2140х1190х1150 | I74: 133693 | J74: =ROUND(I74*(1-$E$3)/Лист2!$A$6,0) -> 133693
C75: MAG ВПС2 SG250 БА ББ | D75: Magnum SG 2500 БА ББ | F75: 2.15 | G75: 2500х1095х895 | H75: 2760х1190х1150 | I75: 161729 | J75: =ROUND(I75*(1-$E$3)/Лист2!$A$6,0) -> 161729
C76: MAG ВПС2 SG375 БА ББ | D76: Magnum SG 3750 БА ББ | F76: 3.22 | G76: 3750х1095х895 | H76: 4010х1190х1150 | I76: 205547 | J76: =ROUND(I76*(1-$E$3)/Лист2!$A$6,0) -> 205547
C77: Угловые витрины | K77: EL.PS.2.V0.T.Y7016.P7016 для витрин с боковинами добавить комплекты боковин: 476.50.1000.00; 476.50.2000.00
C78: MAG ВПС2 ОC90 БА ББ | D78: Magnum OC 90 БА ББ | E78: 0…+7 | F78: 1.192 | G78: 1360х1360х1235 | H78: 2170х1380х1080 | I78: 210118 | J78: =ROUND(I78*(1-$E$3)/Лист2!$A$6,0) -> 210118
C79: MAG ВПС2 ОCSG90 БА ББ | D79: Magnum ОC SG 90 БА ББ | F79: 1.192 | G79: 1360х1360х895 | H79: 2170х1300х1080 | I79: 162929 | J79: =ROUND(I79*(1-$E$3)/Лист2!$A$6,0) -> 162929
C80: MAG ВПС2 IC90 БА ББ | D80: Magnum IC 90 БА ББ | F80: 1.08 | G80: 1320х1320х1235 | H80: 2170х1380х1080 | I80: 204018 | J80: =ROUND(I80*(1-$E$3)/Лист2!$A$6,0) -> 204018 | K80: EL.PS.0.V0.T.Y7016.P7016 для витрин с боковинами добавить комплекты боковин: 276.50.01.000; 276.50.02.00
C81: MAG ВПС2 ICSG90 БА ББ | D81: Magnum IC SG 90 БА ББ | F81: 1.08 | G81: 1320х1320х895 | H81: 2170х1300х1080 | I81: 192179 | J81: =ROUND(I81*(1-$E$3)/Лист2!$A$6,0) -> 192179
A82: 5 | B82: Витрины серии MAGNUM Quadro, глубина выкладки 860 мм
C83: Среднетемпературные | I83: Опции Magnum Q | K83: EL.PS.2.V0.T.B7016.P7016 для витрин с боковинами добавить комплекты боковин: 1007.48.00.00; 1007.48.00.00mir
C84: MAGQ ВПС1 125 БА ББ | D84: Magnum Quadro 1250 БА ББ | E84: 0…+7 | F84: 1.075 | G84: 1250х1095х1225 | H84: 1510х1190х1150 | I84: 116521 | J84: =ROUND(I84*(1-$E$3)/Лист2!$A$6,0) -> 116521
C85: MAGQ ВПС1 188 БА ББ | D85: Magnum Quadro 1875 БА ББ | F85: 1.61 | G85: 1875х1095х1225 | H85: 2140х1190х1150 | I85: 144910 | J85: =ROUND(I85*(1-$E$3)/Лист2!$A$6,0) -> 144910
C86: MAGQ ВПС1 250 БА ББ | D86: Magnum Quadro 2500 БА ББ | F86: 2.15 | G86: 2500х1095х1225 | H86: 2760х1190х1150 | I86: 170487 | J86: =ROUND(I86*(1-$E$3)/Лист2!$A$6,0) -> 170487
C87: MAGQ ВПС1 375 БА ББ | D87: Magnum Quadro 3750 БА ББ | F87: 3.22 | G87: 3750х1095х1225 | H87: 4010х1190х1150 | I87: 247024 | J87: =ROUND(I87*(1-$E$3)/Лист2!$A$6,0) -> 247024
C88: Средне-низкотемпературные
C89: MAGQ ВПСН1 125 БА ББ | D89: Magnum Quadro SN 1250 БА ББ | E89: ­5…+7 | F89: 1.075 | G89: 1250х1095х1225 | H89: 1510х1190х1150 | I89: 132947 | J89: =ROUND(I89*(1-$E$3)/Лист2!$A$6,0) -> 132947
C90: MAGQ ВПСН1 188 БА ББ | D90: Magnum Quadro SN 1875 БА ББ | F90: 1.61 | G90: 1875х1095х1225 | H90: 2140х1190х1150 | I90: 165524 | J90: =ROUND(I90*(1-$E$3)/Лист2!$A$6,0) -> 165524
C91: MAGQ ВПСН1 250 БА ББ | D91: Magnum Quadro SN 2500 БА ББ | F91: 2.15 | G91: 2500х1095х1225 | H91: 2760х1190х1150 | I91: 194336 | J91: =ROUND(I91*(1-$E$3)/Лист2!$A$6,0) -> 194336
C92: MAGQ ВПСН1 375 БА ББ | D92: Magnum Quadro SN 3750 БА ББ | F92: 3.22 | G92: 3750х1095х1225 | H92: 4010х1190х1150 | I92: 281422 | J92: =ROUND(I92*(1-$E$3)/Лист2!$A$6,0) -> 281422
C93: Низкотемпературные | K93: EL.PS.2.V0.T.B7016.P7016 для витрин с боковинами добавить комплекты боковин: 1030.48.00.00; 1030.48.00.00mir
C94: 1182.00.00.00 | D94: ВПН Magnum Quadro 1250 БА ББ | E94: не выше -15 | F94: 1.075 | G94: 1250х1095х1225 | H94: 1510х1190х1150 | I94: 145727 | J94: =ROUND(I94*(1-$E$3)/Лист2!$A$6,0) -> 145727
C95: 1182.00.00.00-01 | D95: ВПН Magnum Quadro 1875 БА ББ | F95: 1.61 | G95: 1875х1095х1225 | H95: 2140х1190х1150 | I95: 181328 | J95: =ROUND(I95*(1-$E$3)/Лист2!$A$6,0) -> 181328
C96: 1182.00.00.00-02 | D96: ВПН Magnum Quadro 2500 БА ББ | F96: 2.15 | G96: 2500х1095х1225 | H96: 2760х1190х1150 | I96: 213102 | J96: =ROUND(I96*(1-$E$3)/Лист2!$A$6,0) -> 213102
C97: 1182.00.00.00-03 | D97: ВПН Magnum Quadro 3750 БА ББ | F97: 3.22 | G97: 3750х1095х1225 | H97: 4010х1190х1150 | I97: 308025 | J97: =ROUND(I97*(1-$E$3)/Лист2!$A$6,0) -> 308025
C98: Среднетемпературные с низким стеклом | K98: EL.PS.0.V0.T.B7016.P7016 для витрин с боковинами добавить комплекты боковин: 1013.48.00.00; 1013.48.00.00mir
C99: MAGQ ВПС1 SG125 БА ББ | D99: Magnum Quadro Self 1250 БА ББ | E99: 0…+7 | F99: 1.075 | G99: 1250х1095х865 | H99: 1510х1190х1150 | I99: 115007 | J99: =ROUND(I99*(1-$E$3)/Лист2!$A$6,0) -> 115007
C100: MAGQ ВПС1 SG188 БА ББ | D100: Magnum Quadro Self 1875 БА ББ | F100: 1.61 | G100: 1875х1095х865 | H100: 2140х1190х1150 | I100: 145754 | J100: =ROUND(I100*(1-$E$3)/Лист2!$A$6,0) -> 145754
C101: MAGQ ВПС1 SG250 БА ББ | D101: Magnum Quadro Self 2500 БА ББ | F101: 2.15 | G101: 2500х1095х865 | H101: 2760х1190х1150 | I101: 171624 | J101: =ROUND(I101*(1-$E$3)/Лист2!$A$6,0) -> 171624
C102: MAGQ ВПС1 SG375 БА ББ | D102: Magnum Quadro Self 3750 БА ББ | F102: 3.22 | G102: 3750х1095х865 | H102: 4010х1190х1150 | I102: 250492 | J102: =ROUND(I102*(1-$E$3)/Лист2!$A$6,0) -> 250492
C103: Угловые витрины | K103: EL.PS.2.V0.T.B7016.P7016 для витрин с боковинами добавить комплекты боковин: 1007.48.00.00; 1007.48.00.00mir
C104: 1183.00.00.00 | D104: Magnum Quadro OC 90 БА ББ | E104: 0…+7 | F104: 1.2 | G104: 1355х1355х1225 | H104: 2170х1380х1080 | I104: 162203 | J104: =ROUND(I104*(1-$E$3)/Лист2!$A$6,0) -> 162203
C105: 1184.00.00.00 | D105: Magnum Quadro IC 90 БА ББ | F105: 1.08 | G105: 1325х1325х1225 | H105: 2170х1300х1080 | I105: 154685 | J105: =ROUND(I105*(1-$E$3)/Лист2!$A$6,0) -> 154685
C106: 1185.00.00.00 | D106: Magnum Quadro Self OC 90 БА ББ | F106: 1.2 | G106: 1355х1355х865 | H106: 2170х1380х1080 | I106: 154645 | J106: =ROUND(I106*(1-$E$3)/Лист2!$A$6,0) -> 154645 | K106: EL.PS.0.V0.T.B7016.P7016 для витрин с боковинами добавить комплекты боковин: 1013.48.00.00; 1013.48.00.00mir
C107: 1186.00.00.00 | D107: Magnum Quadro Self IC 90 БА ББ | F107: 1.08 | G107: 1325х1325х865 | H107: 2170х1300х1080 | I107: 146890 | J107: =ROUND(I107*(1-$E$3)/Лист2!$A$6,0) -> 146890
C108: Рыбные витрины ВСПН/ВПСН Self | K108: EL.PS.2.V0.T.B7016.P7016 для витрин с боковинами добавить комплекты боковин: 1007.48.00.00; 1007.48.00.00mir
C109: 1250.00.00.00 | D109: Magnum Quadro Fish 1250 БА ББ | E109: ­5…+7 | G109: 1250х1095х1225 | H109: 1510х1190х1150 | I109: 145727 | J109: =ROUND(I109*(1-$E$3)/Лист2!$A$6,0) -> 145727
C110: 1250.00.00.00-01 | D110: Magnum Quadro Fish 1875 БА ББ | G110: 1875х1095х1225 | H110: 2140х1190х1150 | I110: 181328 | J110: =ROUND(I110*(1-$E$3)/Лист2!$A$6,0) -> 181328
C111: 1251.00.00.00 | D111: Magnum Quadro Fish Self 1250 БА ББ | G111: 1250х1095х865 | H111: 1510х1190х1150 | I111: 136594 | J111: =ROUND(I111*(1-$E$3)/Лист2!$A$6,0) -> 136594 | K111: EL.PS.0.V0.T.B7016.P7016 для витрин с боковинами добавить комплекты боковин: 1013.48.00.00; 1013.48.00.00mir
C112: 1251.00.00.00-01 | D112: Magnum Quadro Fish Self 1875 БА ББ | G112: 1875х1095х865 | H112: 2140х1190х1150 | I112: 169506 | J112: =ROUND(I112*(1-$E$3)/Лист2!$A$6,0) -> 169506
I113: 0
G115: наверх

Sheet Кондитерские витрины
H1: ЗАВОД «ОПК» Тел.: +7 (495) 987-4388 e-mail: info@cryspi.ru сайт: cryspi.ru | L1: На главную
B3: Ваша скидка: | E3: =Содержание!D2 -> 0
B4: НДС: | E4: =IF(Лист2!A1=TRUE,"С НДС","БЕЗ НДС") -> С НДС
A6: Кондитерские витрины Cryspi со встроенным агрегатом
A9: № | B9: Изображение | C9: Артикул | D9: Наименование | F9: Температурный режим,°C | G9: Площадь экспозиции, кв.м. | H9: Габариты, (LxWxH) мм | I9: Габариты в упаковке, (LxWxH) мм | J9: Базовая цена, руб. (с НДС) | K9: =[5]Лист2!$A$5 -> Ваша цена, руб.
A11: 1 | B11: ADAGIO | M11: СЕЧЕНИЯ
M12: ADAGIO | R12: ADAGIO CUBE | W12: ELEGIA
A13: Стандартная комплектация: - 3 уровня навесных полок, 230, 320, 380 мм (Adagio/Adagio LX), 380 мм (Adagio Cube/Adagio LX Cube); - подсветка всех полок (4500К или 2700К) - фронтальная металическая панель - Возможно применение фронтальной панели из ЛДСП с наценкой в 4%. - Компрессор R-290 - Электронный контроллер Carel - Цифровой термометр | F13: - Оттайка испарителя естественным способом; Автоматическое выпаривание конденсата - Задняя дверца - оргстекло (Adagio), закаленный стеклопакет (Adagio LX); - Вентилируемое (динамическое) охлаждение - Внутренний объем - сталь оцинкованная - зона выкладки - сталь оцинкованна с покраской - шелкография стекол черного цвета (Ral 9005) - Упаковка в деревянной обрешетке;
C14: Витрины охлаждаемые, кондитерские, закаленное стекло
C15: ADAGV 90 R290 | D15: Витрина холодильная ВПВ (ADAGIO 900 Д) | F15: +6..+12°С | G15: 1.27 | H15: 900х620х1330 | J15: 95768 | K15: =ROUND(J15*(1-$E$3)/Лист2!$A$6,0) -> 95768
C16: ADAGV 130 R290 | D16: Витрина холодильная ВПВ (ADAGIO 1300 Д) | F16: +6..+12°С | G16: 1.58 | H16: 1300Х620Х1330 | J16: 103244 | K16: =ROUND(J16*(1-$E$3)/Лист2!$A$6,0) -> 103244
C17: ADAGVCUBE 90 R290 | D17: Витрина холодильная ВПВ (ADAGIO Cube 900 Д) | F17: +6..+12°С | G17: 1.46 | H17: 900х620х1330 | J17: 95768 | K17: =ROUND(J17*(1-$E$3)/Лист2!$A$6,0) -> 95768
C18: ADAGVCUBE 130 R290 | D18: Витрина холодильная ВПВ (ADAGIO Cube 1300 Д) | F18: +6..+12°С | G18: 1.83 | H18: 1300Х620Х1330 | J18: 103244 | K18: =ROUND(J18*(1-$E$3)/Лист2!$A$6,0) -> 103244
C19: Витрины охлаждаемые, кондитерские, закаленный стеклопакет
C20: ADAGLX 90 R290 | D20: Витрина холодильная ВПС (ADAGIO LX 900 Д) | F20: 0..+7°С | G20: 1.27 | H20: 900х620х1330 | J20: 125932 | K20: =ROUND(J20*(1-$E$3)/Лист2!$A$6,0) -> 125932
C21: ADAGLX 130 R290 | D21: Витрина холодильная ВПС (ADAGIO LX 1300 Д) | F21: 0..+7°С | G21: 1.58 | H21: 1300Х620Х1330 | J21: 149106 | K21: =ROUND(J21*(1-$E$3)/Лист2!$A$6,0) -> 149106
C22: ADAGLXCUBE 90 R290 | D22: Витрина холодильная ВПС (ADAGIO LX Cube 900 Д) | F22: 0..+7°С | G22: 1.46 | H22: 900х620х1330 | J22: 125932 | K22: =ROUND(J22*(1-$E$3)/Лист2!$A$6,0) -> 125932
C23: ADAGLXCUBE 130 R290 | D23: Витрина холодильная ВПС (ADAGIO LX Cube 1300 Д) | F23: 0..+7°С | G23: 1.83 | H23: 1300Х620Х1330 | J23: 149106 | K23: =ROUND(J23*(1-$E$3)/Лист2!$A$6,0) -> 149106
C24: Витрины для самообслуживания охлаждаемые, кондитерские
C25: ADAGVSELF 90 R290 | D25: Витрина холодильная ВПВ (ADAGIO Self 900 Д) | F25: +1..+10°С | G25: 1.27 | H25: 900х620х1330 | I25: 1100х790х1475 | J25: 140952 | K25: =ROUND(J25*(1-$E$3)/Лист2!$A$6,0) -> 140952
C26: ADAGVSELF 130 R290 | D26: Витрина холодильная ВПВ (ADAGIO Self 1300 Д) | F26: +1..+10°С | G26: 1.58 | H26: 1300Х620Х1330 | I26: 1500х790х1475 | J26: 166590 | K26: =ROUND(J26*(1-$E$3)/Лист2!$A$6,0) -> 166590
C27: DAGVSELFCUBE 90 R290 | D27: Витрина холодильная ВПВ (ADAGIO Self Cube 900 Д) | F27: +1..+10°С | G27: 1.46 | H27: 900х620х1330 | I27: 1100х790х1475 | J27: 142910 | K27: =ROUND(J27*(1-$E$3)/Лист2!$A$6,0) -> 142910
C28: ADAGVSELFCUBE 130 R290 | D28: Витрина холодильная ВПВ (ADAGIO Self Cube 1300 Д) | F28: +1..+10°С | G28: 1.83 | H28: 1300Х620Х1330 | I28: 1500х790х1475 | J28: 168870 | K28: =ROUND(J28*(1-$E$3)/Лист2!$A$6,0) -> 168870
C29: Витрины нейтральные, кондитерские без охлаждения для самообслуживания
C30: ADAGNSELF 90 | D30: Витрина нейтральная ВП (ADAGIO N Self 900) | F30: - | G30: 1.27 | H30: 900х620х1330 | I30: 1100х790х1475 | J30: 74231 | K30: =ROUND(J30*(1-$E$3)/Лист2!$A$6,0) -> 74231
C31: ADAGNSELF 130 | D31: Витрина нейтральная ВП (ADAGIO N Self 1300) | F31: - | G31: 1.58 | H31: 1300Х620Х1330 | I31: 1500х790х1475 | J31: 82519 | K31: =ROUND(J31*(1-$E$3)/Лист2!$A$6,0) -> 82519
C32: ADAGNSELFCUBE 90 | D32: Витрина холодильная ВПВ (ADAGIO N Self Cube 900 Д) | F32: - | G32: 1.46 | H32: 900х620х1330 | I32: 1100х790х1475 | J32: 76281 | K32: =ROUND(J32*(1-$E$3)/Лист2!$A$6,0) -> 76281
C33: ADAGNSELFCUBE 130 | D33: Витрина холодильная ВПВ (ADAGIO N Self Cube 1300 Д) | F33: - | G33: 1.83 | H33: 1300Х620Х1330 | I33: 1500х790х1475 | J33: 80346 | K33: =ROUND(J33*(1-$E$3)/Лист2!$A$6,0) -> 80346
C34: Витрины нейтральные, кондитерские без охлаждения для самообслуживания. Хлебная модификация
C35: ADAGNSELFCUBE 90 | D35: Витрина холодильная ВПВ (ADAGIO N Self Cube 900 Д) | F35: - | G35: 1.46 | H35: 900х620х1330 | I35: 1100х790х1475 | J35: 72582 | K35: =ROUND(J35*(1-$E$3)/Лист2!$A$6,0) -> 72582
C36: ADAGNSELFCUBE 130 | D36: Витрина холодильная ВПВ (ADAGIO N Self Cube 1300 Д) | F36: - | G36: 1.83 | H36: 1300Х620Х1330 | I36: 1500х790х1475 | J36: 78146 | K36: =ROUND(J36*(1-$E$3)/Лист2!$A$6,0) -> 78146
C37: Кассовый нейтральный прилавок (КНП)
C38: ADAGLXKNP 60 | D38: Прилавок КНП ADAGIO 600 (фронтальные панели металл) | F38: - | G38: - | H38: 600х650х906 | I38: 800х790х1065 | J38: 24109 | K38: =ROUND(J38*(1-$E$3)/Лист2!$A$6,0) -> 24109
C39: ADAGLXKNP 90 | D39: Прилавок КНП ADAGIO 900 (фронтальные панели металл) | F39: - | G39: - | H39: 900Х650Х906 | I39: 1100х790х1065 | J39: 29315 | K39: =ROUND(J39*(1-$E$3)/Лист2!$A$6,0) -> 29315
C40: ADAGLXKNP 60 | D40: Прилавок КНП ADAGIO 600 (фронтальные панели ЛДСП) | F40: - | G40: - | H40: 600х650х906 | I40: 800х790х1065 | J40: 26499 | K40: =ROUND(J40*(1-$E$3)/Лист2!$A$6,0) -> 26499
C41: ADAGLXKNP 90 | D41: Прилавок КНП ADAGIO 900 (фронтальные панели ЛДСП) | F41: - | G41: - | H41: 900Х650Х906 | I41: 1100х790х1065 | J41: 30681 | K41: =ROUND(J41*(1-$E$3)/Лист2!$A$6,0) -> 30681
A42: 2 | B42: ELEGIA QUADRO
C44: Стандартная комплектация: - 3 уровня навесных полок, 300, 350, 400 мм (Elegia Quadro), 190, 290, 390 мм (Elegia Quadro Self); - подсветка полок и вертикальное освещение в витринах Elegia Quadro - подсветка всех полок (4500К или 2700К) для Elegia Quadro Self - фронтальная металическая панель (стандарт) - Возможно применение фронтальной панели из ЛДСП с наценкой в 10%. - Компрессор R-290 - Электронный контроллер - Цифровой термометр | G44: -- Оттайка испарителя естественным способом; Автоматическое выпаривание конденсата - Задние дверцы - раздвижные, стеклопакет; - Вентилируемое (динамическое) охлаждение - Внутренний объем - сталь оцинкованная с покраской (возможно изготовление из нержавеющей стали с наценкой в 20%.) - зона выкладки - сталь оцинкованна с покраской - шелкография стекол черного цвета (Ral 9005) - Упаковка в деревянной обрешетке;
C46: EQ 850 R290 | D46: Elegia Quadro К 850 | F46: +3...+8 | G46: 1.23 | H46: 852х764х1314 | I46: 1050х990х1550 | J46: 157892 | K46: =ROUND(J46*(1-$E$3)/Лист2!$A$6,0) -> 157892
C47: EQ 100 R290 | D47: Elegia Quadro К 1000 | F47: +3...+8 | G47: 1.48 | H47: 1 002×764×1 314 | I47: 1250х990х1550 | J47: 174116 | K47: =ROUND(J47*(1-$E$3)/Лист2!$A$6,0) -> 174116
C48: EQ 125 R290 | D48: Elegia Quadro K 1250 | F48: +3...+8 | G48: 1.85 | H48: 1 252×764×1 314 | I48: 1450х990х1550 | J48: 190473 | K48: =ROUND(J48*(1-$E$3)/Лист2!$A$6,0) -> 190473
C49: EQ SELF 100 R290 | D49: Elegia Quadro SELF 1000 (для самообслуживания) | F49: +3...+8 | G49: 1.37 | H49: 1 002×764×1 314 | I49: 1250х990х1550 | J49: 174116 | K49: =ROUND(J49*(1-$E$3)/Лист2!$A$6,0) -> 174116
C50: EQ SELF 125 R290 | D50: Elegia Quadro SELF 1250 (для самообслуживания) | F50: +3...+8 | G50: 1.72 | H50: 1 252×764×1 312 | I50: 1450х990х1550 | J50: 174911 | K50: =ROUND(J50*(1-$E$3)/Лист2!$A$6,0) -> 174911
C51: EQKNP900NEW | D51: Прилавок КНП Elegia Quadro 600 | F51: - | G51: - | H51: 600х764х870 | I51: 740х950х1025 | J51: 28109 | K51: =ROUND(J51*(1-$E$3)/Лист2!$A$6,0) -> 28109
H53: НАВЕРХ

Sheet Витрины Italfrigo
K1: На главную
J2: На главную
B3: Ваша скидка: | E3: =Содержание!D2 -> 0
B4: НДС: | E4: =IF(Лист2!A1=TRUE,"С НДС","БЕЗ НДС") -> С НДС
B7: Витрины Italfrigo без агрегата
A8: № | B8: Изображение | C8: Артикул | D8: Наименование | E8: Температурный режим, C° | F8: Площадь экспозиции, кв.м. | G8: Габариты без боковин, мм (L/W/H) | H8: Габариты в упаковке, мм (L/W/H) | I8: Базовая цена, руб. (с НДС) | J8: =[6]Лист2!$A$5 -> Ваша цена, руб.
A10: 1 | B10: Витрины серии TOSCANA Q, глубина выкладки 860 мм
A11: Стандартная комплектация: 1.Фронтальное стекло закаленное, открывается сверху-вниз (микролифт не применяется); 2. Вентилируемое охлаждение; 3. Поддоны выкладки, внутренней задней стенки с решётками вентиляционными, столешница — нерж. сталь AISI430, шлифованная /в модификации FISH Базовые поддоны для льда из нержавеющей стали со сливом; 4. ТРВ 5. Электронный контроллер 6. Комплект подключения к системе дренажа; 7. Цифровой термометр на фронтальной части столешницы; 8. Суперструктура нерж.сталь; 9. Профиль для навески доп. оборудования (подставки под весы, разделочные доски, под ножи, пакеты) по всей длине витрины; 10. Витрины ВПСН оснащены электрической оттайкой испарителя (ТЭН); 11. Без боковин; Стандартная характеристика для витрины - S.E.0.S.0.0
C12: Среднетемпературные витрины
C13: 125ITSQВПС2 | D13: Витрина холодильная ВПC Italfrigo Toscana Q 1250 Д | E13: 0…+5 С | G13: 1250х1060х1195 | H13: 1500х1190х1080 | I13: 107731 | J13: =I13*(1-$E$3) -> 107731
C14: 188ITSQВПС2 | D14: Витрина холодильная ВПC Italfrigo Toscana Q 1875 Д | G14: 1875х1060х1195 | H14: 2100х1190х1080 | I14: 145071 | J14: 145071
C15: 250ITSQВПС2 | D15: Витрина холодильная ВПC Italfrigo Toscana Q 2500 Д | G15: 2500х1060х1195 | H15: 2750х1190х1080 | I15: 168733 | J15: 168733
C16: 375ITSQВПС2 | D16: Витрина холодильная ВПC Italfrigo Toscana Q 3750 Д | G16: 3750х1060х1195 | H16: 4050х1190х1080 | I16: 226864 | J16: 226864
C17: Среднетемпературные витрины c низким стеклом
C18: ITSQВПС2SG125Д | D18: Витрина холодильная ВПC Italfrigo Toscana Q Self 1250 Д | E18: 0…+5 С | G18: 1250х1060х880 | H18: 1500х1190х1080 | I18: 86918 | J18: 86918
C19: ITSQВПС2SG188Д | D19: Витрина холодильная ВПC Italfrigo Toscana Q Self 1875 Д | G19: 1875х1060х880 | H19: 2100х1190х1080 | I19: 106792 | J19: 106792
C20: ITSQВПС2SG250Д | D20: Витрина холодильная ВПC Italfrigo Toscana Q Self 2500 Д | G20: 2500х1060х880 | H20: 2750х1190х1080 | I20: 127699 | J20: 127699
C21: ITSQВПС2SG375Д | D21: Витрина холодильная ВПC Italfrigo Toscana Q Self 3750 Д | G21: 3750х1060х880 | H21: 4050х1190х1080 | I21: 170023 | J21: 170023
C22: Угловые среднетемпературные витрины
C23: OC90ITSQ ВПС2 | D23: Витрина холодильная ВПC Italfrigo Toscana Q OC 90 Д | E23: 0…+5 С | G23: 1355х1355х1195 | H23: 2170х1380х1055 | I23: 196236 | J23: 196236
C24: IC90ITSQ ВПС2 | D24: Витрина холодильная ВПC Italfrigo Toscana Q IC 90 Д | G24: 1295х1295х1195 | H24: 2170х1380х1055 | I24: 173624 | J24: 173624
C25: Угловые среднетемпературные витрины с низким стеклом
C26: OC90ITSQВПС2SG | D26: Витрина холодильная ВПC Italfrigo Toscana Q OC90 Self Д | E26: 0…+5 С | G26: 1355х1355х880 | H26: 2170х1380х1055 | I26: 172687 | J26: 172687
C27: IC90ITSQВПС2SG | D27: Витрина холодильная ВПC Italfrigo Toscana Q IC90 Self Д | G27: 1295х1295х880 | H27: 2170х1380х1055 | I27: 152789 | J27: 152789
C28: Средне-низкотемпературные витрины FISH (рыба на льду)
C29: 125ITSQFSВПСН2 | D29: Витрина холодильно-морозильная ВПCН (Italfrigo Toscana Q Fish 1250 Д) | E29: -5…+5 С | G29: 1250х1060х1195 | H29: 1500х1190х1080 | I29: 140052 | J29: 140052
C30: 188ITSQFSВПСН2 | D30: Витрина холодильно-морозильная ВПCН (Italfrigo Toscana Q Fish 1875 Д) | G30: 1875х1060х1195 | H30: 2100х1190х1080 | I30: 161060 | J30: 161060
C31: Средне-низкотемпературные витрины FISH (рыба на льду) c низким стеклом
C32: 125ITSQFSВПСН2SG | D32: Витрина холодильно-морозильная ВПCН (Italfrigo Toscana Q Self Fish 1250 Д) | E32: -5…+5 С | G32: 1250х1060х880 | H32: 1500х1190х1080 | I32: 118925 | J32: 118925
C33: 188ITSQFSВПСН2SG | D33: Витрина холодильно-морозильная ВПCН (Italfrigo Toscana Q Self Fish 1875 Д) | G33: 1875х1060х880 | H33: 2100х1190х1080 | I33: 136705 | J33: 136705
C34: Тепловая витрина (мармит) +65, нагрев горячим паром
C35: 125ITSQВПТВМ | D35: Витрина тепловая ВПТ Italfrigo Toscana Q 1250 ВМ | E35: +65 C | G35: 1250х1060х1195 | H35: 1500х1190х1400 | I35: 195606 | J35: 195606
A36: 2 | B36: Витрины серии Veneto Quadro, глубина выкладки 960 мм
A37: Стандартная комплектация: 1. Без фронтальной верхней декоративной панели; 2. Фронтальное стекло закаленное, открывается микролифтами снизу — вверх; 3. Вентилируемое охлаждение; 4. Поддоны выкладки, внутренней задней стенки с решётками вентиляционными, столешница — нерж. сталь AISI430, шлифованная / / в модификации FISH Базовые поддоны для льда из нержавеющей стали со сливом 5. ТРВ 6. Электронный контроллер 7. Комплект подключения к системе дренажа; 8. Цифровой термометр на фронтальной части столешницы; 9. Витрины ВПСН по умолчанию оборудованы комплектом электрооотайки испарителя; 10. Суперструктура из анодированого алюминия; 11. Без боковин; Стандартная характеристика для витрины - S.E.0.T.0.0
C38: Среднетемпературные витрины
C39: IVQ ВПС2 125Д | D39: Витрина холодильная ВПC 0,195-1,2 (Italfrigo Veneto Quadro 1250 Д) | E39: +2…+4 С | G39: 1250х1165х1175 | H39: 1500х1450х1420 | I39: 120033 | J39: =I39*(1-$E$3) -> 120033
C40: IVQ ВПС2 188Д | D40: Витрина холодильная ВПC 0,29-1,75 (Italfrigo Veneto Quadro 1875 Д) | G40: 1875х1165х1175 | H40: 2125х1450х1420 | I40: 162045 | J40: 162045
C41: IVQ ВПС2 250Д | D41: Витрина холодильная ВПC 0,39-2,4 (Italfrigo Veneto Quadro 2500 Д) | G41: 2500х1165х1175 | H41: 2750х1450х1420 | I41: 194191 | J41: 194191
C42: IVQ ВПС2 375Д | D42: Витрина холодильная ВПC 0,585-3,5 (Italfrigo Veneto Quadro 3750 Д) | G42: 3750х1165х1175 | H42: 4000х1450х1420 | I42: 261236 | J42: 261236
C43: Среднетемпературные витрины c низким стеклом
C44: IVQ ВПС2 SG 125Д | D44: Витрина холодильная ВПC 0,195-1,2 (Italfrigo Veneto Quadro Self 1250 Д) | E44: +2…+4 С | G44: 1250х1165х870 | H44: 1500х1450х1050 | I44: 98771 | J44: =I44*(1-$E$3) -> 98771
C45: IVQ ВПС2 SG 188Д | D45: Витрина холодильная ВПC 0,29-1,75 (Italfrigo Veneto Quadro Self 1875 Д) | G45: 1875х1165х870 | H45: 2125х1450х1050 | I45: 121355 | J45: 121355
C46: IVQ ВПС2 SG 250Д | D46: Витрина холодильная ВПC 0,39-2,4 (Italfrigo Veneto Quadro Self 2500 Д) | G46: 2500х1165х870 | H46: 2750х1450х1050 | I46: 149181 | J46: 149181
C47: IVQ ВПС2 SG 375Д | D47: Витрина холодильная ВПC 0,585-3,5 (Italfrigo Veneto Quadro Self 3750 Д) | G47: 3750х1165х870 | H47: 4000х1450х1050 | I47: 198625 | J47: 198625
C48: Угловые среднетемпературные витрины
C49: IVQ ВПС2 OC90Д | D49: Витрина холодильная ВПC 0,226-1,33 (Italfrigo Veneto Quadro OС 90 Д) | E49: +2…+4 С | G49: 1800х1200х1175 | H49: 2000х1380х1295 | I49: 241883 | J49: =I49*(1-$E$3) -> 241883
C50: IVQ ВПС2 IC45Д | D50: Витрина холодильная ВПC 0,11-0,64 (Italfrigo Veneto Quadro IС 45 Д) | G50: 1455х1380х1175 | H50: 1750х1670х1395 | I50: 142709 | J50: 142709
C51: Угловые среднетемпературные витрины с низким стеклом
C52: IVQ ВПС2 SG OC90Д | D52: Витрина холодильная ВПC 0,226-1,33 (Italfrigo Veneto Quadro Self OС 90 Д) | E52: 0…+5 С | G52: 1800х1200х870 | H52: 2000х1380х1050 | I52: 220164 | J52: =I52*(1-$E$3) -> 220164
C53: IVQ ВПС2 SG IC45Д | D53: Витрина холодильная ВПC 0,11-0,64 (Italfrigo Veneto Quadro Self IС 45 Д) | G53: 1455х1380х870 | H53: 1750х1670х1050 | I53: 123404 | J53: 123404
C54: Средне-низкотемпературные витрины
C55: IVQ ВПСН2 125Д | D55: Витрина холодильно-морозильная ВПCН 0,195-1,2 (Italfrigo Veneto Quadro 1250 Д) | E55: -5…+5 С | G55: 1250х1165х1175 | H55: 1500х1450х1420 | I55: 126167 | J55: =I55*(1-$E$3) -> 126167
C56: IVQ ВПСН2 188Д | D56: Витрина холодильно-морозильная ВПCН 0,29-1,75 (Italfrigo Veneto Quadro 1875 Д) | G56: 1875х1165х1175 | H56: 2125х1450х1420 | I56: 168912 | J56: 168912
C57: IVQ ВПСН2 250Д | D57: Витрина холодильно-морозильная ВПCН 0,39-2,4 (Italfrigo Veneto Quadro 2500 Д) | G57: 2500х1165х1175 | H57: 2750х1450х1420 | I57: 200905 | J57: 200905
C58: IVQ ВПСН2 375Д | D58: Витрина холодильно-морозильная ВПCН 0,585-3,5 (Italfrigo Veneto Quadro 3750 Д) | G58: 3750х1165х1175 | H58: 4000х1450х1420 | I58: 268407 | J58: 268407
C60: IVQ КНП IC90 | D60: Прилавок КНП Italfrigo Veneto Quadro IC90 (с широкой панелью) | I60: 32769 | J60: 32769 | K60: Ахххх.Рхххх
C61: IVQ КНП 1000 | D61: Прилавок КНП Italfrigo Veneto Quadro 1000 (с широкой панелью) | I61: 40956 | J61: 40956 | K61: Ахххх.Рхххх
C62: Средне-низкотемпературные витрины FISH (рыба на льду)
C63: IVQFS ВПСН2 125Д | D63: Витрина холодильно-морозильная ВПCН 0,195-1,2 (Italfrigo Veneto Quadro Fish 1250 Д) | E63: -5…+5 С | G63: 1250х1165х1175 | H63: 1500х1450х1420 | I63: 164902 | J63: =I63*(1-$E$3) -> 164902
C64: IVQFS ВПСН2 188Д | D64: Витрина холодильно-морозильная ВПCН 0,29-1,75 (Italfrigo Veneto Quadro Fish 1875 Д) | G64: 1875х1165х1175 | H64: 2125х1450х1420 | I64: 200523 | J64: 200523
C65: Средне-низкотемпературные витрины FISH (рыба на льду) c низким стеклом
C66: IVQFS ВПСН2 SG 125Д | D66: Витрина холодильно-морозильная ВПCН 0,195-1,2 (Italfrigo Veneto Quadro Self Fish 1250 Д) | E66: -5…+5 С | G66: 1250х1165х870 | H66: 1500х1450х1050 | I66: 147243 | J66: =I66*(1-$E$3) -> 147243
C67: IVQFS ВПСН2 SG 188Д | D67: Витрина холодильно-морозильная ВПCН 0,29-1,75 (Italfrigo Veneto Quadro Self Fish 1875 Д) | G67: 1875х1165х870 | H67: 2125х1450х1050 | I67: 168278 | J67: 168278
C68: Тепловая витрина (мармит) +65, нагрев горячим паром
C69: IVQ BM125 | D69: Витрина тепловая ВПТ 0,56-0,09 (Italfrigo Veneto Quadro ВМ 1250) | E69: +65 C | G69: 1250х1165х1175 | H69: 1500х1450х1420 | I69: 228207 | J69: =I69*(1-$E$3) -> 228207
G72: наверх

Sheet Горки Cryspi
H1: ЗАВОД «ОПК» Тел.: +7 (495) 987-4388 e-mail: info@cryspi.ru сайт: cryspi.ru | L1: На главную
B3: Ваша скидка: | E3: =Содержание!D2 -> 0
B4: НДС: | E4: =IF(Лист2!A1=TRUE,"С НДС","БЕЗ НДС") -> С НДС
A6: Охлаждаемые стеллажи Cryspi со встроенным агрегатом
A9: № | B9: Изображение | C9: Артикул | D9: Наименование | F9: Температурный режим,°C | G9: Площадь экспозиции, кв.м. | H9: Габариты, (LxWxH) мм | I9: Габариты в упаковке(в обрешетке), (LxWxH) мм | J9: Базовая цена, руб. (с НДС) | K9: =[5]Лист2!$A$5 -> Ваша цена, руб.
A11: 1 | B11: Solo L7 | J11: Опции SOLO L7 | M11: СЕЧЕНИЯ
M12: Solo L7 | Q12: Solo L7 Фруктовая | U12: Solo L7 DG
A13: Базовая комплектация стеллажа: - внутренний объем - оцинкованный металл - внутренняя поверхность ванны из оцинкованного пластификата (двойная защита от коррозии); - электронный контроллер для управления работой оборудования; - без освещения - цифрофой термометр; - компрессор R-290; -стандартная упаковка на поддоне, опцонально в деревянной обрешетке - блок остекления со стеклопакетом для стеллажей DG - ночная шторкa для открытого стеллажа Характеристика EL.S.0.0.P.PS.0.0.0.0.внеш7016гл_внутр7016гл | D13: Комплектация "Фрукты-овощи" + к базовой комплектации: - Общее светодиодное освещение, стандартный - 4000К, опционально 2700К, 6500К; - 3 ряда полок с ценникодержателем; - выпариватель; - боковины с зеркалом; - комплект наклонного зеркала - наклонная решетка для базовой полки Характеристика EL.S.2.3.P.PS.L.V.Z.Z.внеш7016гл_внутр7016гл | F13: Комплектация "Гастрономия" + к базовой комплектации: - Общее светодиодное освещение, стандартный - 4000К, опционально 2700К, 6500К, - 5 рядов полок глубиной 400 с ценникодержателем; - выпариватель; - боковины со стеклопакетом; Характеристика EL.S.2.5.P.PS.0.V.S.S.внеш7016гл_внутр7016гл
C14: Solo L7 Открытое исполнение (ночные шторки)
C15: SO L7 125 R290 | D15: Стеллаж холодильный ВПВ С (SOLO L7 1250) R290 | E15: фруктовая | F15: +1…+7 С | G15: 2.8 | H15: 1330х700х2090 | I15: 1500х820х2230/ 1550х870х2230 | J15: 192399 | K15: =ROUND(J15*(1-$E$3)/Лист2!$A$6,0) -> 192399
E16: гастрономическая | H16: 1330х700х2090 | J16: 191172 | K16: =ROUND(J16*(1-$E$3)/Лист2!$A$6,0) -> 191172
E17: базовая (пустая) | H17: 1250х700х2090 | J17: 148389 | K17: =ROUND(J17*(1-$E$3)/Лист2!$A$6,0) -> 148389
C18: SO L7 150 R290 | D18: Стеллаж холодильный ВПВ С (SOLO L7 1500) R290 | E18: фруктовая | F18: +1…+7 С | G18: 3.36 | H18: 1580х700х2090 | I18: 1750х820х2230/ 1800х870х2230 | J18: 225043 | K18: =ROUND(J18*(1-$E$3)/Лист2!$A$6,0) -> 225043
E19: гастрономическая | H19: 1580х700х2090 | J19: 222173 | K19: =ROUND(J19*(1-$E$3)/Лист2!$A$6,0) -> 222173
E20: базовая (пустая) | H20: 1500х700х2090 | J20: 174805 | K20: =ROUND(J20*(1-$E$3)/Лист2!$A$6,0) -> 174805
C21: SO L7 188 R290 | D21: Стеллаж холодильный ВПВ С (SOLO L7 1875) R290 | E21: фруктовая | F21: +1…+7 С | G21: 4.2 | H21: 1955х700х2090 | I21: 2130х820х2230/ 2180х870х2230 | J21: 239973 | K21: =ROUND(J21*(1-$E$3)/Лист2!$A$6,0) -> 239973
E22: гастрономическая | H22: 1955х700х2090 | J22: 237805 | K22: =ROUND(J22*(1-$E$3)/Лист2!$A$6,0) -> 237805
E23: базовая (пустая) | H23: 1875х700х2090 | J23: 182394 | K23: =ROUND(J23*(1-$E$3)/Лист2!$A$6,0) -> 182394
C24: Solo L7 DG. Фронтальный блок остекления - стеклопакет (DG - Double Glass)
C25: SO L7DG 125 R290 | D25: Стеллаж холодильный ВПВ С (SOLO L7 DG 1250) R290 | E25: фруктовая | F25: -1…+5 С | G25: 2.8 | H25: 1330х700х2090 | I25: 1500х820х2230/ 1550х870х2230 | J25: 213146 | K25: =ROUND(J25*(1-$E$3)/Лист2!$A$6,0) -> 213146
E26: гастрономическая | H26: 1330х700х2090 | J26: 211919 | K26: =ROUND(J26*(1-$E$3)/Лист2!$A$6,0) -> 211919
E27: базовая (пустая) | H27: 1250х700х2090 | J27: 169136 | K27: =ROUND(J27*(1-$E$3)/Лист2!$A$6,0) -> 169136
C28: SO L7DG 150 R290 | D28: Стеллаж холодильный ВПВ С (SOLO L7 DG 1500) R290 | E28: фруктовая | F28: -1…+5 С | G28: 3.36 | H28: 1580х700х2090 | I28: 1750х820х2230/ 1800х870х2230 | J28: 234643 | K28: =ROUND(J28*(1-$E$3)/Лист2!$A$6,0) -> 234643
E29: гастрономическая | H29: 1580х700х2090 | J29: 231773 | K29: =ROUND(J29*(1-$E$3)/Лист2!$A$6,0) -> 231773
E30: базовая (пустая) | H30: 1500х700х2090 | J30: 184405 | K30: =ROUND(J30*(1-$E$3)/Лист2!$A$6,0) -> 184405
C31: SO L7DG 188 R290 | D31: Стеллаж холодильный ВПВ С (SOLO L7 DG 1875) R290 | E31: фруктовая | F31: -1…+5 С | G31: 4.2 | H31: 1955х700х2090 | I31: 2130х820х2230/ 2180х870х2230 | J31: 258205 | K31: =ROUND(J31*(1-$E$3)/Лист2!$A$6,0) -> 258205
E32: гастрономическая | H32: 1955х700х2090 | J32: 256037 | K32: =ROUND(J32*(1-$E$3)/Лист2!$A$6,0) -> 256037
E33: базовая (пустая) | H33: 1875х700х2090 | J33: 200626 | K33: =ROUND(J33*(1-$E$3)/Лист2!$A$6,0) -> 200626
C34: SO L7DG 250 R290 | D34: Стеллаж холодильный ВПВ С (SOLO L7 DG 2500) R290 | E34: фруктовая | F34: -1…+5 С | G34: 5.6 | H34: 2580х700х2090 | I34: 2750х820х2230/ 2800х870х2230 | J34: 0 | K34: =ROUND(J34*(1-$E$3)/Лист2!$A$6,0) -> 0
E35: гастрономическая | H35: 2580х700х2090 | J35: 365726 | K35: =ROUND(J35*(1-$E$3)/Лист2!$A$6,0) -> 365726
E36: базовая (пустая) | H36: 2500х700х2090 | J36: 306166 | K36: =ROUND(J36*(1-$E$3)/Лист2!$A$6,0) -> 306166
C37: (Модуль 1250 мм. - 1 дверной блок (2 двери); 1875 мм. - 1 дверной блок (3 двери); 2500 мм. - 2 дверных блока по 2 двери)
A38: 2 | B38: Solo L9 | J38: Опции SOLO L9 | M38: СЕЧЕНИЯ
M39: Solo L9 | Q39: Solo L9 Фруктовая | U39: Solo L9 DG
A40: Базовая комплектация стеллажа: - внутренний объем - оцинкованный металл - внутренняя поверхность ванны из оцинкованного пластификата (двойная защита от коррозии); - электронный контроллер для управления работой оборудования; - без освещения - цифрофой термометр; - компрессор R-290; -стандартная упаковка на поддоне, опцонально в деревянной обрешетке - блок остекления со стеклопакетом для стеллажей DG - ночная шторкa для открытого стеллажа Характеристика EL.S.0.0.P.PS.0.0.0.0.внеш7016гл_внутр7016гл | D40: Комплектация "Фрукты-овощи" + к базовой комплектации: - Общее светодиодное освещение, стандартный - 4000К, опционально 2700К, 6500К; - 3 ряда полок с ценникодержателем; - выпариватель; - боковины с зеркалом; - комплект наклонного зеркала - наклонная решетка для базовой полки Характеристика EL.S.2.3.P.PS.L.V.Z.Z.внеш7016гл_внутр7016гл | F40: Комплектация "Гастрономия" + к базовой комплектации: - Общее светодиодное освещение, стандартный - 4000К, опционально 2700К, 6500К, - 5 рядов полок глубиной 500 с ценникодержателем; - выпариватель; - боковины со стеклопакетом; Характеристика EL.S.2.5.P.PS.0.V.S.S.внеш7016гл_внутр7016гл
C41: Solo L9 Открытое исполнение (ночные шторки)
C42: SO L9 125 R290 | D42: Стеллаж холодильный ВПВ С (SOLO L9 1250) R290 | E42: фруктовая | F42: +1…+7 С | G42: 3.76 | H42: 1330х910х2090 | I42: 1500х1030х2230/ 1550х1080х2230 | J42: 206335 | K42: =ROUND(J42*(1-$E$3)/Лист2!$A$6,0) -> 206335
E43: гастрономическая | H43: 1330х910х2090 | J43: 205076 | K43: =ROUND(J43*(1-$E$3)/Лист2!$A$6,0) -> 205076
E44: базовая (пустая) | H44: 1250х910х2090 | J44: 157141 | K44: =ROUND(J44*(1-$E$3)/Лист2!$A$6,0) -> 157141
C45: SO L9 150 R290 | D45: Стеллаж холодильный ВПВ С (SOLO L9 1500) R290 | E45: фруктовая | F45: +1…+7 С | G45: 4.51 | H45: 1580х910х2090 | I45: 1750х1030х2230/ 1800х1080х2230 | J45: 233544 | K45: =ROUND(J45*(1-$E$3)/Лист2!$A$6,0) -> 233544
E46: гастрономическая | H46: 1580х910х2090 | J46: 230076 | K46: =ROUND(J46*(1-$E$3)/Лист2!$A$6,0) -> 230076
E47: базовая (пустая) | H47: 1500х910х2090 | J47: 177011 | K47: =ROUND(J47*(1-$E$3)/Лист2!$A$6,0) -> 177011
C48: SO L9 188 R290 | D48: Стеллаж холодильный ВПВ С (SOLO L9 1875) R290 | E48: фруктовая | F48: +1…+7 С | G48: 5.63 | H48: 1955х910х2090 | I48: 2130х1030х2230/ 2180х1080х2230 | J48: 258180 | K48: =ROUND(J48*(1-$E$3)/Лист2!$A$6,0) -> 258180
E49: гастрономическая | H49: 1955х910х2090 | J49: 254958 | K49: =ROUND(J49*(1-$E$3)/Лист2!$A$6,0) -> 254958
E50: базовая (пустая) | H50: 1875х910х2090 | J50: 194165 | K50: =ROUND(J50*(1-$E$3)/Лист2!$A$6,0) -> 194165
C51: Solo L9 DG. Фронтальный блок остекления - стеклопакет (DG - Double Glass)
C52: SO L9DG 125 R290 | D52: Стеллаж холодильный ВПВ С (SOLO L9 DG 1250) R290 | E52: фруктовая | F52: -1…+5 С | G52: 3.76 | H52: 1330х910х2090 | I52: 1500х1030х2230/ 1550х1080х2230 | J52: 230394 | K52: =ROUND(J52*(1-$E$3)/Лист2!$A$6,0) -> 230394
E53: гастрономическая | H53: 1330х910х2090 | J53: 229135 | K53: =ROUND(J53*(1-$E$3)/Лист2!$A$6,0) -> 229135
E54: базовая (пустая) | H54: 1250х910х2090 | J54: 181200 | K54: =ROUND(J54*(1-$E$3)/Лист2!$A$6,0) -> 181200
C55: SO L9DG 150 R290 | D55: Стеллаж холодильный ВПВ С (SOLO L9 DG 1500) R290 | E55: фруктовая | F55: -1…+5 С | G55: 4.51 | H55: 1580х910х2090 | I55: 1750х1030х2230/ 1800х1080х2230 | J55: 252687 | K55: =ROUND(J55*(1-$E$3)/Лист2!$A$6,0) -> 252687
E56: гастрономическая | H56: 1580х910х2090 | J56: 249219 | K56: =ROUND(J56*(1-$E$3)/Лист2!$A$6,0) -> 249219
E57: базовая (пустая) | H57: 1500х910х2090 | J57: 196154 | K57: =ROUND(J57*(1-$E$3)/Лист2!$A$6,0) -> 196154
C58: SO L9DG 188 R290 | D58: Стеллаж холодильный ВПВ С (SOLO L9 DG 1875) R290 | E58: фруктовая | F58: -1…+5 С | G58: 5.63 | H58: 1955х910х2090 | I58: 2130х1030х2230/ 2180х1080х2230 | J58: 279989 | K58: =ROUND(J58*(1-$E$3)/Лист2!$A$6,0) -> 279989
E59: гастрономическая | H59: 1955х910х2090 | J59: 276767 | K59: =ROUND(J59*(1-$E$3)/Лист2!$A$6,0) -> 276767
E60: базовая (пустая) | H60: 1875х910х2090 | J60: 215974 | K60: =ROUND(J60*(1-$E$3)/Лист2!$A$6,0) -> 215974
C61: SO L9DG 250 R290 | D61: Стеллаж холодильный ВПВ С (SOLO L9 DG 2500) R290 | E61: фруктовая | F61: -1…+5 С | G61: 7.51 | H61: 2580х910х2090 | I61: 2750х1030х2230/ 2800х1080х2230 | J61: 0 | K61: =ROUND(J61*(1-$E$3)/Лист2!$A$6,0) -> 0
E62: гастрономическая | H62: 2580х910х2090 | J62: 405426 | K62: =ROUND(J62*(1-$E$3)/Лист2!$A$6,0) -> 405426
E63: базовая (пустая) | H63: 2500х910х2090 | J63: 337894 | K63: =ROUND(J63*(1-$E$3)/Лист2!$A$6,0) -> 337894
D64: (Модуль 1250 мм. - 1 дверной блок (2 двери); 1875 мм. - 1 дверной блок (3 двери); 2500 мм. - 2 дверных блока по 2 двери)
A65: 4 | B65: Solo SML | J65: Опции Solo SML | M65: Solo SML
A67: Стандартная комплектация стеллажа: - Внутренняя поверхность ванны из оцинкованного пластификата (двойная защита от коррозии) - электронный контроллер для управления работой оборудования; - цифрофой термометр; - компрессор R-290; - автоматическая система выпаривания конденсата; - ночные штороки; -стандартная упаковка на поддоне, опцонально в деревянной обрешетке Характеристика:C.0.0-0.0, внеш 7016гл_внутр 7016гл
C68: SOLOSML 1000 ВПВС1 R290 | D68: Стеллаж холодильный ВПВ С (SOLO SML 1000 Д) R290 ББ | E68: с боковинами | F68: +1...+10 С | G68: 1.94 | H68: 1050х854х1600 | I68: 1170х970х1690 | J68: 176287 | K68: =ROUND(J68*(1-$E$3)/Лист2!$A$6,0) -> 176287
C69: SOLOSML 1000 ВПВС1 R290ББ | E69: без боковин | H69: 1000х854х1600 | J69: 146303 | K69: =ROUND(J69*(1-$E$3)/Лист2!$A$6,0) -> 146303
C70: SOLOSML 1250 ВПВС1 R290 | D70: Стеллаж холодильный ВПВ С (SOLO SML 1250 Д) R290 ББ | E70: с боковинами | F70: +1...+10 С | G70: 2.43 | H70: 1300х854х1600 | I70: 1420х970х1690 | J70: 182659 | K70: =ROUND(J70*(1-$E$3)/Лист2!$A$6,0) -> 182659
C71: SOLOSML 1250 ВПВС1 R290ББ | E71: без боковин | H71: 1250х854х1600 | J71: 152675 | K71: =ROUND(J71*(1-$E$3)/Лист2!$A$6,0) -> 152675
C72: SOLOSML 1875 ВПВС1 R290 | D72: Стеллаж холодильный ВПВ С (SOLO SML 1875 Д) R290 | E72: с боковинами | F72: +1...+10 С | G72: 3.64 | H72: 1925х854х1600 | I72: 2050х970х1690 | J72: 229624 | K72: =ROUND(J72*(1-$E$3)/Лист2!$A$6,0) -> 229624
C73: SOLOSML 1875 ВПВС1 R290ББ | E73: без боковин | H73: 1875х854х1600 | J73: 199640 | K73: =ROUND(J73*(1-$E$3)/Лист2!$A$6,0) -> 199640
H75: НАВЕРХ

Sheet Горки Italfrigo
H1: ЗАВОД «ОПК» Тел.: +7 (495) 987-4388 e-mail: info@cryspi.ru сайт: cryspi.ru | L1: На главную
B3: Ваша скидка: | E3: =Содержание!D2 -> 0
B4: НДС: | E4: =IF(Лист2!A1=TRUE,"С НДС","БЕЗ НДС") -> С НДС
A6: Охлаждаемые стеллажи Italfrigo под выносное холодообеспечение
A9: № | B9: Изображение | C9: Артикул | D9: Наименование | F9: Температурный режим,°C | G9: Площадь экспозиции, кв.м. | H9: Габариты, (LxWxH) мм | I9: Габариты в упаковке, (LxWxH) мм | J9: Базовая цена, руб. (с НДС) | K9: =[5]Лист2!$A$5 -> Ваша цена, руб.
A11: 1 | B11: Охлаждаемые стеллажи RIMINI | J11: Опции Rimini
A13: Базовая комплектация стеллажа: - без противоударного бампера - внутренний объем - оцинкованный металл - внутренняя поверхность ванны из оцинкованного пластификата (двойная защита от коррозии); - электронный контроллер для управления работой оборудования; - без освещения - без полок - цифрофой термометр; - механический ТРВ Sanhua -стандартная упаковка на поддоне, опцонально в деревянной обрешетке - блок остекления со стеклопакетом для стеллажей DG - ночная шторкa для открытого стеллажа - стандартные вентиляторы - комплект подключения к системе дренажа - Стеллажи производятся в разобранном виде "BOX" - без боковин - упаковка в деревянной обрешетке Характеристика:EL.S.Y.0.0.PS.0.внеш 7016гл_внутр 7016гл | D13: Комплектация "Фрукты-овощи" + к базовой комплектации: - Общее светодиодное освещение, стандартный - 4000К, опционально 2700К, 6500К; - 3 ряда полок с ценникодержателем (Rimini L7/H7 - полки глубиной 400 мм., Rimini L9/H9 - полки глубиной 500 мм., Rimini H10 - полки глубиной 600 мм.); - комплект наклонного зеркала - наклонная решетка для базовой полки Комплект наклонного зекрала и наклонной решетки для базовой полки в отдельном ящике Характеристика:EL.S.Y.2.3.PS.Т.внеш 7016гл_внутр 7016гл | F13: Комплектация "Гастрономия" + к базовой комплектации: - Общее светодиодное освещение, стандартный - 4000К, опционально 2700К, 6500К, - 5 рядов полок с ценникодержателем (Rimini L7/H7 - полки глубиной 400 мм., Rimini L9/H9 - полки глубиной 500 мм., Rimini H10 - полки глубиной 600 мм.); Характеристика:EL.S.Y.2.5.PS.0.внеш 7016гл_внутр 7016гл
A14: Rimini L7 BOX Открытое исполнение (ночные шторки)
C15: IRML7B 125 | D15: Стеллаж охлаждаемый ВПВ С (Italfrigo Rimini L7 BOX 1250 Д) | E15: гастрономическая | F15: 0…+7 С | G15: 3.12 | H15: 1250х700х1964 | I15: 2130х1110х850 | J15: 119461 | K15: =ROUND(J15*(1-$E$3)/Лист2!$A$6,0) -> 119461
E16: базовая (пустая) | J16: 108038.2864 | K16: =ROUND(J16*(1-$E$3)/Лист2!$A$6,0) -> 108038
C17: IRML7В 188 | D17: Стеллаж охлаждаемый ВПВ С (Italfrigo Rimini L7 BOX 1875 Д) | E17: гастрономическая | F17: 0…+7 С | G17: 4.68 | H17: 1875х700х1964 | I17: 2265х1110х850 | J17: 162978 | K17: =ROUND(J17*(1-$E$3)/Лист2!$A$6,0) -> 162978
E18: базовая (пустая) | J18: 143032.8416 | K18: =ROUND(J18*(1-$E$3)/Лист2!$A$6,0) -> 143033 | O18: `
C19: IRML7В 250 | D19: Стеллаж охлаждаемый ВПВ С (Italfrigo Rimini L7 BOX 2500 Д) | E19: гастрономическая | F19: 0…+7 С | G19: 6.25 | H19: 2500х700х1964 | I19: 2700х1110х850 | J19: 193518 | K19: =ROUND(J19*(1-$E$3)/Лист2!$A$6,0) -> 193518
E20: базовая (пустая) | J20: 171578.6292 | K20: =ROUND(J20*(1-$E$3)/Лист2!$A$6,0) -> 171579
C21: IRML7В 375 | D21: Стеллаж охлаждаемый ВПВ С (Italfrigo Rimini L7 BOX 3750 Д) | E21: гастрономическая | F21: 0…+7 С | G21: 9.4 | H21: 3750х700х1964 | I21: 4000х1110х850 | J21: 258054 | K21: =ROUND(J21*(1-$E$3)/Лист2!$A$6,0) -> 258054
E22: базовая (пустая) | J22: 225982.4986 | K22: =ROUND(J22*(1-$E$3)/Лист2!$A$6,0) -> 225982
A23: Rimini L7 DG BOX Фронтальный блок остекления - стеклопакет (DG - Double Glass)
C24: IRML7DB 125 | D24: Стеллаж охлаждаемый ВПВ С (Italfrigo Rimini L7 DG BOX 1250 Д) | E24: гастрономическая | F24: -1…+6 С | G24: 3.12 | H24: 1250х700х1964 | I24: 2130х1180х850 | J24: 128851 | K24: =ROUND(J24*(1-$E$3)/Лист2!$A$6,0) -> 128851
E25: базовая (пустая) | J25: 117427.7443 | K25: =ROUND(J25*(1-$E$3)/Лист2!$A$6,0) -> 117428
C26: IRML7DB 188 | D26: Стеллаж охлаждаемый ВПВ С (Italfrigo Rimini L7 DG BOX 1875 Д) | E26: гастрономическая | F26: -1…+6 С | G26: 4.68 | H26: 1875х700х1964 | I26: 2265х1180х850 | J26: 183497 | K26: =ROUND(J26*(1-$E$3)/Лист2!$A$6,0) -> 183497
E27: базовая (пустая) | J27: 163551.6724 | K27: =ROUND(J27*(1-$E$3)/Лист2!$A$6,0) -> 163552
C28: IRML7DB 250 | D28: Стеллаж охлаждаемый ВПВ С (Italfrigo Rimini L7 DG BOX 2500 Д) | E28: гастрономическая | F28: -1…+6 С | G28: 6.25 | H28: 2500х700х1964 | I28: 2700х1180х850 | J28: 217697 | K28: =ROUND(J28*(1-$E$3)/Лист2!$A$6,0) -> 217697
E29: базовая (пустая) | J29: 195756.8632 | K29: =ROUND(J29*(1-$E$3)/Лист2!$A$6,0) -> 195757
C30: IRML7DB 375 | D30: Стеллаж охлаждаемый ВПВ С (Italfrigo Rimini L7 DG BOX 3750 Д) | E30: гастрономическая | F30: -1…+6 С | G30: 9.4 | H30: 3750х700х1964 | I30: 4000х1180х850 | J30: 309983 | K30: =ROUND(J30*(1-$E$3)/Лист2!$A$6,0) -> 309983
E31: базовая (пустая) | J31: 277912.0364 | K31: =ROUND(J31*(1-$E$3)/Лист2!$A$6,0) -> 277912
A32: Rimini Н7 BOX Открытое исполнение (ночные шторки)
C33: IRMН7B 125 | D33: Стеллаж охлаждаемый ВПВ С (Italfrigo Rimin Н7 BOX 1250 Д) | E33: гастрономическая | F33: 0…+7 С | G33: 3.12 | H33: 1250х700х2164 | I33: 2130х1110х850 | J33: 121666 | K33: =ROUND(J33*(1-$E$3)/Лист2!$A$6,0) -> 121666
E34: базовая (пустая) | J34: 110243.5356 | K34: =ROUND(J34*(1-$E$3)/Лист2!$A$6,0) -> 110244
C35: IRMН7В 188 | D35: Стеллаж охлаждаемый ВПВ С (Italfrigo Rimini Н7 BOX 1875 Д) | E35: гастрономическая | F35: 0…+7 С | G35: 4.68 | H35: 1875х700х2164 | I35: 2265х1110х850 | J35: 165897 | K35: =ROUND(J35*(1-$E$3)/Лист2!$A$6,0) -> 165897
E36: базовая (пустая) | J36: 145951.652 | K36: =ROUND(J36*(1-$E$3)/Лист2!$A$6,0) -> 145952
C37: IRMН7В 250 | D37: Стеллаж охлаждаемый ВПВ С (Italfrigo Rimini Н7 BOX 2500 Д) | E37: гастрономическая | F37: 0…+7 С | G37: 6.25 | H37: 2500х700х2164 | I37: 2700х1110х850 | J37: 197019 | K37: =ROUND(J37*(1-$E$3)/Лист2!$A$6,0) -> 197019
E38: базовая (пустая) | J38: 175079.6432 | K38: =ROUND(J38*(1-$E$3)/Лист2!$A$6,0) -> 175080
C39: IRMН7В 375 | D39: Стеллаж охлаждаемый ВПВ С (Italfrigo Rimini Н7 BOX 3750 Д) | E39: гастрономическая | F39: 0…+7 С | G39: 9.4 | H39: 3750х700х2164 | I39: 4000х1110х850 | J39: 262666 | K39: =ROUND(J39*(1-$E$3)/Лист2!$A$6,0) -> 262666
E40: базовая (пустая) | J40: 230594.3863 | K40: =ROUND(J40*(1-$E$3)/Лист2!$A$6,0) -> 230594
A41: Rimini Н7 DG BOX Фронтальный блок остекления - стеклопакет (DG - Double Glass)
C42: IRMH7DB 125 | D42: Стеллаж охлаждаемый ВПВ С (Italfrigo Rimini Н7 DG BOX 1250 Д) | E42: гастрономическая | F42: -1…+6 С | G42: 3.12 | H42: 1250х700х2164 | I42: 2130х1180х850 | J42: 130286 | K42: =ROUND(J42*(1-$E$3)/Лист2!$A$6,0) -> 130286
E43: базовая (пустая) | J43: 118863.2661 | K43: =ROUND(J43*(1-$E$3)/Лист2!$A$6,0) -> 118863
C44: IRMH7DB 188 | D44: Стеллаж охлаждаемый ВПВ С (Italfrigo Rimini Н7 DG BOX 1875 Д) | E44: гастрономическая | F44: -1…+6 С | G44: 4.68 | H44: 1875х700х2164 | I44: 2265х1180х850 | J44: 185950 | K44: =ROUND(J44*(1-$E$3)/Лист2!$A$6,0) -> 185950
E45: базовая (пустая) | J45: 166004.9475 | K45: =ROUND(J45*(1-$E$3)/Лист2!$A$6,0) -> 166005
C46: IRMH7DB 250 | D46: Стеллаж охлаждаемый ВПВ С (Italfrigo Rimini Н7 DG BOX 2500 Д) | E46: гастрономическая | F46: -1…+6 С | G46: 6.25 | H46: 2500х700х2164 | I46: 2700х1180х850 | J46: 220633 | K46: =ROUND(J46*(1-$E$3)/Лист2!$A$6,0) -> 220633
E47: базовая (пустая) | J47: 198693.066 | K47: =ROUND(J47*(1-$E$3)/Лист2!$A$6,0) -> 198693
C48: IRMH7DB 375 | D48: Стеллаж охлаждаемый ВПВ С (Italfrigo Rimini Н7 DG BOX 3750 Д) | E48: гастрономическая | F48: -1…+6 С | G48: 9.4 | H48: 3750х700х2164 | I48: 4000х1180х850 | J48: 314152.2554 | K48: =ROUND(J48*(1-$E$3)/Лист2!$A$6,0) -> 314152
E49: базовая (пустая) | J49: 282080.7169 | K49: =ROUND(J49*(1-$E$3)/Лист2!$A$6,0) -> 282081
A50: Rimini L9 BOX Открытое исполнение (ночные шторки)
C51: IRML9B 125 | D51: Стеллаж охлаждаемый ВПВ С (Italfrigo Rimini L9 BOX 1250 Д) | E51: гастрономическая | F51: 0…+7 С | G51: 4.01 | H51: 1250х910х1964 | I51: 2130х1110х850 | J51: 122554 | K51: =ROUND(J51*(1-$E$3)/Лист2!$A$6,0) -> 122554
E52: базовая (пустая) | J52: 108571.5092 | K52: =ROUND(J52*(1-$E$3)/Лист2!$A$6,0) -> 108572
C53: IRML9B 188 | D53: Стеллаж охлаждаемый ВПВ С (Italfrigo Rimini L9 BOX 1875 Д) | E53: гастрономическая | F53: 0…+7 С | G53: 6.01 | H53: 1875х910х1964 | I53: 2265х1110х850 | J53: 166499 | K53: =ROUND(J53*(1-$E$3)/Лист2!$A$6,0) -> 166499
E54: базовая (пустая) | J54: 143770.8932 | K54: =ROUND(J54*(1-$E$3)/Лист2!$A$6,0) -> 143771
C55: IRML9B 250 | D55: Стеллаж охлаждаемый ВПВ С (Italfrigo Rimini L9 BOX 2500 Д) | E55: гастрономическая | F55: 0…+7 С | G55: 8.02 | H55: 2500х910х1964 | I55: 2700х1110х850 | J55: 199632 | K55: =ROUND(J55*(1-$E$3)/Лист2!$A$6,0) -> 199632
E56: базовая (пустая) | J56: 172571.6036 | K56: =ROUND(J56*(1-$E$3)/Лист2!$A$6,0) -> 172572
C57: IRML9B 375 | D57: Стеллаж охлаждаемый ВПВ С (Italfrigo Rimini L9 BOX 3750 Д) | E57: гастрономическая | F57: 0…+7 С | G57: 12.03 | H57: 3750х910х1964 | I57: 4000х1110х850 | J57: 260942 | K57: =ROUND(J57*(1-$E$3)/Лист2!$A$6,0) -> 260942
E58: базовая (пустая) | J58: 221188.9021 | K58: =ROUND(J58*(1-$E$3)/Лист2!$A$6,0) -> 221189
A59: Rimini L9 DG BOX Фронтальный блок остекления - стеклопакет (DG - Double Glass)
C60: IRML9DB 125 | D60: Стеллаж охлаждаемый ВПВ С (Italfrigo Rimini L9 DG BOX 1250 Д) | E60: гастрономическая | F60: -1…+6 С | G60: 4.01 | H60: 1250х910х1964 | I60: 2130х1180х850 | J60: 145009 | K60: =ROUND(J60*(1-$E$3)/Лист2!$A$6,0) -> 145009
E61: базовая (пустая) | J61: 131025.8884 | K61: =ROUND(J61*(1-$E$3)/Лист2!$A$6,0) -> 131026
C62: IRML9DB 188 | D62: Стеллаж охлаждаемый ВПВ С (Italfrigo Rimini L9 DG BOX 1875 Д) | E62: гастрономическая | F62: -1…+6 С | G62: 6.01 | H62: 1875х910х1964 | I62: 2265х1180х850 | J62: 199148 | K62: =ROUND(J62*(1-$E$3)/Лист2!$A$6,0) -> 199148
E63: базовая (пустая) | J63: 176420.6844 | K63: =ROUND(J63*(1-$E$3)/Лист2!$A$6,0) -> 176421
C64: IRML9DB 250 | D64: Стеллаж охлаждаемый ВПВ С (Italfrigo Rimini L9 DG BOX 2500 Д) | E64: гастрономическая | F64: -1…+6 С | G64: 8.02 | H64: 2500х910х1964 | I64: 2700х1180х850 | J64: 246297 | K64: =ROUND(J64*(1-$E$3)/Лист2!$A$6,0) -> 246297
E65: базовая (пустая) | J65: 219236.2306 | K65: =ROUND(J65*(1-$E$3)/Лист2!$A$6,0) -> 219236
C66: IRML9DB 375 | D66: Стеллаж охлаждаемый ВПВ С (Italfrigo Rimini L9 DG BOX 3750 Д) | E66: гастрономическая | F66: -1…+6 С | G66: 12.03 | H66: 3750х910х1964 | I66: 4000х1180х850 | J66: 345738 | K66: =ROUND(J66*(1-$E$3)/Лист2!$A$6,0) -> 345738
E67: базовая (пустая) | J67: 305984.998 | K67: =ROUND(J67*(1-$E$3)/Лист2!$A$6,0) -> 305985
A68: Rimini Н9 BOX Открытое исполнение (ночные шторки)
C69: IRMH9B 125 | D69: Стеллаж охлаждаемый ВПВ С (Italfrigo Rimini H9 BOX 1250 Д) | E69: гастрономическая | F69: 0…+7 С | G69: 4.01 | H69: 1250х910х2164 | I69: 2130х1110х850 | J69: 127470 | K69: =ROUND(J69*(1-$E$3)/Лист2!$A$6,0) -> 127470
E70: базовая (пустая) | J70: 113487.4004 | K70: =ROUND(J70*(1-$E$3)/Лист2!$A$6,0) -> 113487
C71: IRMH9B 188 | D71: Стеллаж охлаждаемый ВПВ С (Italfrigo Rimini H9 BOX 1875 Д) | E71: гастрономическая | F71: 0…+7 С | G71: 6.01 | H71: 1875х910х2164 | I71: 2265х1110х850 | J71: 172369 | K71: =ROUND(J71*(1-$E$3)/Лист2!$A$6,0) -> 172369
E72: базовая (пустая) | J72: 149640.7968 | K72: =ROUND(J72*(1-$E$3)/Лист2!$A$6,0) -> 149641
C73: IRMH9B 250 | D73: Стеллаж охлаждаемый ВПВ С (Italfrigo Rimini H9 BOX 2500 Д) | E73: гастрономическая | F73: 0…+7 С | G73: 8.02 | H73: 2500х910х2164 | I73: 2700х1110х850 | J73: 207076 | K73: =ROUND(J73*(1-$E$3)/Лист2!$A$6,0) -> 207076
E74: базовая (пустая) | J74: 180015.572 | K74: =ROUND(J74*(1-$E$3)/Лист2!$A$6,0) -> 180016
C75: IRMH9B 375 | D75: Стеллаж охлаждаемый ВПВ С (Italfrigo Rimini H9 BOX 3750 Д) | E75: гастрономическая | F75: 0…+7 С | G75: 12.03 | H75: 3750х910х2164 | I75: 4000х1110х850 | J75: 272334 | K75: =ROUND(J75*(1-$E$3)/Лист2!$A$6,0) -> 272334
E76: базовая (пустая) | J76: 232581.5275 | K76: =ROUND(J76*(1-$E$3)/Лист2!$A$6,0) -> 232582
A77: Rimini Н9 DG BOX Фронтальный блок остекления - стеклопакет (DG - Double Glass)
C78: IRMH9DB 125 | D78: Стеллаж охлаждаемый ВПВ С (Italfrigo Rimini H9 DG BOX 1250 Д) | E78: гастрономическая | F78: -1…+6 С | G78: 4.01 | H78: 1250х910х2164 | I78: 2130х1180х850 | J78: 147760 | K78: =ROUND(J78*(1-$E$3)/Лист2!$A$6,0) -> 147760
E79: базовая (пустая) | J79: 133777.0882 | K79: =ROUND(J79*(1-$E$3)/Лист2!$A$6,0) -> 133777
C80: IRMH9DB 188 | D80: Стеллаж охлаждаемый ВПВ С (Italfrigo Rimini H9 DG BOX 1875 Д) | E80: гастрономическая | F80: -1…+6 С | G80: 6.01 | H80: 1875х910х2164 | I80: 2265х1180х850 | J80: 194455 | K80: =ROUND(J80*(1-$E$3)/Лист2!$A$6,0) -> 194455
E81: базовая (пустая) | J81: 171726.4498 | K81: =ROUND(J81*(1-$E$3)/Лист2!$A$6,0) -> 171726
C82: IRMH9DB 250 | D82: Стеллаж охлаждаемый ВПВ С (Italfrigo Rimini H9 DG BOX 2500 Д) | E82: гастрономическая | F82: -1…+6 С | G82: 8.02 | H82: 2500х910х2164 | I82: 2700х1180х850 | J82: 246984 | K82: =ROUND(J82*(1-$E$3)/Лист2!$A$6,0) -> 246984
E83: базовая (пустая) | J83: 219924.0306 | K83: =ROUND(J83*(1-$E$3)/Лист2!$A$6,0) -> 219924
C84: IRMH9DB 375 | D84: Стеллаж охлаждаемый ВПВ С (Italfrigo Rimini H9 DG BOX 3750 Д) | E84: гастрономическая | F84: -1…+6 С | G84: 12.03 | H84: 3750х910х2164 | I84: 4000х1180х850 | J84: 351584 | K84: =ROUND(J84*(1-$E$3)/Лист2!$A$6,0) -> 351584
E85: базовая (пустая) | J85: 311831.2974 | K85: =ROUND(J85*(1-$E$3)/Лист2!$A$6,0) -> 311831
A86: Rimini Н10 BOX Открытое исполнение (ночные шторки)
C87: IRMH10B 125 | D87: Стеллаж охлаждаемый ВПВ С (Italfrigo Rimini H10 BOX 1250 Д) | E87: гастрономическая | F87: 0…+7 С | G87: 4.75 | H87: 1250х1000х2164 | I87: 2130х1180х850 | J87: 136832 | K87: =ROUND(J87*(1-$E$3)/Лист2!$A$6,0) -> 136832
E88: базовая (пустая) | J88: 121432.3088 | K88: =ROUND(J88*(1-$E$3)/Лист2!$A$6,0) -> 121432
C89: IRMH10B 188 | D89: Стеллаж охлаждаемый ВПВ С (Italfrigo Rimini H10 BOX 1875 Д) | E89: гастрономическая | F89: 0…+7 С | G89: 7.12 | H89: 1875х1000х2164 | I89: 2265х1180х850 | J89: 184645 | K89: =ROUND(J89*(1-$E$3)/Лист2!$A$6,0) -> 184645
E90: базовая (пустая) | J90: 160116.0088 | K90: =ROUND(J90*(1-$E$3)/Лист2!$A$6,0) -> 160116
C91: IRMH10B 250 | D91: Стеллаж охлаждаемый ВПВ С (Italfrigo Rimini H10 BOX 2500 Д) | E91: гастрономическая | F91: 0…+7 С | G91: 9.5 | H91: 2500х1000х2164 | I91: 2700х1180х850 | J91: 222511 | K91: =ROUND(J91*(1-$E$3)/Лист2!$A$6,0) -> 222511
E92: базовая (пустая) | J92: 192616.996 | K92: =ROUND(J92*(1-$E$3)/Лист2!$A$6,0) -> 192617
C93: IRMH10B 375 | D93: Стеллаж охлаждаемый ВПВ С (Italfrigo Rimini H10 BOX 3750 Д) | E93: гастрономическая | F93: 0…+7 С | G93: 14.25 | H93: 3750х1000х2164 | I93: 4000х1180х850 | J93: 283562 | K93: =ROUND(J93*(1-$E$3)/Лист2!$A$6,0) -> 283562
E94: базовая (пустая) | J94: 239558.9733 | K94: =ROUND(J94*(1-$E$3)/Лист2!$A$6,0) -> 239559
A95: Rimini Н10 DG BOX Фронтальный блок остекления - стеклопакет (DG - Double Glass)
C96: IRMH10DB 125 | D96: Стеллаж охлаждаемый ВПВ С (Italfrigo Rimini H10 DG BOX 1250 Д) | E96: гастрономическая | F96: -1…+6 С | G96: 4.75 | H96: 1250х1000х2164 | I96: 2130х1180х850 | J96: 150587 | K96: =ROUND(J96*(1-$E$3)/Лист2!$A$6,0) -> 150587
E97: базовая (пустая) | J97: 135187.338 | K97: =ROUND(J97*(1-$E$3)/Лист2!$A$6,0) -> 135187
C98: IRMH10DB 188 | D98: Стеллаж охлаждаемый ВПВ С (Italfrigo Rimini H10 DG BOX 1875 Д) | E98: гастрономическая | F98: -1…+6 С | G98: 7.12 | H98: 1875х1000х2164 | I98: 2265х1180х850 | J98: 203873 | K98: =ROUND(J98*(1-$E$3)/Лист2!$A$6,0) -> 203873
E99: базовая (пустая) | J99: 179343.8342 | K99: =ROUND(J99*(1-$E$3)/Лист2!$A$6,0) -> 179344
C100: IRMH10DB 250 | D100: Стеллаж охлаждаемый ВПВ С (Italfrigo Rimini H10 DG BOX 2500 Д) | E100: гастрономическая | F100: -1…+6 С | G100: 9.5 | H100: 2500х1000х2164 | I100: 2700х1180х850 | J100: 256782 | K100: =ROUND(J100*(1-$E$3)/Лист2!$A$6,0) -> 256782
E101: базовая (пустая) | J101: 226888.005 | K101: =ROUND(J101*(1-$E$3)/Лист2!$A$6,0) -> 226888
C102: IRMH10DB 375 | D102: Стеллаж охлаждаемый ВПВ С (Italfrigo Rimini H10 DG BOX 3750 Д) | E102: гастрономическая | F102: -1…+6 С | G102: 14.25 | H102: 3750х1000х2164 | I102: 4000х1180х850 | J102: 374200 | K102: =ROUND(J102*(1-$E$3)/Лист2!$A$6,0) -> 374200
E103: базовая (пустая) | J103: 331536.7657 | K103: =ROUND(J103*(1-$E$3)/Лист2!$A$6,0) -> 331537
A104: 2 | B104: Охлаждаемые стеллажи полувертикальные LAZIO | J104: Опции Rimini
A106: Базовая комплектация стеллажа: - без противоударного бампера - внутренний объем - оцинкованный металл - внутренняя поверхность ванны из оцинкованного пластификата (двойная защита от коррозии); - электронный контроллер для управления работой оборудования; - без освещения - без полок - цифрофой термометр; - механический ТРВ Sanhua -стандартная упаковка на поддоне, опцонально в деревянной обрешетке - блок остекления со стеклопакетом для стеллажей DG - ночная шторкa для открытого стеллажа - стандартные вентиляторы - комплект подключения к системе дренажа - без боковин - упаковка на поддоне Характеристика:EL.S.Y.0.0.PS.0.внеш 7016гл_внутр 7016гл | D106: Комплектация "Фрукты-овощи" + к базовой комплектации: - Общее светодиодное освещение, стандартный - 4000К, опционально 2700К, 6500К; - 2 ряда полок с ценникодержателем - полки глубиной 400 мм.и глубиной 500 мм. - наклонная решетка для базовой полки Комплект наклонного зекрала и наклонной решетки для базовой полки в отдельном ящике Характеристика:EL.S.Y.2.2.PS.T.внеш 7016гл_внутр 7016гл | F106: Комплектация "Гастрономия" + к базовой комплектации: - Общее светодиодное освещение, стандартный - 4000К, опционально 2700К, 6500К, - 3 ряда полок с ценникодержателем полки глубиной 300мм,400 мм. 500 мм.; Характеристика:EL.S.Y.2.3.PS.0.внеш 7016гл_внутр 7016гл
A107: LAZIO S9, Открытое исполнение (ночные шторки)
C108: ILZS9 125 | D108: Стеллаж охлаждаемый полувертикальный ВПВ С (Italfrigo Lazio S9 1250 Д) | E108: гастрономическая | F108: 0…+7 С | G108: 2.34 | H108: 1250х910х1562 | I108: 1450х1020х1665/ 1500х1070х1715 | J108: 108974 | K108: =ROUND(J108*(1-$E$3)/Лист2!$A$6,0) -> 108974
E109: базовая (пустая) | J109: 94782.33397 | K109: =ROUND(J109*(1-$E$3)/Лист2!$A$6,0) -> 94782
C110: ILZS9 188 | D110: Стеллаж охлаждаемый полувертикальный ВПВ С (Italfrigo Lazio S9 1875 Д) | E110: гастрономическая | F110: 0…+7 С | G110: 3.5 | H110: 1875х910х1562 | I110: 2080х1020х1665/ 2130х1070х1715 | J110: 132468 | K110: =ROUND(J110*(1-$E$3)/Лист2!$A$6,0) -> 132468
E111: базовая (пустая) | J111: 117286.8875 | K111: =ROUND(J111*(1-$E$3)/Лист2!$A$6,0) -> 117287
C112: ILZS9 250 | D112: Стеллаж охлаждаемый полувертикальный ВПВ С (Italfrigo Lazio S9 2500 Д) | E112: гастрономическая | F112: 0…+7 С | G112: 4.68 | H112: 2500х910х1562 | I112: 2700х1020х1665/ 2750х1070х1715 | J112: 158605 | K112: =ROUND(J112*(1-$E$3)/Лист2!$A$6,0) -> 158605
E113: базовая (пустая) | J113: 142012.26 | K113: =ROUND(J113*(1-$E$3)/Лист2!$A$6,0) -> 142012
C114: ILZS9 375 | D114: Стеллаж охлаждаемый полувертикальный ВПВ С (Italfrigo Lazio S9 3750 Д) | E114: гастрономическая | F114: 0…+7 С | G114: 7.02 | H114: 3750х910х1562 | I114: 3950х1020х1665/ 4000х1070х1715 | J114: 217788 | K114: =ROUND(J114*(1-$E$3)/Лист2!$A$6,0) -> 217788
E115: базовая (пустая) | J115: 194329.0853 | K115: =ROUND(J115*(1-$E$3)/Лист2!$A$6,0) -> 194329
C116: ILZS9Т 188 | D116: Стеллаж охлаждаемый полувертикальный торцевой ВПВ С (Italfrigo Lazio S9 1875 Д) | E116: гастрономическая | F116: 0…+7 С | G116: 3.5 | H116: 1950х910х1562 | I116: 2080х1020х1665/ 2130х1070х1715 | J116: 158784 | K116: =ROUND(J116*(1-$E$3)/Лист2!$A$6,0) -> 158784
E117: базовая (пустая) | J117: 143602.3556 | K117: =ROUND(J117*(1-$E$3)/Лист2!$A$6,0) -> 143602
A118: LAZIO S10, Открытое исполнение (ночные шторки)

Sheet Gamma в линию (hidden)
A1: Примечания: | AY1: В содержание
A2: 1. Витрины с различными температурными режимами желательно разделять боковинами
A3: 2. В комплект герметичного разделителя входит комплект соединительный
A5: 1. Линия витрин GAMMA-2
C7: боковина | E7: GAMMA-2 ББ | P7: GAMMA-2 ББ | AA7: GAMMA-2 ББ | AL7: боковина
C12: Вариант спецификации
C13: Наименование | AT13: Кол-во
C14: Gamma-2 1200 | AA14: без боковин | AT14: 1
C15: Gamma-2 1500 | AA15: без боковин | AT15: 1
C16: Gamma-2 1800 | AA16: без боковин | AT16: 1
C17: Комплект соединительный 337.50.00.00 для ВПС/ВПСН/ВПН Gamma-2 | AT17: 2
C18: Комплект боковин 337.40.00.00 для ВПС/ВПСН Gamma 2 | AT18: 1
A21: 2. Линия витрин GAMMA-2 через герметичный разделитель
C23: боковина | E23: GAMMA-2 ББ | P23: герм.разд. | R23: GAMMA-2 ББ | AC23: герм.разд. | AE23: GAMMA-2 ББ | AP23: боковина
C28: Вариант спецификации
C29: Наименование | AT29: Кол-во
C30: Gamma-2 1200 | AA30: без боковин | AT30: 1
C31: Gamma-2 1500 | AA31: без боковин | AT31: 1
C32: Gamma-2 1800 | AA32: без боковин | AT32: 1
C33: Комплект герметичного разделителя 337.83.00.00 для ВПС/ВПСН/ВПН Gamma-2 | AT33: 2
C34: Комплект боковин 337.40.00.00 для ВПС/ВПСН Gamma 2 | AT34: 1

Sheet Низкотемпературные шкафы
G1: ЗАВОД «ОПК» Тел.: +7 (495) 987-4388 e-mail: info@cryspi.ru сайт: cryspi.ru | J1: На главную
B3: Ваша скидка: | D3: =Содержание!D2 -> 0
B4: НДС: | D4: =IF(Лист2!A1=TRUE,"С НДС","БЕЗ НДС") -> С НДС
A6: Низкотемпературные шкафы Cryspi со встроенным агрегатом
A9: № | B9: Изображение | C9: Наименование | E9: Температурный режим,°C | F9: Площадь экспозиции, кв.м. | G9: Габариты, (LxWxH) мм | H9: Базовая цена, руб. (с НДС) | I9: =[5]Лист2!$A$5 -> Ваша цена, руб.
A11: 1 | B11: Шкаф-надстройка Verona | K11: СЕЧЕНИЯ
K12: VERONA
C13: Стандартная комплектация: - подставка с комплектом крепежа - светодиодная подсветка внутреннего объема (4500К, 6500К) без изменения цены - автоматическая оттайка горячим газом - автоматическое выпаривание конденсата - 4 уровня решетчатых полок Характеристика С.4.2.PS.0.внеш9016гл_внутр9016гл | F13: Тип охлаждения - динамический - Климатический класс - 3 - Температура окружающей среды, С° - max +25 - Относительная влажность воздуха, % - max 60 - Хладагент - R290 - Напряжение, В - 220
C15: Шкаф низкотемпературный ШН Verona 1220 | E15: -23…-18 | F15: 1.076 | G15: 1217х750х2210 | H15: 171923 | I15: =ROUND(H15*(1-$D$3)/Лист2!$A$6,0) -> 171923
C19: Надстройка для ларя 400 л.
A20: Низкотемпературные шкафы под выносное холодообеспечение
A23: 4 | B23: MILAN S
C25: Стандартная комплектация: - светодиодная подсветка внутреннего объема (4000/6000К) верхняя и вертикальная - оттайка ТЭНами - сифон для подключения к канализации - 3/4 уровня решетчатых полок с ценникодержателями - базовые полки-решетки - ТРВ для R404a - без фронтального отбойника - электроллный контроллер управления - без боковин - без полок -без корзин сетчатых на базовую полку
C26: Шкаф морозильный ШН (Italfrigo Milan S D3 2343) | D26: IMS ШН2 234 Д | E26: -22…-18 | F26: 4.85 | G26: 2343х885х1515 | H26: 361735 | I26: =ROUND(H26*(1-$D$3)/Лист2!$A$6,0) -> 361735
C27: ОПЦИИ
C28: Комплект боковины глухой левой 939.40.00.00 для Milan S | D28: 939.40.00.00 | E28: - | F28: - | G28: - | H28: 10081.78246 | I28: =ROUND(H28*(1-$D$3)/Лист2!$A$6,0) -> 10082
C29: Комплект боковины глухой правой 939.40.00.00mir для Milan S | D29: 939.40.00.00mir | E29: - | F29: - | G29: - | H29: 10081.78246 | I29: =ROUND(H29*(1-$D$3)/Лист2!$A$6,0) -> 10082
C30: Комплект боковины глухой левой с зеркалом 939.37.00.00 для Milan S | D30: 939.37.00.00 | E30: - | F30: - | G30: - | H30: 11174.98779 | I30: =ROUND(H30*(1-$D$3)/Лист2!$A$6,0) -> 11175
C31: Комплект боковины глухой правой с зеркалом 939.37.00.00mir для Milan S | D31: 939.37.00.00mir | E31: - | F31: - | G31: - | H31: 11174.98779 | I31: =ROUND(H31*(1-$D$3)/Лист2!$A$6,0) -> 11175
C32: Комплект зеркальн гермет разделителя 939.45.00.00 для Milan S | D32: 939.45.00.00 | E32: - | F32: - | G32: - | H32: 16892.81 | I32: =ROUND(H32*(1-$D$3)/Лист2!$A$6,0) -> 16893
C33: Комплект боковины панорамной левой 939.41.00.00 для Milan S | D33: 939.41.00.00 | E33: - | F33: - | G33: - | H33: 19720.56668 | I33: =ROUND(H33*(1-$D$3)/Лист2!$A$6,0) -> 19721
C34: Комплект боковины панорамной правой 939.41.00.00mir для Milan S | D34: 939.41.00.00mir | E34: - | F34: - | G34: - | H34: 19720.56668 | I34: =ROUND(H34*(1-$D$3)/Лист2!$A$6,0) -> 19721
C35: Комплект соединительный в линию 939.60.00.00 для Milan S | D35: 939.60.00.00 | E35: - | F35: - | G35: - | H35: 1989.649011 | I35: =ROUND(H35*(1-$D$3)/Лист2!$A$6,0) -> 1990
C36: Ценникодержатель съемный, L=1000 мм, прозрачный, откидной (на полки, рёшётку) | D36: 845.00.00.11 | E36: - | F36: - | G36: - | H36: 146.1075 | I36: =ROUND(H36*(1-$D$3)/Лист2!$A$6,0) -> 146
C37: Полка сетчатая навесная с кронштейнами 780х513 мм для Milan S с ограничителем | D37: 939.58.00.00 | E37: - | F37: - | G37: - | H37: 1902.959952 | I37: =ROUND(H37*(1-$D$3)/Лист2!$A$6,0) -> 1903
C38: Полка сетчатая базовая 780х574 мм, c ограничителем для Milan S | D38: 775.14.00.00 | E38: - | F38: - | G38: - | H38: 1250.39825 | I38: =ROUND(H38*(1-$D$3)/Лист2!$A$6,0) -> 1250
C39: Комплект отбойника фронтального (пластик) L=2343 | D39: 775.56.00.00-01 | E39: - | F39: - | G39: - | H39: 1714.831885 | I39: =ROUND(H39*(1-$D$3)/Лист2!$A$6,0) -> 1715
C40: Монтажный набор (до 4 кВт) для 1562 (D2), 2343 (D3) | D40: 1106.120.00.00S | E40: - | F40: - | G40: - | H40: 9755.68 | I40: =ROUND(H40*(1-$D$3)/Лист2!$A$6,0) -> 9756
C41: Комплект отбойника фронтального (15х30) L=2343 для Milan/Anzio | D41: 775.55.00.00-01 | E41: - | F41: - | G41: - | H41: 3429.663771 | I41: =ROUND(H41*(1-$D$3)/Лист2!$A$6,0) -> 3430
G47: НАВЕРХ

Sheet Лари ItalFrost
K1: На главную
M2: На главную
A3: Ваша скидка: | D3: =Содержание!D2 -> 0
A4: НДС: | D4: =IF(Лист2!A1=TRUE,"С НДС","БЕЗ НДС") -> С НДС
A5: Морозильные и холодильные лари Italfrost
A7: № | B7: Изображение | C7: Номер КД | D7: Наименование | F7: Температур-ный режим, °C | G7: Объем, л | H7: Габариты, (LxWxH) мм | I7: Базовая цена, руб. (с НДС) | J7: =Лист2!$A$5 -> Ваша цена, руб. | K7: Нажмите для расчета стоимости брендирования
A9: Стандартная комплектация: - Экологически безопасный хладагент R290 - Цвет внешнего и внутреннего корпуса и деталей RAL9003 - Цвет пластиковой крышки серый ( красный, голубой, синий, зеленый - наличие уточнять у менеджеров) - Закаленные стекла с применением шелкографии | F9: Тип охлаждения - статический - Напряжение, В - 220
A10: 1 | B10: Морозильные лари с гнутыми раздвижными стеклами
C11: 1128.00.00.00 | D11: CF200CQ | E11: без корзин | F11: -18…-25 | G11: 235 | H11: 807х662х925 | I11: 41968 | J11: =ROUND(I11*(1-$D$3)/Лист2!$A$6,0) -> 41968 | K11: ПлRAL9003гл,0.Sr.0кор.0.K.0
E12: 3 корзины | I12: 44362 | J12: =ROUND(I12*(1-$D$3)/Лист2!$A$6,0) -> 44362 | K12: ПлRAL9003гл,0.Sr.3кор.0.K.0
C13: 1128.00.00.00-01 | D13: CF300CQ | E13: без корзин | F13: -18…-25 | G13: 319 | H13: 1017х662х925 | I13: 46126 | J13: =ROUND(I13*(1-$D$3)/Лист2!$A$6,0) -> 46126 | K13: ПлRAL9003гл,0.Sr.0кор.0.K.0
E14: 4 корзины | I14: 49318 | J14: =ROUND(I14*(1-$D$3)/Лист2!$A$6,0) -> 49318 | K14: ПлRAL9003гл,0.Sr.4кор.0.K.0
C15: 1128.00.00.00-02 | D15: CF400CQ | E15: без корзин | F15: -18…-25 | G15: 398 | H15: 1217х662х925 | I15: 50010 | J15: =ROUND(I15*(1-$D$3)/Лист2!$A$6,0) -> 50010 | K15: ПлRAL9003гл,0.Sr.0кор.0.K.0 | L15: Сечение ларей с прямой стеклянной крышкой | W15: Сечение ларей с прямой стеклянной крышкой и товарным накопителем
E16: 5 корзин | I16: 54000 | J16: =ROUND(I16*(1-$D$3)/Лист2!$A$6,0) -> 54000 | K16: ПлRAL9003гл,0.Sr.5кор.0.K.0
C17: 1128.00.00.00-03 | D17: CF500CQ | E17: без корзин | F17: -18…-25 | G17: 485 | H17: 1437х662х925 | I17: 54651 | J17: =ROUND(I17*(1-$D$3)/Лист2!$A$6,0) -> 54651 | K17: ПлRAL9003гл,0.Sr.0кор.0.K.0
E18: 6 корзин | I18: 59439 | J18: =ROUND(I18*(1-$D$3)/Лист2!$A$6,0) -> 59439 | K18: ПлRAL9003гл,0.Sr.6кор.0.K.0
C19: 1128.00.00.00-04 | D19: CF600CQ | E19: без корзин | F19: -18…-25 | G19: 572 | H19: 1657х662х925 | I19: 58757 | J19: =ROUND(I19*(1-$D$3)/Лист2!$A$6,0) -> 58757 | K19: ПлRAL9003гл,0.Sr.0кор.0.K.0
E20: 7 корзин | I20: 64343 | J20: =ROUND(I20*(1-$D$3)/Лист2!$A$6,0) -> 64343 | K20: ПлRAL9003гл,0.Sr.7кор.0.K.0
A21: 3 | B21: Морозильные лари с прямыми раздвижными стеклами (составная корона)
C22: 1127.00.00.00 | D22: CF200FQ | E22: без корзин | F22: -18…-25 | G22: 235 | H22: 807х662х925 | I22: 40778 | J22: =ROUND(I22*(1-$D$3)/Лист2!$A$6,0) -> 40778 | K22: ПлRAL9003гл,0.Sr.0кор.0.K.0
E23: 3 корзины | I23: 42956 | J23: =ROUND(I23*(1-$D$3)/Лист2!$A$6,0) -> 42956 | K23: ПлRAL9003гл,0.Sr.3кор.0.K.0
C24: 1127.00.00.00-01 | D24: CF300FQ | E24: без корзин | F24: -18…-25 | G24: 319 | H24: 1017х662х925 | I24: 45284 | J24: =ROUND(I24*(1-$D$3)/Лист2!$A$6,0) -> 45284 | K24: ПлRAL9003гл,0.Sr.0кор.0.K.0
E25: 4 корзины | I25: 48188 | J25: =ROUND(I25*(1-$D$3)/Лист2!$A$6,0) -> 48188 | K25: ПлRAL9003гл,0.Sr.4кор.0.K.0
C26: 1127.00.00.00-02 | D26: CF400FQ | E26: без корзин | F26: -18…-25 | G26: 398 | H26: 1217х662х925 | I26: 49864 | J26: =ROUND(I26*(1-$D$3)/Лист2!$A$6,0) -> 49864 | K26: ПлRAL9003гл,0.Sr.0кор.0.K.0
E27: 5 корзин | I27: 53494 | J27: =ROUND(I27*(1-$D$3)/Лист2!$A$6,0) -> 53494 | K27: ПлRAL9003гл,0.Sr.5кор.0.K.0
C28: 1127.00.00.00-03 | D28: CF500FQ | E28: без корзин | F28: -18…-25 | G28: 485 | H28: 1437х662х925 | I28: 54882 | J28: =ROUND(I28*(1-$D$3)/Лист2!$A$6,0) -> 54882 | K28: ПлRAL9003гл,0.Sr.0кор.0.K.0
E29: 6 корзин | I29: 59238 | J29: =ROUND(I29*(1-$D$3)/Лист2!$A$6,0) -> 59238 | K29: ПлRAL9003гл,0.Sr.6кор.0.K.0
C30: 1127.00.00.00-04 | D30: CF600FQ | E30: без корзин | F30: -18…-25 | G30: 572 | H30: 1657х662х925 | I30: 59100 | J30: =ROUND(I30*(1-$D$3)/Лист2!$A$6,0) -> 59100 | K30: ПлRAL9003гл,0.Sr.0кор.0.K.0
E31: 7 корзин | I31: 64182 | J31: =ROUND(I31*(1-$D$3)/Лист2!$A$6,0) -> 64182 | K31: ПлRAL9003гл,0.Sr.7кор.0.K.0
A32: 9 | B32: Морозильные лари с глухой крышкой
C33: 1011.00.00.00 | D33: CF200S | E33: без корзин | F33: -18…-25 | G33: 235 | H33: 808х743х904 | I33: 41320 | J33: =ROUND(I33*(1-$D$3)/Лист2!$A$6,0) -> 41320 | K33: ПлRAL9003,0.B.0кор.P.M.0
E34: 1 корзина | I34: 42046 | J34: =ROUND(I34*(1-$D$3)/Лист2!$A$6,0) -> 42046 | K34: ПлRAL9003,0.B.1кор.P.M.0
C35: 1011.00.00.00-01 | D35: CF300S | E35: без корзин | F35: -18…-25 | G35: 319 | H35: 1018х743х904 | I35: 45173 | J35: =ROUND(I35*(1-$D$3)/Лист2!$A$6,0) -> 45173 | K35: ПлRAL9003,0.B.0кор.P.M.0
E36: 1 корзина | I36: 45899 | J36: =ROUND(I36*(1-$D$3)/Лист2!$A$6,0) -> 45899 | K36: ПлRAL9003,0.B.1кор.P.M.0
C37: 1011.00.00.00-02 | D37: CF400S | E37: без корзин | F37: -18…-25 | G37: 398 | H37: 1218х743х904 | I37: 53779 | J37: =ROUND(I37*(1-$D$3)/Лист2!$A$6,0) -> 53779 | K37: ПлRAL9003,0.B.0кор.P.M.0
E38: 1 корзина | I38: 54505 | J38: =ROUND(I38*(1-$D$3)/Лист2!$A$6,0) -> 54505 | K38: ПлRAL9003,0.B.1кор.P.M.0
C39: 1011.00.00.00-03 | D39: CF500S | E39: без корзин | F39: -18…-25 | G39: 485 | H39: 1438х743х904 | I39: 54662 | J39: =ROUND(I39*(1-$D$3)/Лист2!$A$6,0) -> 54662 | K39: ПлRAL9003,0.B.0кор.P.M.0
E40: 1 корзина | I40: 55388 | J40: =ROUND(I40*(1-$D$3)/Лист2!$A$6,0) -> 55388 | K40: ПлRAL9003,0.B.1кор.P.M.0
C41: 1011.00.00.00-04 | D41: CF600S | E41: без корзин | F41: -18…-25 | G41: 572 | H41: 1658х743х904 | I41: 59621 | J41: =ROUND(I41*(1-$D$3)/Лист2!$A$6,0) -> 59621 | K41: ПлRAL9003,0.B.0кор.P.M.0
E42: 1 корзина | I42: 60347 | J42: =ROUND(I42*(1-$D$3)/Лист2!$A$6,0) -> 60347 | K42: ПлRAL9003,0.B.1кор.P.M.0
A43: 10 | B43: Морозильные лари с глухой крышкой (крышка из нержавеющей стали)
C44: 1011.00.00.00 | D44: CF200S нерж | E44: без корзин | F44: -18…-25 | G44: 235 | H44: 808х743х904 | I44: 46838 | J44: =ROUND(I44*(1-$D$3)/Лист2!$A$6,0) -> 46838 | K44: ПлRAL9003,0.B.0кор.N.M.0
E45: 1 корзина | I45: 47564 | J45: =ROUND(I45*(1-$D$3)/Лист2!$A$6,0) -> 47564 | K45: ПлRAL9003,0.B.1кор.N.M.0
C46: 1011.00.00.00-01 | D46: CF300S нерж | E46: без корзин | F46: -18…-25 | G46: 319 | H46: 1018х743х904 | I46: 52005 | J46: =ROUND(I46*(1-$D$3)/Лист2!$A$6,0) -> 52005 | K46: ПлRAL9003,0.B.0кор.N.M.0
E47: 1 корзина | I47: 52731 | J47: =ROUND(I47*(1-$D$3)/Лист2!$A$6,0) -> 52731 | K47: ПлRAL9003,0.B.1кор.N.M.0
C48: 1011.00.00.00-02 | D48: CF400S нерж | E48: без корзин | F48: -18…-25 | G48: 398 | H48: 1218х743х904 | I48: 61643 | J48: =ROUND(I48*(1-$D$3)/Лист2!$A$6,0) -> 61643 | K48: ПлRAL9003,0.B.0кор.N.M.0
E49: 1 корзина | I49: 62369 | J49: =ROUND(I49*(1-$D$3)/Лист2!$A$6,0) -> 62369 | K49: ПлRAL9003,0.B.1кор.N.M.0
C50: 1011.00.00.00-03 | D50: CF500S нерж | E50: без корзин | F50: -18…-25 | G50: 485 | H50: 1438х743х904 | I50: 62754 | J50: =ROUND(I50*(1-$D$3)/Лист2!$A$6,0) -> 62754 | K50: ПлRAL9003,0.B.0кор.N.M.0
E51: 1 корзина | I51: 63480 | J51: =ROUND(I51*(1-$D$3)/Лист2!$A$6,0) -> 63480 | K51: ПлRAL9003,0.B.1кор.N.M.0
C52: 1011.00.00.00-04 | D52: CF600S нерж | E52: без корзин | F52: -18…-25 | G52: 572 | H52: 1658х743х904 | I52: 67664 | J52: =ROUND(I52*(1-$D$3)/Лист2!$A$6,0) -> 67664 | K52: ПлRAL9003,0.B.0кор.N.M.0
E53: 1 корзина | I53: 68390 | J53: =ROUND(I53*(1-$D$3)/Лист2!$A$6,0) -> 68390 | K53: ПлRAL9003,0.B.1кор.N.M.0
A54: 13 | B54: Морозильные лари с гнутыми раздвижными стеклами (составная корона, климатический класс 4+)
D55: CFТ200CQ | E55: без корзин | F55: -18…-25 | G55: 235 | H55: 807х662х925 | I55: 47407 | J55: =ROUND(I55*(1-$D$3)/Лист2!$A$6,0) -> 47407
E56: 3 корзины | I56: 49801 | J56: =ROUND(I56*(1-$D$3)/Лист2!$A$6,0) -> 49801
D57: CFТ300CQ | E57: без корзин | F57: -18…-25 | G57: 319 | H57: 1017х662х925 | I57: 50102 | J57: =ROUND(I57*(1-$D$3)/Лист2!$A$6,0) -> 50102
E58: 4 корзины | I58: 53294 | J58: =ROUND(I58*(1-$D$3)/Лист2!$A$6,0) -> 53294
D59: CFT400CQ | E59: без корзин | F59: -18…-25 | G59: 398 | H59: 1217х662х925 | I59: 53818 | J59: =ROUND(I59*(1-$D$3)/Лист2!$A$6,0) -> 53818
E60: 5 корзин | I60: 57808 | J60: =ROUND(I60*(1-$D$3)/Лист2!$A$6,0) -> 57808
D61: CFТ500CQ | E61: без корзин | F61: -18…-25 | G61: 485 | H61: 1437х662х925 | I61: 55432 | J61: =ROUND(I61*(1-$D$3)/Лист2!$A$6,0) -> 55432
E62: 6 корзин | I62: 60220 | J62: =ROUND(I62*(1-$D$3)/Лист2!$A$6,0) -> 60220
D63: CFТ600CQ | E63: без корзин | F63: -18…-25 | G63: 572 | H63: 1657х662х925 | I63: 64400 | J63: =ROUND(I63*(1-$D$3)/Лист2!$A$6,0) -> 64400
E64: 7 корзин | I64: 69986 | J64: =ROUND(I64*(1-$D$3)/Лист2!$A$6,0) -> 69986
A65: 17 | B65: Морозильные лари с прямыми раздвижными стеклами составная корона (климатический класс 4+)
D66: CFТ200FQ | E66: без корзин | F66: -18…-25 | G66: 235 | H66: 807х662х925 | I66: 45205 | J66: =ROUND(I66*(1-$D$3)/Лист2!$A$6,0) -> 45205
E67: 3 корзины | I67: 47383 | J67: =ROUND(I67*(1-$D$3)/Лист2!$A$6,0) -> 47383
D68: CFТ300FQ | E68: без корзин | F68: -18…-25 | G68: 319 | H68: 1017х662х925 | I68: 50435 | J68: =ROUND(I68*(1-$D$3)/Лист2!$A$6,0) -> 50435
E69: 4 корзины | I69: 53339 | J69: =ROUND(I69*(1-$D$3)/Лист2!$A$6,0) -> 53339
D70: CFT400FQ | E70: без корзин | F70: -18…-25 | G70: 398 | H70: 1217х662х925 | I70: 53807 | J70: =ROUND(I70*(1-$D$3)/Лист2!$A$6,0) -> 53807
E71: 5 корзин | I71: 57437 | J71: =ROUND(I71*(1-$D$3)/Лист2!$A$6,0) -> 57437
D72: CFТ500FQ | E72: без корзин | F72: -18…-25 | G72: 485 | H72: 1437х662х925 | I72: 54911 | J72: =ROUND(I72*(1-$D$3)/Лист2!$A$6,0) -> 54911
E73: 6 корзин | I73: 59267 | J73: =ROUND(I73*(1-$D$3)/Лист2!$A$6,0) -> 59267
D74: CFТ600FQ | E74: без корзин | F74: -18…-25 | G74: 572 | H74: 1657х662х925 | I74: 64940 | J74: =ROUND(I74*(1-$D$3)/Лист2!$A$6,0) -> 64940
E75: 7 корзин | I75: 70022 | J75: =ROUND(I75*(1-$D$3)/Лист2!$A$6,0) -> 70022
A76: 19 | B76: Морозильные лари с глухой крышкой (климатический класс 4+)
C77: 1065.00.00.00 | D77: CF200ST | E77: без корзин | F77: -18…-25 | G77: 235 | H77: 808х743х904 | I77: 45452 | J77: =ROUND(I77*(1-$D$3)/Лист2!$A$6,0) -> 45452 | K77: ПлRAL9003,0.B.0кор.Р.M.0
E78: 1 корзина | I78: 46178 | J78: =ROUND(I78*(1-$D$3)/Лист2!$A$6,0) -> 46178 | K78: ПлRAL9003,0.B.1кор.Р.M.0
C79: 1065.00.00.00-01 | D79: CF300ST | E79: без корзин | F79: -18…-25 | G79: 319 | H79: 1018х743х904 | I79: 49690 | J79: =ROUND(I79*(1-$D$3)/Лист2!$A$6,0) -> 49690 | K79: ПлRAL9003,0.B.0кор.Р.M.0
E80: 1 корзина | I80: 50416 | J80: =ROUND(I80*(1-$D$3)/Лист2!$A$6,0) -> 50416 | K80: ПлRAL9003,0.B.1кор.Р.M.0
C81: 1065.00.00.00-02 | D81: CF400ST | E81: без корзин | F81: -18…-25 | G81: 398 | H81: 1218х743х904 | I81: 59157 | J81: =ROUND(I81*(1-$D$3)/Лист2!$A$6,0) -> 59157 | K81: ПлRAL9003,0.B.0кор.Р.M.0
E82: 1 корзина | I82: 59883 | J82: =ROUND(I82*(1-$D$3)/Лист2!$A$6,0) -> 59883 | K82: ПлRAL9003,0.B.1кор.Р.M.0
C83: 1065.00.00.00-03 | D83: CF500ST | E83: без корзин | F83: -18…-25 | G83: 485 | H83: 1438х743х904 | I83: 60129 | J83: =ROUND(I83*(1-$D$3)/Лист2!$A$6,0) -> 60129 | K83: ПлRAL9003,0.B.0кор.Р.M.0
E84: 1 корзина | I84: 60855 | J84: =ROUND(I84*(1-$D$3)/Лист2!$A$6,0) -> 60855 | K84: ПлRAL9003,0.B.1кор.Р.M.0
C85: 1065.00.00.00-04 | D85: CF600ST | E85: без корзин | F85: -18…-25 | G85: 572 | H85: 1658х743х904 | I85: 65583 | J85: =ROUND(I85*(1-$D$3)/Лист2!$A$6,0) -> 65583 | K85: ПлRAL9003,0.B.0кор.Р.M.0
E86: 1 корзина | I86: 66309 | J86: =ROUND(I86*(1-$D$3)/Лист2!$A$6,0) -> 66309 | K86: ПлRAL9003,0.B.1кор.Р.M.0
A87: 10 | B87: Морозильные лари для мягкого мороженого (комплектация - запасник, полка под гастроемкости, подсветка внутреннего объема) корзины не устанавливаются
C88: 1187.00.00.00-01 | D88: CF300CSZ | E88: - | F88: -18…-25 | G88: 319 | H88: 1017х662х1310 | I88: 61666 | J88: =ROUND(I88*(1-$D$3)/Лист2!$A$6,0) -> 61666 | K88: ПлRAL9003,0.K.0кор.0.K.0.0.4
C89: 1187.00.00.00-02 | D89: CF400CSZ | E89: - | F89: -18…-25 | G89: 398 | H89: 1217х662х1310 | I89: 69077 | J89: =ROUND(I89*(1-$D$3)/Лист2!$A$6,0) -> 69077
C90: 1187.00.00.00-03 | D90: CF500CSZ | E90: - | F90: -18…-25 | G90: 485 | H90: 1437х662х1310 | I90: 70692 | J90: =ROUND(I90*(1-$D$3)/Лист2!$A$6,0) -> 70692
A91: 11 | B91: Опции для ларей
D92: Надстройка стеклянная 1145.12.00.00-01 для CF300C | I92: 8073.0012 | J92: =ROUND(I92*(1-$D$3)/Лист2!$A$6,0) -> 8073 | K92: H, глянец, RAL 7035
D93: Надстройка стеклянная 1145.12.00.00-02 для CF400C | I93: 8779.7556 | J93: =ROUND(I93*(1-$D$3)/Лист2!$A$6,0) -> 8780 | K93: H, глянец, RAL 7035
D94: Надстройка стеклянная 1145.12.00.00-03 для CF500C | I94: 9831.751875 | J94: =ROUND(I94*(1-$D$3)/Лист2!$A$6,0) -> 9832 | K94: H, глянец, RAL 7035
D95: Комплект подсветки для ларя CF200C | F95: Спектр 4000К/6000К | I95: 2261.2128 | J95: =ROUND(I95*(1-$D$3)/Лист2!$A$6,0) -> 2261
D96: Комплект подсветки для ларя CF300C | I96: 2307.36 | J96: =ROUND(I96*(1-$D$3)/Лист2!$A$6,0) -> 2307
D97: Комплект подсветки для ларя CF400C | I97: 2508 | J97: =ROUND(I97*(1-$D$3)/Лист2!$A$6,0) -> 2508
D98: Комплект подсветки для ларя CF500C | I98: 2884.2 | J98: =ROUND(I98*(1-$D$3)/Лист2!$A$6,0) -> 2884
D99: Комплект подсветки для ларя CF600C | I99: 3316.83 | J99: =ROUND(I99*(1-$D$3)/Лист2!$A$6,0) -> 3317
C100: 087.42.00.00 | D100: Корзина для ларя с гнут. стек. без подсветки | F100: - | G100: - | H100: 214х498х320 | I100: 798 | J100: =ROUND(I100*(1-$D$3)/Лист2!$A$6,0) -> 798
C101: 086.42.00.00 | D101: Корзина для ларя с прям. стек. без подсветки | F101: - | G101: - | H101: 214х493х250 | I101: 726 | J101: =ROUND(I101*(1-$D$3)/Лист2!$A$6,0) -> 726
D102: Корзина для ларя с глух. крыш. без подсветки | F102: - | G102: - | H102: 214х493х250 | I102: 726 | J102: =ROUND(I102*(1-$D$3)/Лист2!$A$6,0) -> 726
C103: 1060.42.00.00 | D103: Корзина для ларя с гнут. стек. с подсветкой | F103: - | G103: - | H103: 214х498х320 | I103: 798 | J103: =ROUND(I103*(1-$D$3)/Лист2!$A$6,0) -> 798
C104: 1071.42.00.00 | D104: Корзина для ларя с прям. стек. с подсветкой | F104: - | G104: - | H104: 214х493х250 | I104: 726 | J104: =ROUND(I104*(1-$D$3)/Лист2!$A$6,0) -> 726
A105: 12 | B105: Опции заказываемые с ларем
C106: н.№14709 | D106: Опоры регулируемые М10 для ларей | I106: 245 | J106: =ROUND(I106*(1-$D$3)/Лист2!$A$6,0) -> 245
C107: н.№14601 | D107: Спереди и сзади ларя колеса поворотные без стопора. | I107: 365 | J107: =ROUND(I107*(1-$D$3)/Лист2!$A$6,0) -> 365
C108: н.№14601.4 | D108: Спереди колеса поворотные со стопором, сзади колеса поворотные без стопора | I108: 451 | J108: =ROUND(I108*(1-$D$3)/Лист2!$A$6,0) -> 451
C109: н.№24805.2 | D109: Термометр | I109: 1748 | J109: =ROUND(I109*(1-$D$3)/Лист2!$A$6,0) -> 1748
B110: Стандартный цвет короны ларя - Серый (7035), Красный (наличие красных корон уточнять у менеджеров)
B111: Опционально доступны иные цвета короны - наличие уточнять у менеджеров, наценка +1,5% к цене ларя
B112: Стандартный цвет корпуса - белый (ПлRAL9003). Наценка за нестандартный цвет корпуса +1,5% к цене ларя.
I113: НАВЕРХ

Sheet Лари-бонеты Italfrost
H1: ЗАВОД «ОПК» Тел.: +7 (495) 987-4388 e-mail: info@cryspi.ru сайт: cryspi.ru | M1: На главную
B3: Ваша скидка: | E3: =Содержание!D2 -> 0
B4: НДС: | E4: =IF(Лист2!A1=TRUE,"С НДС","БЕЗ НДС") -> С НДС
A6: Двухрежимные ларь-бонеты ITALFROST
A9: № | B9: Изображение | C9: Артикул | D9: Наименование | F9: Колличество делителей/корзин | G9: Температурный режим,°C | H9: Габариты, (LxWxH) мм | I9: Базовая цена, руб. (с НДС) | J9: =[5]Лист2!$A$5 -> Ваша цена, руб.
A11: 1 | B11: ЛВН низкотемпературный ITALFROST | N11: СЕЧЕНИЕ
A13: - Стандартная комплектация ЛВН Italfrost: - Корпус внешний - оцинкованный металл (RAL 9003); - Охлаждаемый объем - цвет решеток/делителей RAL 9003; - Хладагент R-290, оттайка горячим газом, система выпаривания конденсата; освещение - Электронный контроллер; | F13: - Комплект верхнего бампера; - Система решеток по периметру охлаждаемого объема (1 разделитель, устанавливаемый возле агрегатного отсека во всю высоту охл.объема); - Цвет пластиковых элеметов RAL 7035 (крышка, окантовка стекла, бампер, ручки); -Деревянная обрешетка;
C15: 1057.00.00.00 | D15: Ларь-витрина низкотемпературный ЛВН 1850 (ЛБТ2 М 1850) (торцевой) | E15: Без делителей и корзин | G15: -18..-24 ̊С | H15: 1850х858х869 | I15: 116500 | J15: =ROUND(I15*(1-$E$3)/Лист2!$A$6,0) -> 116500 | K15: 3В9016.El.0.0.tn.4.PS.0
E16: С комплектом делителей (2 шт.) | I16: 118000 | J16: =ROUND(I16*(1-$E$3)/Лист2!$A$6,0) -> 118000 | K16: 3В9016.El.2.0.tn.4.PS.0
E17: С комплектом корзинами (4 шт.) | I17: 124340 | J17: =ROUND(I17*(1-$E$3)/Лист2!$A$6,0) -> 124340 | K17: 3В9016.El.0.4.tn.4.PS.0
C18: 1056.00.00.00-02 | D18: Ларь-витрина низкотемпературный ЛВН 1850 (ЛБ2 М 1850) | E18: Без делителей и корзин | H18: 1850х858х869 | I18: 113500 | J18: =ROUND(I18*(1-$E$3)/Лист2!$A$6,0) -> 113500 | K18: ВБ9016.El.0.0.tn.4.PS.0
E19: С комплектом делителей (2 шт.) | I19: 115000 | J19: =ROUND(I19*(1-$E$3)/Лист2!$A$6,0) -> 115000 | K19: ВБ9016.El.2.0.tn.4.PS.0
E20: С комплектом корзинами (4 шт.) | I20: 121340 | J20: =ROUND(I20*(1-$E$3)/Лист2!$A$6,0) -> 121340 | K20: ВБ9016.El.0.4.tn.4.PS.0
C21: 1056.00.00.00 | D21: Ларь-витрина низкотемпературный ЛВН 2100 (ЛБ2 М 2100) | E21: Без делителей и корзин | H21: 2100х858х869 | I21: 122250 | J21: =ROUND(I21*(1-$E$3)/Лист2!$A$6,0) -> 122250 | K21: ВБ9016.El.0.0.tn.4.PS.0
E22: С комплектом делителей (3 шт.) | I22: 124500 | J22: =ROUND(I22*(1-$E$3)/Лист2!$A$6,0) -> 124500 | K22: ВБ9016.El.3.0.tn.4.PS.0
E23: С комплектом корзинами (5 шт.) | I23: 132050 | J23: =ROUND(I23*(1-$E$3)/Лист2!$A$6,0) -> 132050 | K23: ВБ9016.El.0.5.tn.4.PS.0
C24: 1056.00.00.00-01 | D24: Ларь-витрина низкотемпературный ЛВН 2500 (ЛБ2 М 2500) | E24: Без делителей и корзин | H24: 2500х858х869 | I24: 132500 | J24: =ROUND(I24*(1-$E$3)/Лист2!$A$6,0) -> 132500 | K24: ВБ9016.El.0.0.tn.4.PS.0
E25: С комплектом делителей (4 шт.) | I25: 135500 | J25: =ROUND(I25*(1-$E$3)/Лист2!$A$6,0) -> 135500 | K25: ВБ9016.El.4.0.tn.4.PS.0
E26: С комплектом корзинами (6 шт.) | I26: 144260 | J26: =ROUND(I26*(1-$E$3)/Лист2!$A$6,0) -> 144260 | K26: ВБ9016.El.0.6.tn.4.PS.0
A27: 2 | B27: ЛВН низкотемпературный ITALFROST Push
A29: - Стандартная комплектация ЛВН Italfrost: - Корпус внешний - оцинкованный металл (RAL 9003); - Охлаждаемый объем - цвет решеток/делителей RAL 9003; - Хладагент R-290, оттайка горячим газом, система выпаривания конденсата; - Электронный контроллер; -Освещение | F29: - Комплект верхнего бампера (для торцевого исполенние бампер с трех сторон); - Система решеток по периметру охлаждаемого объема (1 разделитель, устанавливаемый возле агрегатного отсека во всю высоту охл.объема); - Цвет пластиковых элеметов RAL 7035 (крышка, окантовка стекла, бампер, ручки); - Деревянная обрешетка;
C31: 1201.00.00.00 | D31: Ларь-витрина низкотемпературный ЛВН 1850 (ЛБТ2 М 1850) PUSH (торцевой) | E31: Без делителей и корзин | G31: -18..-24 ̊С | H31: 1850х858х869 | I31: 133459 | J31: =ROUND(I31*(1-$E$3)/Лист2!$A$6,0) -> 133459 | K31: 3В9016.El.0.0.tn.4.PS.0
E32: С комплектом делителей (2 шт.) | I32: 134959 | J32: =ROUND(I32*(1-$E$3)/Лист2!$A$6,0) -> 134959 | K32: 3В9016.El.2.0.tn.4.PS.0
E33: С комплектом корзинами (4 шт.) | I33: 141299 | J33: =ROUND(I33*(1-$E$3)/Лист2!$A$6,0) -> 141299 | K33: 3В9016.El.0.4.tn.4.PS.0
C34: 1190.00.00.00-02 | D34: Ларь-витрина низкотемпературный ЛВН 1850 (ЛБ2 М 1850) PUSH | E34: Без делителей и корзин | H34: 1850х858х869 | I34: 133459 | J34: =ROUND(I34*(1-$E$3)/Лист2!$A$6,0) -> 133459 | K34: ВБ9016.El.0.0.tn.4.PS.0
E35: С комплектом делителей (2 шт.) | I35: 134959 | J35: =ROUND(I35*(1-$E$3)/Лист2!$A$6,0) -> 134959 | K35: ВБ9016.El.2.0.tn.4.PS.0
E36: С комплектом корзинами (4 шт.) | I36: 141299 | J36: =ROUND(I36*(1-$E$3)/Лист2!$A$6,0) -> 141299 | K36: ВБ9016.El.0.4.tn.4.PS.0
C37: 1190.00.00.00 | D37: Ларь-витрина низкотемпературный ЛВН 2100 (ЛБ2 М 2100) PUSH | E37: Без делителей и корзин | H37: 2100х858х869 | I37: 138584 | J37: =ROUND(I37*(1-$E$3)/Лист2!$A$6,0) -> 138584 | K37: ВБ9016.El.0.0.tn.4.PS.0
E38: С комплектом делителей (3 шт.) | I38: 140834 | J38: =ROUND(I38*(1-$E$3)/Лист2!$A$6,0) -> 140834 | K38: ВБ9016.El.3.0.tn.4.PS.0
E39: С комплектом корзинами (5 шт.) | I39: 148384 | J39: =ROUND(I39*(1-$E$3)/Лист2!$A$6,0) -> 148384 | K39: ВБ9016.El.0.5.tn.4.PS.0
C40: 1190.00.00.00-01 | D40: Ларь-витрина низкотемпературный ЛВН 2500 (ЛБ2 М 2500) PUSH | E40: Без делителей и корзин | H40: 2500х858х869 | I40: 142313 | J40: =ROUND(I40*(1-$E$3)/Лист2!$A$6,0) -> 142313 | K40: ВБ9016.El.0.0.tn.4.PS.0
E41: С комплектом делителей (4 шт.) | I41: 145313 | J41: =ROUND(I41*(1-$E$3)/Лист2!$A$6,0) -> 145313 | K41: ВБ9016.El.4.0.tn.4.PS.0
E42: С комплектом корзинами (6 шт.) | I42: 154073 | J42: =ROUND(I42*(1-$E$3)/Лист2!$A$6,0) -> 154073 | K42: ВБ9016.El.0.6.tn.4.PS.0
A43: 3 | B43: ЛВН низкотемпературный RONDO с термостатом
A45: - Стандартная комплектация ЛВН Italfrost: - Корпус внешний - оцинкованный металл (RAL 9003); - Охлаждаемый объем - цвет решеток/делителей RAL 9003; - Хладагент R-290, - БЕЗ оттайки горячим газом, БЕЗ системы выпаривания конденсата, БЕЗ освещения; - Термостат (управление температурой в объеме); | F45: - БЕЗ верхнего бампера; - Система решеток по периметру охлаждаемого объема (1 разделитель, устанавливаемый возле агрегатного отсека во всю высоту охл.объема); - Температурный режим -18..-24 ̊С - Цвет пластиковых элеметов RAL 7035 (крышка, окантовка стекла, бампер, ручки); - Деревянная обрешетка;
C47: 1096.00.00.00 | D47: Ларь-витрина низкотемпературный ЛВНР 1850 (ЛБТР М 1850) | E47: Без делителей и корзин | G47: -18..-24 ̊С | H47: 1850х858х869 | I47: 97769 | J47: =ROUND(I47*(1-$E$3)/Лист2!$A$6,0) -> 97769
E48: С комплектом делителей (2 шт.) | I48: 99269 | J48: =ROUND(I48*(1-$E$3)/Лист2!$A$6,0) -> 99269 | K48: ББ9016.Т.2.0.tn.0.PS.0
E49: С комплектом корзинами (4 шт.) | I49: 105609 | J49: =ROUND(I49*(1-$E$3)/Лист2!$A$6,0) -> 105609 | K49: ББ9016.Т.0.4.tn.0.PS.0
C50: 1095.00.00.00-02 | D50: Ларь-витрина низкотемпературный ЛВНР 1850 (ЛБР М 1850) | E50: Без делителей и корзин | H50: 1850х858х869 | I50: 97769 | J50: =ROUND(I50*(1-$E$3)/Лист2!$A$6,0) -> 97769
E51: С комплектом делителей (2 шт.) | I51: 99269 | J51: =ROUND(I51*(1-$E$3)/Лист2!$A$6,0) -> 99269 | K51: ББ9016.Т.2.0.tn.0.PS.0
E52: С комплектом корзинами (4 шт.) | I52: 105609 | J52: =ROUND(I52*(1-$E$3)/Лист2!$A$6,0) -> 105609 | K52: ББ9016.Т.0.4.tn.0.PS.0
C53: 1095.00.00.00 | D53: Ларь-витрина низкотемпературный ЛВНР 2100 (ЛБР М 2100) | E53: Без делителей и корзин | H53: 2100х858х869 | I53: 100658 | J53: =ROUND(I53*(1-$E$3)/Лист2!$A$6,0) -> 100658
E54: С комплектом делителей (3 шт.) | I54: 102908 | J54: =ROUND(I54*(1-$E$3)/Лист2!$A$6,0) -> 102908 | K54: ББ9016.Т.3.0.tn.0.PS.0
E55: С комплектом корзинами (5 шт.) | I55: 110458 | J55: =ROUND(I55*(1-$E$3)/Лист2!$A$6,0) -> 110458 | K55: ББ9016.Т.0.5.tn.0.PS.0
C56: 1095.00.00.00-01 | D56: Ларь-витрина низкотемпературный ЛВНР 2500 (ЛБР М 2500) | E56: Без делителей и корзин | H56: 2500х858х869 | I56: 115811 | J56: =ROUND(I56*(1-$E$3)/Лист2!$A$6,0) -> 115811
E57: С комплектом делителей (4 шт.) | I57: 118811 | J57: =ROUND(I57*(1-$E$3)/Лист2!$A$6,0) -> 118811 | K57: ББ9016.Т.4.0.tn.0.PS.0
E58: С комплектом корзинами (6 шт.) | I58: 127571 | J58: =ROUND(I58*(1-$E$3)/Лист2!$A$6,0) -> 127571 | K58: ББ9016.Т.0.6.tn.0.PS.0
A59: 4 | B59: ЛВН низкотемпературный RONDO с контроллером
A61: - Стандартная комплектация ЛВН Italfrost: - Корпус внешний - оцинкованный металл (RAL 9003); - Охлаждаемый объем - цвет решеток/делителей RAL 9003; - хладагент R-290, - БЕЗ оттайки горячим газом, БЕЗ системы выпаривания конденсата, БЕЗ освещения; - Электронный контроллер; | F61: - БЕЗ верхнего бампера; - Система решеток по периметру охлаждаемого объема (1 разделитель, устанавливаемый возле агрегатного отсека во всю высоту охл.объема); - Температурный режим -18..-24 ̊С - Цвет пластиковых элеметов RAL 7035 (крышка, окантовка стекла, бампер, ручки); - Деревянная обрешетка;
C63: 1096.00.00.00 | D63: Ларь-витрина низкотемпературный ЛВНР 1850 (ЛБТР М 1850) | E63: Без делителей и корзин | G63: -18..-24 ̊С | H63: 1850х858х869 | I63: 100126 | J63: =ROUND(I63*(1-$E$3)/Лист2!$A$6,0) -> 100126
E64: С комплектом делителей (2 шт.) | I64: 101626 | J64: =ROUND(I64*(1-$E$3)/Лист2!$A$6,0) -> 101626 | L64: ББ9016.El.2.0.tn.0.PS.0
E65: С комплектом корзинами (4 шт.) | I65: 107966 | J65: =ROUND(I65*(1-$E$3)/Лист2!$A$6,0) -> 107966 | L65: ББ9016.El.0.4.tn.0.PS.0
C66: 1095.00.00.00-02 | D66: Ларь-витрина низкотемпературный ЛВНР 1850 (ЛБР М 1850) | E66: Без делителей и корзин | H66: 1850х858х869 | I66: 100126 | J66: =ROUND(I66*(1-$E$3)/Лист2!$A$6,0) -> 100126
E67: С комплектом делителей (2 шт.) | I67: 101626 | J67: =ROUND(I67*(1-$E$3)/Лист2!$A$6,0) -> 101626 | L67: ББ9016.El.2.0.tn.0.PS.0
E68: С комплектом корзинами (4 шт.) | I68: 107966 | J68: =ROUND(I68*(1-$E$3)/Лист2!$A$6,0) -> 107966 | L68: ББ9016.El.0.4.tn.0.PS.0
C69: 1095.00.00.00 | D69: Ларь-витрина низкотемпературный ЛВНР 2100 (ЛБР М 2100) | E69: Без делителей и корзин | H69: 2100х858х869 | I69: 102997 | J69: =ROUND(I69*(1-$E$3)/Лист2!$A$6,0) -> 102997
E70: С комплектом делителей (3 шт.) | I70: 105247 | J70: =ROUND(I70*(1-$E$3)/Лист2!$A$6,0) -> 105247 | L70: ББ9016.El.3.0.tn.0.PS.0
E71: С комплектом корзинами (5 шт.) | I71: 112797 | J71: =ROUND(I71*(1-$E$3)/Лист2!$A$6,0) -> 112797 | L71: ББ9016.El.0.5.tn.0.PS.0
C72: 1095.00.00.00-01 | D72: Ларь-витрина низкотемпературный ЛВНР 2500 (ЛБР М 2500) | E72: Без делителей и корзин | H72: 2500х858х869 | I72: 118166 | J72: =ROUND(I72*(1-$E$3)/Лист2!$A$6,0) -> 118166
E73: С комплектом делителей (4 шт.) | I73: 121166 | J73: =ROUND(I73*(1-$E$3)/Лист2!$A$6,0) -> 121166 | L73: ББ9016.El.4.0.tn.0.PS.0
E74: С комплектом корзинами (6 шт.) | I74: 129926 | J74: =ROUND(I74*(1-$E$3)/Лист2!$A$6,0) -> 129926 | L74: ББ9016.El.0.6.tn.0.PS.0
A75: 5 | B75: КОМПЛЕКТУЮЩИЕ
A77: Бампер (Определяется харакетристикой, либо для отдельного заказа)
D78: Комплект трехстороннего нижнего бампера L=1850 для ЛВН ЛБТ
D79: Комплект трехстороннего верхнего бампера L=1850 для ЛВН ЛБТ
C80: 1022.73.00.00-02 | D80: Комплект нижнего бампера L=1850 для ЛВН ЛБ
C81: 1022.72.00.00-02 | D81: Комплект верхнего бампера L=1850 для ЛВН ЛБ
C82: 1022.73.00.00 | D82: Комплект нижнего бампера L=2100 для ЛВН ЛБ
C83: 1022.72.00.00 | D83: Комплект верхнего бампера L=2100 для ЛВН ЛБ
C84: 1022.73.00.00-01 | D84: Комплект нижнего бампера L=2500 для ЛВН ЛБ
C85: 1022.72.00.00-01 | D85: Комплект верхнего бампера L=2500 для ЛВН ЛБ
A86: Разделители и корзины (полимерное покрытие, цвет - RAL 9003)
C87: 1022.45.00.00 | D87: Разделитель поперечный объема 1022.45.00.00 L=1850/2100/2500 для ЛБ М
C88: 1022.110.00.00-01 | D88: Корзина увеличенная над агрегатным отсеком 1022.110.00.00-01 для ЛВН/ЛВС (ЛБ М) (Устанавливается над агрегатным отсеком, 1 шт. в ЛБ каждого типоразмера)
C89: 1022.110.00.00 | D89: Корзина 1022.110.00.00 для ЛВН/ЛВС (ЛБ М) (в ЛБ длиной 2500 устанавливается 5 данных корзин, в 2100 - 4 корзины, в 1850 - 3 корзины)
A90: Суперструктуры и опции
C91: 1022.61.00.00-02 | D91: Суперструктура пристенная 1022.61.00.00-02 для ЛВН/ЛВС (ЛБ М) 1850 | I91: 22961 | J91: =ROUND(I91*(1-$E$3)/Лист2!$A$6,0) -> 22961
C92: 1022.61.00.00 | D92: Суперструктура пристенная 1022.61.00.00 для ЛВН/ЛВС (ЛБ М) 2100 | I92: 24019 | J92: =ROUND(I92*(1-$E$3)/Лист2!$A$6,0) -> 24019
C93: 1022.61.00.00-01 | D93: Суперструктура пристенная 1022.61.00.00-01 для ЛВН/ЛВС (ЛБ М) 2500 | I93: 25516 | J93: =ROUND(I93*(1-$E$3)/Лист2!$A$6,0) -> 25516
C94: 1022.60.00.00-02 | D94: Суперструктура островная 1022.60.00.00-02 для ЛВН/ЛВС (ЛБ М) 1850 | I94: 30274 | J94: =ROUND(I94*(1-$E$3)/Лист2!$A$6,0) -> 30274
C95: 1022.60.00.00 | D95: Суперструктура островная 1022.60.00.00 для ЛВН/ЛВС (ЛБ М) 2100 | I95: 32302 | J95: =ROUND(I95*(1-$E$3)/Лист2!$A$6,0) -> 32302
C96: 1022.60.00.00-01 | D96: Суперструктура островная 1022.60.00.00-01 для ЛВН/ЛВС (ЛБ М) 2500 | I96: 34893 | J96: =ROUND(I96*(1-$E$3)/Лист2!$A$6,0) -> 34893
C98: 429.80.00.00-02 | D98: Комплект подсветки прист 429.80.00.00-02 L=1850 для ЛБ М (LED, лампа Т5)
C99: 429.80.00.00 | D99: Комплект подсветки прист 429.80.00.00 L=2100 для ЛБ М (LED, лампа Т5)
C100: 429.80.00.00-01 | D100: Комплект подсветки прист 429.80.00.00-01 L=2500 для ЛБ М (LED, лампа Т5)
C101: 429.64.00.00-02 | D101: Комплект подсветки остр суперстр 429.64.00.00-02 L=1850 для ЛБ М (LED, лампа Т5)
C102: 429.64.00.00 | D102: Комплект подсветки остр суперстр 429.64.00.00 L=2100 для ЛБ М (LED, лампа Т5)
C103: 429.64.00.00-01 | D103: Комплект подсветки остр суперстр 429.64.00.00-01 L=2500 для ЛБ М (LED, лампа Т5)
C105: 429.70.00.00-02 | D105: Комплект ценникодержателей прист 429.70.00.00-02 L=1850 для ЛБ М
C106: 429.70.00.00 | D106: Комплект ценникодержателей прист 429.70.00.00 L=2100 для ЛБ М
C107: 429.70.00.00-01 | D107: Комплект ценникодержателей прист 429.70.00.00-01 L=2500 для ЛБ М
C108: 429.66.00.00-02 | D108: Комплект ценникодержателей остр 429.66.00.00-02 L=1850 для ЛБ М
C109: 429.66.00.00 | D109: Комплект ценникодержателей остр 429.66.00.00 L=2100 для ЛБ М
C110: 429.66.00.00-01 | D110: Комплект ценникодержателей остр 429.66.00.00-01 L=2500 для ЛБ М
C112: 429.71.00.00-02 | D112: Комплект ограничителей прист 429.71.00.00-02 L=1850 для ЛБ М
C113: 429.71.00.00 | D113: Комплект ограничителей прист 429.71.00.00 L=2100 для ЛБ М
C114: 429.71.00.00-01 | D114: Комплект ограничителей прист 429.71.00.00-01 L=2500 для ЛБ М
C115: 429.68.00.00-02 | D115: Комплект ограничителей остр 429.68.00.00-02 L=1850 для ЛБ М
C116: 429.68.00.00 | D116: Комплект ограничителей остр 429.68.00.00 L=2100 для ЛБ М
C117: 429.68.00.00-01 | D117: Комплект ограничителей остр 429.68.00.00-01 L=2500 для ЛБ М
C119: 1022.62.00.00-02 | D119: Соединительный комплект спина к спине остр 1022.62.00.00-02 L=1850 для ЛБ М
C120: 1022.62.00.00 | D120: Соединительный комплект спина к спине остр 1022.62.00.00 L=2100 для ЛБ М
C121: 1022.62.00.00-01 | D121: Соединительный комплект спина к спине остр 1022.62.00.00-01 L=2500 для ЛБ М
C122: 1022.89.00.00-02 | D122: Воздуховод с площадкой под ценникодержатели низкий 1022.89.00.00-02 для ЛВН/ЛВС (ЛБ М) 1850
C123: 1022.89.00.00 | D123: Воздуховод с площадкой под ценникодержатели низкий 1022.89.00.00 для ЛВН/ЛВС (ЛБ М) 2100
C124: 1022.89.00.00-01 | D124: Воздуховод с площадкой под ценникодержатели низкий 1022.89.00.00-01 для ЛВН/ЛВС (ЛБ М) 2500
C125: 1022.111.00.00 | D125: Боковая заглушка к соед. комплекту «спина к спине» остр. 1022.111.00.00 для ЛВН/ЛВС (ЛБ М)
C127: 404.99.00.00 | D127: Компл 3-его уровн полок прист суперстр 404.99.00.00 L=1850 для ЛБТМ (G=370 мм)
C128: 429.99.00.00 | D128: Компл 3-его уровн полок прист суперстр 429.99.00.00 L=2100 для ЛБМ (G=370 мм)
C129: 429.100.00.00 | D129: Компл 3-его уровн полок прист суперстр 429.100.00.00 L=2500 для ЛБМ (G=370 мм)
C130: 429.96.00.00 | D130: Компл 3-его уровн полок остр суперстр 429.96.00.00 L=2100 для ЛБМ (G=370 мм)
C131: 429.97.00.00 | D131: Компл 3-его уровн полок остр суперстр 429.97.00.00 L=2500 для ЛБМ (G=370 мм)
C132: 429.102.00.00 | D132: Компл торц полок остр суперстр 429.102.00.00 L=2100/2500 для ЛБТМ
C133: 429.101.00.00 | D133: Компл торц полукр полок остр суперстр 429.101.00.00 L=2100/2500 для ЛБТМ
H135: НАВЕРХ

Sheet Столы Italfrost с боковым (hidden)
O1: На главную
A3: Ваша скидка: | C3: =Содержание!D2 -> 0 | N3: На главную
A4: НДС: | C4: =IF(Лист2!A1=TRUE,"С НДС","БЕЗ НДС") -> С НДС
A6: Охлаждаемые столы с боковым расположением агрегата
A7: № | B7: Внешний вид | C7: Наименование | D7: С бортом/ без борта | E7: Количество | G7: Стандарт Gastronorm GN 1/1 | H7: Общий объём, л | I7: Полезный объём, л | J7: Габаритные размеры, мм | M7: Базовая цена, руб. (с НДС) | N7: =Лист2!$A$5 -> Ваша цена, руб.
E8: Ящиков | F8: Дверей | J8: Длина | K8: Ширина | L8: Высота
A9: Холодильные столы с нержавеющей столешницей (температурный режим, °C +1…+10)
C10: Шкаф-стол холодильный СШC-0,2 GN-1400 | D10: С бортом | E10: 0 | F10: 2 | G10: + | H10: 305 | I10: 220 | J10: 1393 | K10: 700 | L10: 840 | M10: 78937.84 | N10: =ROUND(M10*(1-$C$3)/Лист2!$A$6,0) -> 78938
C11: Шкаф-стол холодильный СШC-0,2 GNВ-1400 | D11: Без борта
C12: Шкаф-стол холодильный СШС-0,2-1400 | D12: С бортом | E12: 0 | F12: 2 | G12: - | H12: 255 | I12: 200 | J12: 1393 | K12: 600 | L12: 840 | M12: 78514.64 | N12: =ROUND(M12*(1-$C$3)/Лист2!$A$6,0) -> 78515
C13: Шкаф-стол холодильный СШС-0,2 В-1400 | D13: Без борта
C14: Шкаф-стол холодильный СШС-0,3 GN-1850 | D14: С бортом | E14: 0 | F14: 3 | G14: + | H14: 465 | I14: 310 | J14: 1838 | K14: 700 | L14: 840 | M14: 93059.84 | N14: =ROUND(M14*(1-$C$3)/Лист2!$A$6,0) -> 93060
C15: Шкаф-стол холодильный СШС-0,3 GNВ-1850 | D15: Без борта
C16: Шкаф-стол холодильный СШС-0,3-1850 | D16: С бортом | E16: 0 | F16: 3 | G16: - | H16: 395 | I16: 260 | J16: 1838 | K16: 600 | L16: 840 | M16: 92634.8 | N16: =ROUND(M16*(1-$C$3)/Лист2!$A$6,0) -> 92635
C17: Шкаф-стол холодильный СШС-0,3 В-1850 | D17: Без борта
C18: Шкаф-стол холодильный СШС-0,4 GN-2300 | D18: С бортом | E18: 0 | F18: 4 | G18: + | H18: 620 | I18: 410 | J18: 2283 | K18: 700 | L18: 840 | M18: 112828.8 | N18: =ROUND(M18*(1-$C$3)/Лист2!$A$6,0) -> 112829
C19: Шкаф-стол холодильный СШС-0,4 GNВ-2300 | D19: Без борта
C20: Шкаф-стол холодильный СШС-0,4-2300 | D20: С бортом | E20: 0 | F20: 4 | G20: - | H20: 520 | I20: 340 | J20: 2283 | K20: 600 | L20: 840 | M20: 112405.6 | N20: =ROUND(M20*(1-$C$3)/Лист2!$A$6,0) -> 112406
C21: Шкаф-стол холодильный СШС-0,4 В-2300 | D21: Без борта
A22: Морозильные столы с нержавеющей столешницей (температурный режим, °C -20…-10)
C23: Шкаф-стол морозильный СШН-0,2 GN-1400 | D23: С бортом | E23: 0 | F23: 2 | G23: + | H23: 305 | I23: 220 | J23: 1393 | K23: 700 | L23: 840 | M23: 91647.64 | N23: =ROUND(M23*(1-$C$3)/Лист2!$A$6,0) -> 91648
C24: Шкаф-стол морозильный СШН-0,2 GNВ-1400 | D24: Без борта
C25: Шкаф-стол морозильный СШН-0,2-1400 | D25: С бортом | E25: 0 | F25: 2 | G25: - | H25: 255 | I25: 200 | J25: 1393 | K25: 600 | L25: 840 | M25: 91223.52 | N25: =ROUND(M25*(1-$C$3)/Лист2!$A$6,0) -> 91224
C26: Шкаф-стол морозильный СШН-0,2 В-1400 | D26: Без борта
C27: Шкаф-стол морозильный СШН-0,3 GN-1850 | D27: С бортом | E27: 0 | F27: 3 | G27: + | H27: 465 | I27: 310 | J27: 1838 | K27: 700 | L27: 840 | M27: 117066.32 | N27: =ROUND(M27*(1-$C$3)/Лист2!$A$6,0) -> 117066
C28: Шкаф-стол морозильный СШН-0,3 GNВ-1850 | D28: Без борта
C29: Шкаф-стол морозильный СШН-0,3-1850 | D29: С бортом | E29: 0 | F29: 3 | G29: - | H29: 395 | I29: 260 | J29: 1838 | K29: 600 | L29: 840 | M29: 116642.2 | N29: =ROUND(M29*(1-$C$3)/Лист2!$A$6,0) -> 116642
C30: Шкаф-стол морозильный СШН-0,3 В-1850 | D30: Без борта
C31: Шкаф-стол морозильный СШН-0,4 GN-2300 | D31: С бортом | E31: 0 | F31: 4 | G31: + | H31: 620 | I31: 410 | J31: 2283 | K31: 700 | L31: 840 | M31: 138247.48 | N31: =ROUND(M31*(1-$C$3)/Лист2!$A$6,0) -> 138247
C32: Шкаф-стол морозильный СШН-0,4 GNВ-2300 | D32: Без борта
C33: Шкаф-стол морозильный СШН-0,4-2300 | D33: С бортом | E33: 0 | F33: 4 | G33: - | H33: 520 | I33: 340 | J33: 2283 | K33: 600 | L33: 840 | M33: 137823.36 | N33: =ROUND(M33*(1-$C$3)/Лист2!$A$6,0) -> 137823
C34: Шкаф-стол морозильный СШН-0,4 В-2300 | D34: Без борта
A35: Модификации к холодильным/морозильным столам( добавить к стандартной стоимости изделия)
C36: Замена стандартных ножек на колеса, 2 из них с тормозом | M36: 8218.36 | N36: =ROUND(M36*(1-$C$3)/Лист2!$A$6,0) -> 8218
A37: Опции к холодильным/морозильным столам(поставляются отдельно)
C38: Решетка защитаная для агрега из нержавеющей стали (84312), артикул СО.906.57.00.00 | M38: 1867.6 | N38: =ROUND(M38*(1-$C$3)/Лист2!$A$6,0) -> 1868
C39: Полкодержатель слева (96480) для столов 700, артикул СО.979.03.0000.05 | M39: 336.72 | N39: =ROUND(M39*(1-$C$3)/Лист2!$A$6,0) -> 337
C40: Полкодержатель справа (96481) для столов 700, артикул СО.979.03.0000.05mir | M40: 336.72 | N40: =ROUND(M40*(1-$C$3)/Лист2!$A$6,0) -> 337
C41: Полкодержатель слева (106969) для столов 700, артикул СО.906.03.0000.05 | M41: 311.88 | N41: =ROUND(M41*(1-$C$3)/Лист2!$A$6,0) -> 312
C42: Полкодержатель справа (106970) для столов 700, артикул СО.906.03.0000.05mir | M42: 311.88 | N42: =ROUND(M42*(1-$C$3)/Лист2!$A$6,0) -> 312
C43: Полка решетчатая для столов 700, крашенная (100670), артикул СО.979.56.5000.01 | J43: 332 | K43: 570 | L43: 4(6) | M43: 1184.04 | N43: =ROUND(M43*(1-$C$3)/Лист2!$A$6,0) -> 1184
C44: Полка решетчатая для столов 600, крашенная (100671), артикул СО.906.56.5000.01 | J44: 332 | K44: 470 | L44: 4(6) | M44: 996.36 | N44: =ROUND(M44*(1-$C$3)/Лист2!$A$6,0) -> 996

Sheet Столы Italfrost с нижним (hidden)
A2: Ваша скидка: | C2: =Содержание!D2 -> 0 | N2: На главную
A3: НДС: | C3: =IF(Лист2!A1=TRUE,"С НДС","БЕЗ НДС") -> С НДС
A5: Охлаждаемые столы с нижним расположением агрегата
A6: № | B6: Внешний вид | C6: Наименование | D6: С бортом/ без борта | E6: Количество | G6: Стандарт Gastronorm GN 1/1 | H6: Общий объём, л | I6: Полезный объём, л | J6: Габаритные размеры, мм | M6: Базовая цена, руб. (с НДС) | N6: =Лист2!$A$5 -> Ваша цена, руб.
E7: Ящиков | F7: Дверей | J7: Длина | K7: Ширина | L7: Высота
A8: Холодильные столы с нержавеющей столешницей (температурный режим, °C +1…+10)
C9: Шкаф-стол холодильный СШС-0,2 GN-1000 NDSBS | D9: С бортом | E9: 0 | F9: 2 | G9: + | H9: 245 | I9: 200 | J9: 1000 | K9: 700 | L9: 865 | M9: 72368.12 | N9: =ROUND(M9*(1-$C$2)/Лист2!$A$6,0) -> 72368
C10: Шкаф-стол холодильный СШС-0,2 GN-1000 NDSFS | D10: Без борта
C11: Шкаф-стол холодильный СШС-0,2-1000 NDSBS | D11: С бортом | E11: 0 | F11: 2 | G11: - | H11: 205 | I11: 165 | J11: 1000 | K11: 600 | L11: 865 | M11: 70104 | N11: =ROUND(M11*(1-$C$2)/Лист2!$A$6,0) -> 70104
C12: Шкаф-стол холодильный СШС-0,2-1000 NDSFS | D12: Без борта
C13: Шкаф-стол холодильный СШС-0,3 GN-1500 NDSBS | D13: С бортом | E13: 0 | F13: 3 | G13: + | H13: 375 | I13: 260 | J13: 1500 | K13: 700 | L13: 865 | M13: 86982.32 | N13: =ROUND(M13*(1-$C$2)/Лист2!$A$6,0) -> 86982
C14: Шкаф-стол холодильный СШС-0,3 GN-1500 NDSFS | D14: Без борта
C15: Шкаф-стол холодильный СШС-0,3-1500 NDSBS | D15: С бортом | E15: 0 | F15: 3 | G15: - | H15: 315 | I15: 215 | J15: 1500 | K15: 600 | L15: 865 | M15: 84717.28 | N15: =ROUND(M15*(1-$C$2)/Лист2!$A$6,0) -> 84717
C16: Шкаф-стол холодильный СШС-0,3-1500 NDSFS | D16: Без борта
A17: Морозильные столы с нержавеющей столешницей (температурный режим, °C -20…-10)
C18: Шкаф-стол морозильный СШН-0,2 GN-1000 NDSBS | D18: С бортом | E18: 0 | F18: 2 | G18: + | H18: 245 | I18: 200 | J18: 1000 | K18: 700 | L18: 865 | M18: 80906.64 | N18: =ROUND(M18*(1-$C$2)/Лист2!$A$6,0) -> 80907
C19: Шкаф-стол морозильный СШН-0,2 GN-1000 NDSFS | D19: Без борта
C20: Шкаф-стол морозильный СШН-0,2-1000 NDSBS | D20: С бортом | E20: 0 | F20: 2 | G20: - | H20: 205 | I20: 165 | J20: 1000 | K20: 600 | L20: 865 | M20: 78641.6 | N20: =ROUND(M20*(1-$C$2)/Лист2!$A$6,0) -> 78642
C21: Шкаф-стол морозильный СШН-0,2-1000 NDSFS | D21: Без борта
C22: Шкаф-стол морозильный СШН-0,3 GN-1500 NDSBS | D22: С бортом | E22: 0 | F22: 3 | G22: + | H22: 375 | I22: 260 | J22: 1500 | K22: 700 | L22: 865 | M22: 102087.8 | N22: =ROUND(M22*(1-$C$2)/Лист2!$A$6,0) -> 102088
C23: Шкаф-стол морозильный СШН-0,3 GN-1500 NDSFS | D23: Без борта
C24: Шкаф-стол морозильный СШН-0,3-1500 NDSBS | D24: С бортом | E24: 0 | F24: 3 | G24: - | H24: 315 | I24: 215 | J24: 1500 | K24: 600 | L24: 865 | M24: 99822.76 | N24: =ROUND(M24*(1-$C$2)/Лист2!$A$6,0) -> 99823
C25: Шкаф-стол морозильный СШН-0,3-1500 NDSFS | D25: Без борта
A26: Модификации к холодильным/морозильным столам( добавить к стандартной стоимости изделия)
C27: Замена стандартных ножек на колеса, 2 из них с тормозом | M27: 8218.36 | N27: =ROUND(M27*(1-$C$2)/Лист2!$A$6,0) -> 8218
A28: Опции к холодильным/морозильным столам(поставляются отдельно)
C29: Решетка защитаная для агрега из нержавеющей стали для 2-х секционного стола(135524), артикул СО.1499.57.00.00 | M29: 1992.72 | N29: =ROUND(M29*(1-$C$2)/Лист2!$A$6,0) -> 1993
C30: Решетка защитаная для агрега из нержавеющей стали для 3-х секционного стола(135527), артикул СО.1503.57.00.00 | M30: 2241.12 | N30: =ROUND(M30*(1-$C$2)/Лист2!$A$6,0) -> 2241
C31: Полкодержатель слева (96480) для столов 700, артикул СО.979.03.0000.05 | M31: 336.72 | N31: =ROUND(M31*(1-$C$2)/Лист2!$A$6,0) -> 337
C32: Полкодержатель справа (96481) для столов 700, артикул СО.979.03.0000.05mir | M32: 336.72 | N32: =ROUND(M32*(1-$C$2)/Лист2!$A$6,0) -> 337
C33: Полкодержатель слева (106969) для столов 700, артикул СО.906.03.0000.05 | M33: 311.88 | N33: =ROUND(M33*(1-$C$2)/Лист2!$A$6,0) -> 312
C34: Полкодержатель справа (106970) для столов 700, артикул СО.906.03.0000.05mir | M34: 311.88 | N34: =ROUND(M34*(1-$C$2)/Лист2!$A$6,0) -> 312
C35: Полка решетчатая для столов 700, крашенная (100670), артикул СО.979.56.5000.01 | J35: 332 | K35: 570 | L35: 4(6) | M35: 1184.04 | N35: =ROUND(M35*(1-$C$2)/Лист2!$A$6,0) -> 1184
C36: Полка решетчатая для столов 600, крашенная (100671), артикул СО.906.56.5000.01 | J36: 332 | K36: 470 | L36: 4(6) | M36: 996.36 | N36: =ROUND(M36*(1-$C$2)/Лист2!$A$6,0) -> 996

Sheet Ледогенераторы
K1: На главную
A3: Ваша скидка: | D3: =Содержание!D2 -> 0
A4: НДС: | D4: =IF(Лист2!A1=TRUE,"С НДС","БЕЗ НДС") -> С НДС
A5: Льдогенераторы
A7: № | B7: Изображение | C7: Артикул | D7: Наименование | F7: Производительность кг/сутки | G7: Габариты, (LxWxH) мм | H7: Габариты, (LxWxH) мм | I7: Базовая цена, руб. (с НДС) | J7: =Лист2!$A$5 -> Ваша цена, руб.
A9: Стандартная комплектация: - Корпус выполнен из нержавеющей стали - Управление электро-механическое, охлаждение системы - воздушное, подключение к водопроводу - Хладагент – энергоэффективный пропан, R-290 - Производительность льдогенератора до 20 кг в сутки, емкость бункера 4 кг, тип льда - цилиндрический
A10: 1 | B10: Льдогенератор кубикового льда
C11: ЛГК-24-1-2 | D11: Льдогенератор кубикового льда ЛГК-24-1-2 | F11: 20 | G11: 385х485х610 | H11: 425х550х700 | I11: 93500 | J11: =ROUND(I11*(1-$D$3)/Лист2!$A$6,0) -> 93500
D12: Льдогенератор кубикового льда ЛГК-32-1-2 | F12: 26 | G12: 470х845х610 | H12: 510х550х700 | I12: 109395 | J12: =ROUND(I12*(1-$D$3)/Лист2!$A$6,0) -> 109395
J13: =ROUND(I13*(1-$D$3)/Лист2!$A$6,0) -> 0
I14: НАВЕРХ
K73: =Ледогенераторы!J11=ROUND(J73*(1-$E$3)/Лист2!$A$6,0) -> FALSE

Sheet Цвет стандарт
C1: Стандартные цвета для витрин и стеллажей
M2: На главную
B3: RAL 7016 | E3: RAL 9016 | H3: RAL 1021
B11: RAL 7035 | E11: RAL 7021
B19: RAL 5005 | E19: RAL 6018
B27: RAL 3004 | E27: RAL 9005
B35: RAL 3002 | E35: RAL 5018 (Действительно только для Magnum Quadro)
B44: Структура красок: глянец
B45: За дополнительную плату могут быть
B46: другие цвета красок, краски с другой структурой (матовая).
B47: В структуры шагрень и муар производитель не красит оборудование в виду их
B48: непрактичности (сложно с покрытия без специальных средств удалять загрязнения).
H51: Дуб Сонома
B52: Расшифровка характеристик ЛДСП
B53: Тип фронталальной панели | C53: Символ | D53: Расшифровка
B54: Фронтальная панель широкая, ЛДСП | C54: G | D54: Дуб Сонома
B57: Фронтальная панель узкая, ЛДСП | C57: L | D57: Дуб Сонома
B60: Фронтальная панель широкая, ЛДСП с отбойником | C60: Q | D60: Дуб Сонома
B63: Фронтальная панель узкая, ЛДСП с отбойником | C63: U
D65: Дуб Сонома

Sheet Расчет нестанд.RAL
K1: На главную
C2: Таблица расчета нестандартных RAL
B4: Лари Itlafrost | C4: 1. Стандартный цвет корпуса - RAL9003;
C6: 2. На заказ - краска нестандартного RAL с повышающим коэффициентом +1,5% к цене
B8: Ларь-бонеты и суперструктуры | C8: 1. Стандартный цвет корпуса - RAL9003; Делители/корзины/решетки - RAL9003
C10: 2. На заказ - краска нестандартного RAL с повышающим коэффициентом +1,5% к цене Покраска в нестандартный цвет суперструктуры - наценка на глянцевую краску +3%, на матовую и структурную краску +8%;
B12: Octava | C12: 1. Стандартная цветовая гамма (без изменения цены) указана на вкладке "цвет стандарт"
C14: 2. На заказ - краска нестандартного RAL с повышающим коэффициентом +3% к цене
B16: Gamma | C16: 1. Стандартная цветовая гамма (без изменения цены) указана на вкладке "цвет стандарт"
C18: 2. На заказ - краска нестандартного RAL с повышающим коэффициентом +3% к цене
B20: Gamma Quadro | C20: 1. Стандартная цветовая гамма (без изменения цены) указана на вкладке "цвет стандарт"
C23: 2. На заказ - краска нестандартного RAL с повышающим коэффициентом +3% к цене
B25: Magnum | C25: 1. Стандартная цветовая гамма (без изменения цены) указана на вкладке "цвет стандарт"
C27: 2. На заказ - краска нестандартного RAL с повышающим коэффициентом +3% к цене
B29: Magnum Quadro | C29: 1. Стандартная цветовая гамма (без изменения цены) указана на вкладке "цвет стандарт"
C31: 2. На заказ - краска нестандартного RAL с повышающим коэффициентом +3% к цене
B34: Elegia Quadro | C34: 1. Стандартная цветовая гамма (без изменения цены) указана на вкладке "цвет стандарт"
C35: 2. На заказ - краска нестандартного RAL с повышающим коэффициентом +3% к цене
B37: Adagio | C37: 1. Стандартная цветовая гамма (без изменения цены) указана на вкладке "цвет стандарт"
C39: Покраска в нестандартный цвет наружных панелей; Покраска в нестандартный цвет внутреннего объема - наценка к стоимости витрины 3 %. Замена оцинкованного металла во внутреннем объеме на нержавеющий (базовая полка, стойки, кронштейны) - наценка к стоимости витрины 5%;
C40: 2. Срок производства витрины при покраске в нестандартный цвет может увеличится. На 7 дней и более.
B42: SOLO | C42: 1. Стандартная цветовая гамма (без изменения цены) указана на вкладке "цвет стандарт"
C44: 2. Покраска в нестандартный цвет наружных панелей - наценка к стоимости стеллажа 2 %
C45: 3. Покраска в нестандартный цвет полок, задней стенки, потолочной панели, поддона выкладки - наценка к стоимости стеллажа 6 %
C46: 4. Покраска боковин в нестандартный цвет - наценка к стоимости комплекта боковин 10%.
B48: SOLO DG | C48: 1. Стандартная цветовая гамма (без изменения цены) указана на вкладке "цвет стандарт"
C50: 2. Покраска в нестандартный цвет наружных панелей - наценка к стоимости стеллажа 1,5 %
C51: 3. Покраска в нестандартный цвет полок, задней стенки, потолочной панели, поддона выкладки - наценка к стоимости стеллажа 4,5 %
C52: 4. Покраска боковин в нестандартный цвет - наценка к стоимости комплекта боковин 10%.
B54: UNIT | C54: 1. Стандартная цветовая гамма (без изменения цены) указана на вкладке "цвет стандарт"
C56: 2. На заказ - стеллаж нестандартного RAL +2% к цене.
C58: 3. RAL, не вошедшие в список, являются заказными. Цена по запросу.
B60: Rimini | C60: 1. Стандартная цветовая гамма (без изменения цены) указана на вкладке "цвет стандарт"
C62: 2. Покраска в нестандартный цвет наружных панелей - наценка к стоимости стеллажа 2 %
C63: 3. Покраска в нестандартный цвет полок, задней стенки, потолочной панели, поддона выкладки - наценка к стоимости стеллажа 6 %
C64: 4. Покраска боковин в нестандартный цвет - наценка к стоимости комплекта боковин 10%.
B66: Rimini DG | C66: 1. Стандартная цветовая гамма (без изменения цены) указана на вкладке "цвет стандарт"
C68: 2. Покраска в нестандартный цвет наружных панелей - наценка к стоимости стеллажа 1,5 %
C69: 3. Покраска в нестандартный цвет полок, задней стенки, потолочной панели, поддона выкладки - наценка к стоимости стеллажа 4,5 %
C70: 4. Покраска боковин в нестандартный цвет - наценка к стоимости комплекта боковин 10%.
B72: Veneto | C72: 1. Стандартная цветовая гамма (без изменения цены) указана на вкладке "цвет стандарт"
C74: 2. На заказ - краска нестандартного RAL с повышающим коэффициентом +3% к цене
B76: Toscana | C76: 1. Стандартная цветовая гамма (без изменения цены) указана на вкладке "цвет стандарт"
C78: 2. На заказ - краска нестандартного RAL с повышающим коэффициентом +3% к цене
B81: Lazio | C81: 1. Стандартная цветовая гамма (без изменения цены) указана на вкладке "цвет стандарт"
C83: 2. Покраска в нестандартный цвет наружных панелей - наценка к стоимости стеллажа 2 %
C84: 3. Покраска в нестандартный цвет полок, задней стенки, потолочной панели, поддона выкладки - наценка к стоимости стеллажа 6 %
C85: 4. Покраска боковин в нестандартный цвет - наценка к стоимости комплекта боковин 10%.
B87: Milan | C87: 1. Стандартная цветовая гамма (без изменения цены) указана на вкладке "цвет стандарт"
C89: 2. Покраска в нестандартный цвет наружных панелей - наценка к стоимости стеллажа 1 %
C90: 3. Покраска в нестандартный цвет полок, задней стенки, потолочной панели, поддона выкладки - наценка к стоимости стеллажа 3 %
C91: 4. Покраска боковин в нестандартный цвет - наценка к стоимости комплекта боковин 10%.
G92: НАВЕРХ

Sheet Брендирование
K2: На главную
A6: ПРАЙС-ЛИСТ. ДОПЛАТА ЗА БРЕНДИРОВАНИЕ ЛАРЕЙ ITALFROST
G7: НДС: | I7: =IF([2]Лист2!A1=TRUE,"С НДС","БЕЗ НДС") -> С НДС
B8: 2021-11-21 | H8: Размер вашей скидки | I8: =Содержание!D2 -> 0
A9: № | B9: Изображение | C9: Оклейка | E9: Размеры стикера, мм | H9: =CONCATENATE([2]ВАЛЮТЫ!B11," С НДС") -> Базовая цена, руб. С НДС | I9: =[2]Лист2!A5 -> Ваша цена, руб. | J9: Назад на страницу ларей
E10: Фронт | F10: Боковины | G10: Спина
A11: 1 | B11: Морозильные лари с гнутыми раздвижными стеклами
C12: CF(T)200C | D12: 1 сторона | E12: 840х710 | F12: 640х800 | G12: 840х800 | H12: 1004.916061 | I12: =ROUND(H12*(1-I8)/Лист2!$A$6,0) -> 1005
D13: 3 стороны | H13: 2234.255063 | I13: =ROUND(H13*(1-I8)/Лист2!$A$6,0) -> 2234
D14: 4 стороны | H14: 3321.459536 | I14: =ROUND(H14*(1-I8)/Лист2!$A$6,0) -> 3321
C15: CF(T)300C | D15: 1 сторона | E15: 1040х710 | F15: 640х800 | G15: 1040х800 | H15: 1169.492885 | I15: =ROUND(H15*(1-I8)/Лист2!$A$6,0) -> 1169
D16: 3 стороны | H16: 2406.312652 | I16: =ROUND(H16*(1-I8)/Лист2!$A$6,0) -> 2406
D17: 4 стороны | H17: 3683.02983 | I17: =ROUND(H17*(1-I8)/Лист2!$A$6,0) -> 3683
C18: CF(T)400C | D18: 1 сторона | E18: 1240х710 | F18: 640х800 | G18: 1240х800 | H18: 1344.044061 | I18: =ROUND(H18*(1-I8)/Лист2!$A$6,0) -> 1344
D19: 3 стороны | H19: 2493.58824 | I19: =ROUND(H19*(1-I8)/Лист2!$A$6,0) -> 2494
D20: 4 стороны | H20: 4054.574478 | I20: =ROUND(H20*(1-I8)/Лист2!$A$6,0) -> 4055
C21: CF(T)500C | D21: 1 сторона | E21: 1460х710 | F21: 640х800 | G21: 1460х800 | H21: 1533.556768 | I21: =ROUND(H21*(1-I8)/Лист2!$A$6,0) -> 1534
D22: 3 стороны | H22: 2770.376535 | I22: =ROUND(H22*(1-I8)/Лист2!$A$6,0) -> 2770
D23: 4 стороны | H23: 4451.055008 | I23: =ROUND(H23*(1-I8)/Лист2!$A$6,0) -> 4451
C24: CF(T)600C | D24: 1 сторона | E24: 1680х710 | F24: 640х800 | G24: 1680х800 | H24: 1723.069474 | I24: =ROUND(H24*(1-I8)/Лист2!$A$6,0) -> 1723
D25: 3 стороны | H25: 2949.914888 | I25: =ROUND(H25*(1-I8)/Лист2!$A$6,0) -> 2950
D26: 4 стороны | H26: 4855.016303 | I26: =ROUND(H26*(1-I8)/Лист2!$A$6,0) -> 4855
A27: 2 | B27: Морозильные лари с прямыми раздвижными стеклами
C28: CF(T)200F | D28: 1 сторона | E28: 840х810 | F28: 640х810 | G28: 840х810 | H28: 1104.65959 | I28: =ROUND(H28*(1-$I$8)/[2]СОДЕРЖАНИЕ!$C$6/[2]Лист2!$A$6,0) -> 1105
D29: 3 стороны | H29: 2348.960122 | I29: =ROUND(H29*(1-$I$8)/[2]СОДЕРЖАНИЕ!$C$6/[2]Лист2!$A$6,0) -> 2349
D30: 4 стороны | H30: 3453.619712 | I30: =ROUND(H30*(1-$I$8)/[2]СОДЕРЖАНИЕ!$C$6/[2]Лист2!$A$6,0) -> 3454
C31: CF(T)300F | D31: 1 сторона | E31: 1040х810 | F31: 640х810 | G31: 1040х810 | H31: 1301.653061 | I31: =ROUND(H31*(1-$I$8)/[2]СОДЕРЖАНИЕ!$C$6/[2]Лист2!$A$6,0) -> 1302
D32: 3 стороны | H32: 2545.953593 | I32: =ROUND(H32*(1-$I$8)/[2]СОДЕРЖАНИЕ!$C$6/[2]Лист2!$A$6,0) -> 2546
D33: 4 стороны | H33: 3842.619478 | I33: =ROUND(H33*(1-$I$8)/[2]СОДЕРЖАНИЕ!$C$6/[2]Лист2!$A$6,0) -> 3843
C34: CF(T)400F | D34: 1 сторона | E34: 1240х810 | F34: 640х810 | G34: 1240х810 | H34: 1491.165768 | I34: =ROUND(H34*(1-$I$8)/[2]СОДЕРЖАНИЕ!$C$6/[2]Лист2!$A$6,0) -> 1491
D35: 3 стороны | H35: 2742.947064 | I35: =ROUND(H35*(1-$I$8)/[2]СОДЕРЖАНИЕ!$C$6/[2]Лист2!$A$6,0) -> 2743
D36: 4 стороны | H36: 4229.125655 | I36: =ROUND(H36*(1-$I$8)/[2]СОДЕРЖАНИЕ!$C$6/[2]Лист2!$A$6,0) -> 4229
C37: CF(T)500F | D37: 1 сторона | E37: 1460х810 | F37: 640х810 | G37: 1460х810 | H37: 1705.614356 | I37: =ROUND(H37*(1-$I$8)/[2]СОДЕРЖАНИЕ!$C$6/[2]Лист2!$A$6,0) -> 1706
D38: 3 стороны | H38: 2959.889241 | I38: =ROUND(H38*(1-$I$8)/[2]СОДЕРЖАНИЕ!$C$6/[2]Лист2!$A$6,0) -> 2960
D39: 4 стороны | H39: 4655.529244 | I39: =ROUND(H39*(1-$I$8)/[2]СОДЕРЖАНИЕ!$C$6/[2]Лист2!$A$6,0) -> 4656
C40: CF(T)600F | D40: 1 сторона | E40: 1680Х810 | F40: 640х810 | G40: 1680х810 | H40: 1920.062945 | I40: =ROUND(H40*(1-$I$8)/[2]СОДЕРЖАНИЕ!$C$6/[2]Лист2!$A$6,0) -> 1920
D41: 3 стороны | H41: 3174.33783 | I41: =ROUND(H41*(1-$I$8)/[2]СОДЕРЖАНИЕ!$C$6/[2]Лист2!$A$6,0) -> 3174
D42: 4 стороны | H42: 5094.400774 | I42: =ROUND(H42*(1-$I$8)/[2]СОДЕРЖАНИЕ!$C$6/[2]Лист2!$A$6,0) -> 5094
A43: 3 | B43: Низкотемпературная надстройка над ларем 400 л. Verona
D44: 1 сторона (верхний баннер, фронтальная часть) | E44: - | F44: - | G44: - | H44: 4657.5 | I44: =ROUND(H44*(1-$I$8)/[2]СОДЕРЖАНИЕ!$C$6/[2]Лист2!$A$6,0) -> 4658
D45: 3 стороны (верхний баннер (фронтальная часть) + 2 боковины) | H45: 7917.75 | I45: =ROUND(H45*(1-$I$8)/[2]СОДЕРЖАНИЕ!$C$6/[2]Лист2!$A$6,0) -> 7918
A48: Примечание: | C48: Пленка толщиной 100 мкр + ламинация толщиной 80 мкр. Качество 720 dpi.

Sheet Лист1 (hidden)

Sheet Лист2 (hidden)
A1: TRUE
A2: Базовая цена, руб.
A3: Базовая цена, руб. б/НДС
A4: =IF(A1=TRUE,"руб.","руб. б/НДС") -> руб.
A5: =CONCATENATE("Ваша цена, ",A4) -> Ваша цена, руб.
A6: =IF(A1=TRUE,1,1.2) -> 1
A7: =IF(A1=TRUE,1,1.2) -> 1
